date,department/service,beneficiary,amount,summary of purpose,category,transaction number
03.09.2016,ADULT SOCIAL CARE,BRITISH HOME & HOSPITAL FOR INCURABLES,"2,951.60",PD NURSING,NURSING PLACEMENTS FEES,2102559708
30.09.2016,ADULT SOCIAL CARE,BRITISH HOME & HOSPITAL FOR INCURABLES,"2,951.60",PD NURSING,NURSING PLACEMENTS FEES,2102570471
03.09.2016,ADULT SOCIAL CARE,BRITISH HOME & HOSPITAL FOR INCURABLES,"2,868.36",PD NURSING,NURSING PLACEMENTS FEES,2102559706
30.09.2016,ADULT SOCIAL CARE,BRITISH HOME & HOSPITAL FOR INCURABLES,"2,868.36",PD NURSING,NURSING PLACEMENTS FEES,2102570469
03.09.2016,ADULT SOCIAL CARE,BRITISH HOME & HOSPITAL FOR INCURABLES,997.14,OP - RESIDENTIAL - DEMENTIA,PLACEMENTS - RESPITE,2102559702
03.09.2016,ADULT SOCIAL CARE,BRITISH HOME & HOSPITAL FOR INCURABLES,398.86,OP - RESIDENTIAL - DEMENTIA,PLACEMENTS - RESPITE,2102559705
03.09.2016,ADULT SOCIAL CARE,BRITISH HOME & HOSPITAL FOR INCURABLES,-454.67,PD NURSING,"MAND STATUTORY CHARGES, NURSING",2102559704
03.09.2016,ADULT SOCIAL CARE,BRITISH HOME & HOSPITAL FOR INCURABLES,-522.8,PD NURSING,"MAND STATUTORY CHARGES, NURSING",2102559707
30.09.2016,ADULT SOCIAL CARE,BRITISH HOME & HOSPITAL FOR INCURABLES,-522.8,PD NURSING,"MAND STATUTORY CHARGES, NURSING",2102570470
03.09.2016,ADULT SOCIAL CARE,MORTIMER SOCIETY,"5,000.00",PD NURSING,NURSING PLACEMENTS FEES,2102559712
03.09.2016,ADULT SOCIAL CARE,MORTIMER SOCIETY,"5,000.00",PD RESIDENTIAL,RESIDENTIAL CARE,2102559713
30.09.2016,ADULT SOCIAL CARE,MORTIMER SOCIETY,"5,000.00",PD NURSING,NURSING PLACEMENTS FEES,2102570475
30.09.2016,ADULT SOCIAL CARE,MORTIMER SOCIETY,"5,000.00",PD RESIDENTIAL,RESIDENTIAL CARE,2102570476
03.09.2016,ADULT SOCIAL CARE,MORTIMER SOCIETY,"2,963.20",PWLD RES PLACEMENTS,RESIDENTIAL CARE,2102559710
30.09.2016,ADULT SOCIAL CARE,MORTIMER SOCIETY,"2,963.20",PWLD RES PLACEMENTS,RESIDENTIAL CARE,2102570473
03.09.2016,ADULT SOCIAL CARE,MORTIMER SOCIETY,-523.4,PWLD RES PLACEMENTS,"MAND STATUTORY CHARGES, RESIDENTIAL",2102559711
30.09.2016,ADULT SOCIAL CARE,MORTIMER SOCIETY,-523.4,PWLD RES PLACEMENTS,"MAND STATUTORY CHARGES, RESIDENTIAL",2102570474
07.09.2016,ADULT SOCIAL CARE,EDF ENERGY PLC,"1,027.51",ORIENT STREET,ELECTRICITY,5902210792
03.09.2016,ADULT SOCIAL CARE,LOVE WALK HOSTEL FOR DISABLED,"3,256.24", OP CARE PACKAGES,RESIDENTIAL CARE,2102559722
30.09.2016,ADULT SOCIAL CARE,LOVE WALK HOSTEL FOR DISABLED,"3,256.24", OP CARE PACKAGES,RESIDENTIAL CARE,2102570485
03.09.2016,ADULT SOCIAL CARE,LOVE WALK HOSTEL FOR DISABLED,"3,240.00",PD RESIDENTIAL,RESIDENTIAL CARE,2102559718
03.09.2016,ADULT SOCIAL CARE,LOVE WALK HOSTEL FOR DISABLED,"3,240.00",PD RESIDENTIAL,RESIDENTIAL CARE,2102559725
30.09.2016,ADULT SOCIAL CARE,LOVE WALK HOSTEL FOR DISABLED,"3,240.00",PD RESIDENTIAL,RESIDENTIAL CARE,2102570481
30.09.2016,ADULT SOCIAL CARE,LOVE WALK HOSTEL FOR DISABLED,"3,240.00",PD RESIDENTIAL,RESIDENTIAL CARE,2102570488
03.09.2016,ADULT SOCIAL CARE,LOVE WALK HOSTEL FOR DISABLED,"3,150.40", OP CARE PACKAGES,RESIDENTIAL CARE,2102559720
30.09.2016,ADULT SOCIAL CARE,LOVE WALK HOSTEL FOR DISABLED,"3,150.40", OP CARE PACKAGES,RESIDENTIAL CARE,2102570483
03.09.2016,ADULT SOCIAL CARE,LOVE WALK HOSTEL FOR DISABLED,"3,146.52",PD RESIDENTIAL,RESIDENTIAL CARE,2102559716
30.09.2016,ADULT SOCIAL CARE,LOVE WALK HOSTEL FOR DISABLED,"3,146.52",PD RESIDENTIAL,RESIDENTIAL CARE,2102570479
03.09.2016,ADULT SOCIAL CARE,LOVE WALK HOSTEL FOR DISABLED,"3,131.00",PD RESIDENTIAL,RESIDENTIAL CARE,2102559714
03.09.2016,ADULT SOCIAL CARE,LOVE WALK HOSTEL FOR DISABLED,"3,131.00",PD RESIDENTIAL,RESIDENTIAL CARE,2102559717
03.09.2016,ADULT SOCIAL CARE,LOVE WALK HOSTEL FOR DISABLED,"3,131.00",PD RESIDENTIAL,RESIDENTIAL CARE,2102559721
03.09.2016,ADULT SOCIAL CARE,LOVE WALK HOSTEL FOR DISABLED,"3,131.00",PD RESIDENTIAL,RESIDENTIAL CARE,2102559724
03.09.2016,ADULT SOCIAL CARE,LOVE WALK HOSTEL FOR DISABLED,"3,131.00",PD RESIDENTIAL,RESIDENTIAL CARE,2102559727
30.09.2016,ADULT SOCIAL CARE,LOVE WALK HOSTEL FOR DISABLED,"3,131.00",PD RESIDENTIAL,RESIDENTIAL CARE,2102570477
30.09.2016,ADULT SOCIAL CARE,LOVE WALK HOSTEL FOR DISABLED,"3,131.00",PD RESIDENTIAL,RESIDENTIAL CARE,2102570480
30.09.2016,ADULT SOCIAL CARE,LOVE WALK HOSTEL FOR DISABLED,"3,131.00",PD RESIDENTIAL,RESIDENTIAL CARE,2102570484
30.09.2016,ADULT SOCIAL CARE,LOVE WALK HOSTEL FOR DISABLED,"3,131.00",PD RESIDENTIAL,RESIDENTIAL CARE,2102570487
30.09.2016,ADULT SOCIAL CARE,LOVE WALK HOSTEL FOR DISABLED,"3,131.00",PD RESIDENTIAL,RESIDENTIAL CARE,2102570490
03.09.2016,ADULT SOCIAL CARE,LOVE WALK HOSTEL FOR DISABLED,-309,PD RESIDENTIAL,"MAND STATUTORY CHARGES, RESIDENTIAL",2102559728
30.09.2016,ADULT SOCIAL CARE,LOVE WALK HOSTEL FOR DISABLED,-309,PD RESIDENTIAL,"MAND STATUTORY CHARGES, RESIDENTIAL",2102570491
03.09.2016,ADULT SOCIAL CARE,LOVE WALK HOSTEL FOR DISABLED,-321.8,PD RESIDENTIAL,"MAND STATUTORY CHARGES, RESIDENTIAL",2102559715
30.09.2016,ADULT SOCIAL CARE,LOVE WALK HOSTEL FOR DISABLED,-321.8,PD RESIDENTIAL,"MAND STATUTORY CHARGES, RESIDENTIAL",2102570478
03.09.2016,ADULT SOCIAL CARE,LOVE WALK HOSTEL FOR DISABLED,-400.6,PD RESIDENTIAL,"MAND STATUTORY CHARGES, RESIDENTIAL",2102559719
30.09.2016,ADULT SOCIAL CARE,LOVE WALK HOSTEL FOR DISABLED,-400.6,PD RESIDENTIAL,"MAND STATUTORY CHARGES, RESIDENTIAL",2102570482
03.09.2016,ADULT SOCIAL CARE,LOVE WALK HOSTEL FOR DISABLED,-948, OP CARE PACKAGES,"MAND STATUTORY CHARGES, RESIDENTIAL",2102559723
30.09.2016,ADULT SOCIAL CARE,LOVE WALK HOSTEL FOR DISABLED,-948, OP CARE PACKAGES,"MAND STATUTORY CHARGES, RESIDENTIAL",2102570486
03.09.2016,ADULT SOCIAL CARE,ROYAL HOSPITAL FOR NEURODISABILITY,"9,600.00", OP CARE PACKAGES,NURSING PLACEMENTS FEES,2102559729
03.09.2016,ADULT SOCIAL CARE,ROYAL HOSPITAL FOR NEURODISABILITY,"9,600.00",PD NURSING,NURSING PLACEMENTS FEES,2102559731
30.09.2016,ADULT SOCIAL CARE,ROYAL HOSPITAL FOR NEURODISABILITY,"9,600.00", OP CARE PACKAGES,NURSING PLACEMENTS FEES,2102570492
30.09.2016,ADULT SOCIAL CARE,ROYAL HOSPITAL FOR NEURODISABILITY,"9,600.00",PD NURSING,NURSING PLACEMENTS FEES,2102570494
03.09.2016,ADULT SOCIAL CARE,ROYAL HOSPITAL FOR NEURODISABILITY,-321.8,PD NURSING,"MAND STATUTORY CHARGES, NURSING",2102559732
30.09.2016,ADULT SOCIAL CARE,ROYAL HOSPITAL FOR NEURODISABILITY,-321.8,PD NURSING,"MAND STATUTORY CHARGES, NURSING",2102570495
03.09.2016,ADULT SOCIAL CARE,ROYAL HOSPITAL FOR NEURODISABILITY,-547, OP CARE PACKAGES,"MAND STATUTORY CHARGES, NURSING",2102559730
30.09.2016,ADULT SOCIAL CARE,ROYAL HOSPITAL FOR NEURODISABILITY,-547, OP CARE PACKAGES,"MAND STATUTORY CHARGES, NURSING",2102570493
02.09.2016,ADULT SOCIAL CARE,TUNSTALL HEALTHCARE (UK) LTD,"3,784.00",SOUTHWARK RESOURCE CENTRE,PUBLIC TRANSPORT,5902210308
08.09.2016,ADULT SOCIAL CARE,TUNSTALL HEALTHCARE (UK) LTD,"1,105.00",SOUTHWARK RESOURCE CENTRE,PUBLIC TRANSPORT,5902211207
08.09.2016,ADULT SOCIAL CARE,TUNSTALL HEALTHCARE (UK) LTD,550,SOUTHWARK RESOURCE CENTRE,PUBLIC TRANSPORT,5902211139
08.09.2016,ADULT SOCIAL CARE,TUNSTALL HEALTHCARE (UK) LTD,412.5,SOUTHWARK RESOURCE CENTRE,PUBLIC TRANSPORT,5902211173
03.09.2016,ADULT SOCIAL CARE,RYDE HOUSE,"3,944.00",LD HOME CARE,RESIDENTIAL CARE,2102559733
30.09.2016,ADULT SOCIAL CARE,RYDE HOUSE,"3,944.00",LD HOME CARE,RESIDENTIAL CARE,2102570496
03.09.2016,ADULT SOCIAL CARE,RYDE HOUSE,"2,849.24",PWLD RES PLACEMENTS,RESIDENTIAL CARE,2102559735
30.09.2016,ADULT SOCIAL CARE,RYDE HOUSE,"2,849.24",PWLD RES PLACEMENTS,RESIDENTIAL CARE,2102570498
03.09.2016,ADULT SOCIAL CARE,RYDE HOUSE,-321.8,LD HOME CARE,"MAND STATUTORY CHARGES, RESIDENTIAL",2102559734
30.09.2016,ADULT SOCIAL CARE,RYDE HOUSE,-321.8,LD HOME CARE,"MAND STATUTORY CHARGES, RESIDENTIAL",2102570497
03.09.2016,ADULT SOCIAL CARE,RYDE HOUSE,-505.2,PWLD RES PLACEMENTS,"MAND STATUTORY CHARGES, RESIDENTIAL",2102559736
30.09.2016,ADULT SOCIAL CARE,RYDE HOUSE,-505.2,PWLD RES PLACEMENTS,"MAND STATUTORY CHARGES, RESIDENTIAL",2102570499
03.09.2016,ADULT SOCIAL CARE,ATHOL HOUSE LONDON CHESHIRE HOMES,"4,961.40",PD RESIDENTIAL,RESIDENTIAL CARE,2102559737
30.09.2016,ADULT SOCIAL CARE,ATHOL HOUSE LONDON CHESHIRE HOMES,"4,961.40",PD RESIDENTIAL,RESIDENTIAL CARE,2102570500
03.09.2016,ADULT SOCIAL CARE,ATHOL HOUSE LONDON CHESHIRE HOMES,-505.2,PD RESIDENTIAL,"MAND STATUTORY CHARGES, RESIDENTIAL",2102559738
30.09.2016,ADULT SOCIAL CARE,ATHOL HOUSE LONDON CHESHIRE HOMES,-505.2,PD RESIDENTIAL,"MAND STATUTORY CHARGES, RESIDENTIAL",2102570501
03.09.2016,ADULT SOCIAL CARE,UNITED RESPONSE,"1,450.00",LD HOME CARE,SUPPORTED LIVING,2102559739
30.09.2016,ADULT SOCIAL CARE,UNITED RESPONSE,"1,450.00",LD HOME CARE,SUPPORTED LIVING,2102570502
03.09.2016,ADULT SOCIAL CARE,NIGHTINGALE HAMMERSON,"2,598.80",OP - NURSING,NURSING PLACEMENTS FEES,2102559740
30.09.2016,ADULT SOCIAL CARE,NIGHTINGALE HAMMERSON,"2,598.80",OP - NURSING,NURSING PLACEMENTS FEES,2102570503
03.09.2016,ADULT SOCIAL CARE,STRODE PARK FNDN FOR THE DISABLED,"3,983.28", OP CARE PACKAGES,RESIDENTIAL CARE,2102559741
30.09.2016,ADULT SOCIAL CARE,STRODE PARK FNDN FOR THE DISABLED,"3,983.28", OP CARE PACKAGES,RESIDENTIAL CARE,2102570504
03.09.2016,ADULT SOCIAL CARE,STRODE PARK FNDN FOR THE DISABLED,-505.2, OP CARE PACKAGES,"MAND STATUTORY CHARGES, RESIDENTIAL",2102559742
30.09.2016,ADULT SOCIAL CARE,STRODE PARK FNDN FOR THE DISABLED,-505.2, OP CARE PACKAGES,"MAND STATUTORY CHARGES, RESIDENTIAL",2102570505
03.09.2016,ADULT SOCIAL CARE,STREATFIELD HOUSE,"1,772.16",PWLD RES PLACEMENTS,RESIDENTIAL CARE,2102559743
30.09.2016,ADULT SOCIAL CARE,STREATFIELD HOUSE,"1,772.16",PWLD RES PLACEMENTS,RESIDENTIAL CARE,2102570506
03.09.2016,ADULT SOCIAL CARE,STREATFIELD HOUSE,-505.2,PWLD RES PLACEMENTS,"MAND STATUTORY CHARGES, RESIDENTIAL",2102559744
30.09.2016,ADULT SOCIAL CARE,STREATFIELD HOUSE,-505.2,PWLD RES PLACEMENTS,"MAND STATUTORY CHARGES, RESIDENTIAL",2102570507
03.09.2016,ADULT SOCIAL CARE,SCOPE,"4,697.80",PD RESIDENTIAL,RESIDENTIAL CARE,2102559745
30.09.2016,ADULT SOCIAL CARE,SCOPE,"4,697.80",PD RESIDENTIAL,RESIDENTIAL CARE,2102570508
03.09.2016,ADULT SOCIAL CARE,SCOPE,"4,256.20",PD RESIDENTIAL,RESIDENTIAL CARE,2102559747
30.09.2016,ADULT SOCIAL CARE,SCOPE,"4,256.20",PD RESIDENTIAL,RESIDENTIAL CARE,2102570510
03.09.2016,ADULT SOCIAL CARE,SCOPE,"3,589.60", OP CARE PACKAGES,RESIDENTIAL CARE,2102559749
30.09.2016,ADULT SOCIAL CARE,SCOPE,"3,589.60", OP CARE PACKAGES,RESIDENTIAL CARE,2102570512
03.09.2016,ADULT SOCIAL CARE,SCOPE,-321.8,PD RESIDENTIAL,"MAND STATUTORY CHARGES, RESIDENTIAL",2102559746
30.09.2016,ADULT SOCIAL CARE,SCOPE,-321.8,PD RESIDENTIAL,"MAND STATUTORY CHARGES, RESIDENTIAL",2102570509
03.09.2016,ADULT SOCIAL CARE,SCOPE,-505.2,PD RESIDENTIAL,"MAND STATUTORY CHARGES, RESIDENTIAL",2102559748
30.09.2016,ADULT SOCIAL CARE,SCOPE,-505.2,PD RESIDENTIAL,"MAND STATUTORY CHARGES, RESIDENTIAL",2102570511
30.09.2016,ADULT SOCIAL CARE,PAULWAYS KENNELS,"1,240.00",PERSONAL BUDGET - SOCIAL CARE,OTHER PAYMENTS FOR CLIENTS,2102569175
30.09.2016,ADULT SOCIAL CARE,PAULWAYS KENNELS,"1,240.00",PERSONAL BUDGET - SOCIAL CARE,OTHER PAYMENTS FOR CLIENTS,2102569176
30.09.2016,ADULT SOCIAL CARE,PAULWAYS KENNELS,620,PERSONAL BUDGET - SOCIAL CARE,OTHER PAYMENTS FOR CLIENTS,2102569174
30.09.2016,ADULT SOCIAL CARE,PAULWAYS KENNELS,496,PERSONAL BUDGET - SOCIAL CARE,OTHER PAYMENTS FOR CLIENTS,2102569177
30.09.2016,ADULT SOCIAL CARE,PAULWAYS KENNELS,270,S48 STORAGE,OTHER CONTRACTORS,5902215459
03.09.2016,ADULT SOCIAL CARE,COTTAGE & RURAL ENTERPRISES LTD,"2,181.32",PWLD RES PLACEMENTS,RESIDENTIAL CARE,2102559750
30.09.2016,ADULT SOCIAL CARE,COTTAGE & RURAL ENTERPRISES LTD,"2,181.32",PWLD RES PLACEMENTS,RESIDENTIAL CARE,2102570513
03.09.2016,ADULT SOCIAL CARE,COTTAGE & RURAL ENTERPRISES LTD,-512.48,PWLD RES PLACEMENTS,"MAND STATUTORY CHARGES, RESIDENTIAL",2102559751
30.09.2016,ADULT SOCIAL CARE,COTTAGE & RURAL ENTERPRISES LTD,-512.48,PWLD RES PLACEMENTS,"MAND STATUTORY CHARGES, RESIDENTIAL",2102570514
03.09.2016,ADULT SOCIAL CARE,CHOICE SUPPORT,"8,907.64",PWLD RES PLACEMENTS,RESIDENTIAL CARE,2102559802
30.09.2016,ADULT SOCIAL CARE,CHOICE SUPPORT,"8,907.64",PWLD RES PLACEMENTS,RESIDENTIAL CARE,2102570564
03.09.2016,ADULT SOCIAL CARE,CHOICE SUPPORT,"8,755.60",LD HOME CARE,SUPPORTED LIVING,2102559765
30.09.2016,ADULT SOCIAL CARE,CHOICE SUPPORT,"8,755.60",LD HOME CARE,SUPPORTED LIVING,2102570528
03.09.2016,ADULT SOCIAL CARE,CHOICE SUPPORT,"8,080.68",CHOICE SUPPORTED LIVING,SUPPORTED LIVING,2102559811
30.09.2016,ADULT SOCIAL CARE,CHOICE SUPPORT,"8,080.68",CHOICE SUPPORTED LIVING,SUPPORTED LIVING,2102570573
03.09.2016,ADULT SOCIAL CARE,CHOICE SUPPORT,"7,920.48",LD HOME CARE,SUPPORTED LIVING,2102559826
30.09.2016,ADULT SOCIAL CARE,CHOICE SUPPORT,"7,920.48",LD HOME CARE,SUPPORTED LIVING,2102570588
03.09.2016,ADULT SOCIAL CARE,CHOICE SUPPORT,"7,674.56",LD HOME CARE,SUPPORTED LIVING,2102559768
03.09.2016,ADULT SOCIAL CARE,CHOICE SUPPORT,"7,674.56",LD HOME CARE,SUPPORTED LIVING,2102559805
30.09.2016,ADULT SOCIAL CARE,CHOICE SUPPORT,"7,674.56",LD HOME CARE,SUPPORTED LIVING,2102570531
30.09.2016,ADULT SOCIAL CARE,CHOICE SUPPORT,"7,674.56",LD HOME CARE,SUPPORTED LIVING,2102570567
03.09.2016,ADULT SOCIAL CARE,CHOICE SUPPORT,"6,972.52",LD HOME CARE,SUPPORTED LIVING,2102559815
27.09.2016,ADULT SOCIAL CARE,CHOICE SUPPORT,"6,935.52",LD HOME CARE,EXTERNAL AGENCIES AND BODIES,2102566789
03.09.2016,ADULT SOCIAL CARE,CHOICE SUPPORT,"6,503.24",LD HOME CARE,SUPPORTED LIVING,2102559796
30.09.2016,ADULT SOCIAL CARE,CHOICE SUPPORT,"6,503.24",LD HOME CARE,SUPPORTED LIVING,2102570558
03.09.2016,ADULT SOCIAL CARE,CHOICE SUPPORT,"6,468.00",LD HOME CARE,SUPPORTED LIVING,2102559840
30.09.2016,ADULT SOCIAL CARE,CHOICE SUPPORT,"6,468.00",LD HOME CARE,SUPPORTED LIVING,2102570602
03.09.2016,ADULT SOCIAL CARE,CHOICE SUPPORT,"6,404.48",LD HOME CARE,SUPPORTED LIVING,2102559852
30.09.2016,ADULT SOCIAL CARE,CHOICE SUPPORT,"6,404.48",LD HOME CARE,SUPPORTED LIVING,2102570614
30.09.2016,ADULT SOCIAL CARE,CHOICE SUPPORT,"6,379.96",LD HOME CARE,SUPPORTED LIVING,2102570577
03.09.2016,ADULT SOCIAL CARE,CHOICE SUPPORT,"6,352.00",LD HOME CARE,SUPPORTED LIVING,2102559854
30.09.2016,ADULT SOCIAL CARE,CHOICE SUPPORT,"6,352.00",LD HOME CARE,SUPPORTED LIVING,2102570616
03.09.2016,ADULT SOCIAL CARE,CHOICE SUPPORT,"6,040.00",LD HOME CARE,SUPPORTED LIVING,2102559820
30.09.2016,ADULT SOCIAL CARE,CHOICE SUPPORT,"6,040.00",LD HOME CARE,SUPPORTED LIVING,2102570582
03.09.2016,ADULT SOCIAL CARE,CHOICE SUPPORT,"5,871.44",LD HOME CARE,SUPPORTED LIVING,2102559821
30.09.2016,ADULT SOCIAL CARE,CHOICE SUPPORT,"5,871.44",LD HOME CARE,SUPPORTED LIVING,2102570583
03.09.2016,ADULT SOCIAL CARE,CHOICE SUPPORT,"5,711.68",LD HOME CARE,SUPPORTED LIVING,2102559816
30.09.2016,ADULT SOCIAL CARE,CHOICE SUPPORT,"5,711.68",LD HOME CARE,SUPPORTED LIVING,2102570578
03.09.2016,ADULT SOCIAL CARE,CHOICE SUPPORT,"5,679.80",PWLD HOME CARE IND,SUPPORTED LIVING,2102559766
30.09.2016,ADULT SOCIAL CARE,CHOICE SUPPORT,"5,679.80",PWLD HOME CARE IND,SUPPORTED LIVING,2102570529
03.09.2016,ADULT SOCIAL CARE,CHOICE SUPPORT,"5,670.72",PWLD RES PLACEMENTS,RESIDENTIAL CARE,2102559801
30.09.2016,ADULT SOCIAL CARE,CHOICE SUPPORT,"5,670.72",PWLD RES PLACEMENTS,RESIDENTIAL CARE,2102570563
03.09.2016,ADULT SOCIAL CARE,CHOICE SUPPORT,"5,536.76",PWLD RES PLACEMENTS,RESIDENTIAL CARE,2102559798
30.09.2016,ADULT SOCIAL CARE,CHOICE SUPPORT,"5,536.76",PWLD RES PLACEMENTS,RESIDENTIAL CARE,2102570560
03.09.2016,ADULT SOCIAL CARE,CHOICE SUPPORT,"5,504.52",PWLD RES PLACEMENTS,RESIDENTIAL CARE,2102559800
30.09.2016,ADULT SOCIAL CARE,CHOICE SUPPORT,"5,504.52",PWLD RES PLACEMENTS,RESIDENTIAL CARE,2102570562
03.09.2016,ADULT SOCIAL CARE,CHOICE SUPPORT,"5,487.52",LD HOME CARE,SUPPORTED LIVING,2102559828
30.09.2016,ADULT SOCIAL CARE,CHOICE SUPPORT,"5,487.52",LD HOME CARE,SUPPORTED LIVING,2102570590
03.09.2016,ADULT SOCIAL CARE,CHOICE SUPPORT,"5,289.48",LD HOME CARE,SUPPORTED LIVING,2102559837
30.09.2016,ADULT SOCIAL CARE,CHOICE SUPPORT,"5,289.48",LD HOME CARE,SUPPORTED LIVING,2102570599
03.09.2016,ADULT SOCIAL CARE,CHOICE SUPPORT,"5,243.16",LD HOME CARE,SUPPORTED LIVING,2102559804
30.09.2016,ADULT SOCIAL CARE,CHOICE SUPPORT,"5,243.16",LD HOME CARE,SUPPORTED LIVING,2102570566
03.09.2016,ADULT SOCIAL CARE,CHOICE SUPPORT,"5,211.88",LD HOME CARE,SUPPORTED LIVING,2102559823
30.09.2016,ADULT SOCIAL CARE,CHOICE SUPPORT,"5,211.88",LD HOME CARE,SUPPORTED LIVING,2102570585
03.09.2016,ADULT SOCIAL CARE,CHOICE SUPPORT,"5,112.00",LD HOME CARE,SUPPORTED LIVING,2102559793
30.09.2016,ADULT SOCIAL CARE,CHOICE SUPPORT,"5,112.00",LD HOME CARE,SUPPORTED LIVING,2102570555
03.09.2016,ADULT SOCIAL CARE,CHOICE SUPPORT,"5,022.16",LD HOME CARE,SUPPORTED LIVING,2102559830
30.09.2016,ADULT SOCIAL CARE,CHOICE SUPPORT,"5,022.16",LD HOME CARE,SUPPORTED LIVING,2102570592
03.09.2016,ADULT SOCIAL CARE,CHOICE SUPPORT,"5,008.00",LD HOME CARE,SUPPORTED LIVING,2102559777
30.09.2016,ADULT SOCIAL CARE,CHOICE SUPPORT,"5,008.00",LD HOME CARE,SUPPORTED LIVING,2102570539
03.09.2016,ADULT SOCIAL CARE,CHOICE SUPPORT,"4,979.36",LD HOME CARE,SUPPORTED LIVING,2102559770
30.09.2016,ADULT SOCIAL CARE,CHOICE SUPPORT,"4,979.36",LD HOME CARE,SUPPORTED LIVING,2102570533
03.09.2016,ADULT SOCIAL CARE,CHOICE SUPPORT,"4,908.00",LD HOME CARE,SUPPORTED LIVING,2102559853
30.09.2016,ADULT SOCIAL CARE,CHOICE SUPPORT,"4,908.00",LD HOME CARE,SUPPORTED LIVING,2102570615
03.09.2016,ADULT SOCIAL CARE,CHOICE SUPPORT,"4,872.92",PWLD RES PLACEMENTS,RESIDENTIAL CARE,2102559836
30.09.2016,ADULT SOCIAL CARE,CHOICE SUPPORT,"4,872.92",PWLD RES PLACEMENTS,RESIDENTIAL CARE,2102570598
03.09.2016,ADULT SOCIAL CARE,CHOICE SUPPORT,"4,826.76",LD HOME CARE,SUPPORTED LIVING,2102559772
30.09.2016,ADULT SOCIAL CARE,CHOICE SUPPORT,"4,826.76",LD HOME CARE,SUPPORTED LIVING,2102570535
03.09.2016,ADULT SOCIAL CARE,CHOICE SUPPORT,"4,772.20",PWLD RES PLACEMENTS,RESIDENTIAL CARE,2102559806
30.09.2016,ADULT SOCIAL CARE,CHOICE SUPPORT,"4,772.20",PWLD RES PLACEMENTS,RESIDENTIAL CARE,2102570568
03.09.2016,ADULT SOCIAL CARE,CHOICE SUPPORT,"4,763.08",LD HOME CARE,SUPPORTED LIVING,2102559769
30.09.2016,ADULT SOCIAL CARE,CHOICE SUPPORT,"4,763.08",LD HOME CARE,SUPPORTED LIVING,2102570532
03.09.2016,ADULT SOCIAL CARE,CHOICE SUPPORT,"4,664.60",LD HOME CARE,SUPPORTED LIVING,2102559829
30.09.2016,ADULT SOCIAL CARE,CHOICE SUPPORT,"4,664.60",LD HOME CARE,SUPPORTED LIVING,2102570591
03.09.2016,ADULT SOCIAL CARE,CHOICE SUPPORT,"4,634.12",CHOICE SUPPORTED LIVING,SUPPORTED LIVING,2102559771
30.09.2016,ADULT SOCIAL CARE,CHOICE SUPPORT,"4,634.12",CHOICE SUPPORTED LIVING,SUPPORTED LIVING,2102570534
03.09.2016,ADULT SOCIAL CARE,CHOICE SUPPORT,"4,590.80",LD HOME CARE,SUPPORTED LIVING,2102559782
30.09.2016,ADULT SOCIAL CARE,CHOICE SUPPORT,"4,590.80",LD HOME CARE,SUPPORTED LIVING,2102570544
03.09.2016,ADULT SOCIAL CARE,CHOICE SUPPORT,"4,572.76",PWLD RES PLACEMENTS,RESIDENTIAL CARE,2102559794
30.09.2016,ADULT SOCIAL CARE,CHOICE SUPPORT,"4,572.76",PWLD RES PLACEMENTS,RESIDENTIAL CARE,2102570556
03.09.2016,ADULT SOCIAL CARE,CHOICE SUPPORT,"4,496.00",LD HOME CARE,SUPPORTED LIVING,2102559846
30.09.2016,ADULT SOCIAL CARE,CHOICE SUPPORT,"4,496.00",LD HOME CARE,SUPPORTED LIVING,2102570608
03.09.2016,ADULT SOCIAL CARE,CHOICE SUPPORT,"4,483.80",LD HOME CARE,SUPPORTED LIVING,2102559773
03.09.2016,ADULT SOCIAL CARE,CHOICE SUPPORT,"4,459.40",LD HOME CARE,SUPPORTED LIVING,2102559834
30.09.2016,ADULT SOCIAL CARE,CHOICE SUPPORT,"4,459.40",LD HOME CARE,SUPPORTED LIVING,2102570596
03.09.2016,ADULT SOCIAL CARE,CHOICE SUPPORT,"4,452.92",LD HOME CARE,SUPPORTED LIVING,2102559844
30.09.2016,ADULT SOCIAL CARE,CHOICE SUPPORT,"4,452.92",LD HOME CARE,SUPPORTED LIVING,2102570606
03.09.2016,ADULT SOCIAL CARE,CHOICE SUPPORT,"4,386.60",LD HOME CARE,SUPPORTED LIVING,2102559767
30.09.2016,ADULT SOCIAL CARE,CHOICE SUPPORT,"4,386.60",LD HOME CARE,SUPPORTED LIVING,2102570530
03.09.2016,ADULT SOCIAL CARE,CHOICE SUPPORT,"4,347.44", OP CARE PACKAGES,SUPPORTED LIVING,2102559813
30.09.2016,ADULT SOCIAL CARE,CHOICE SUPPORT,"4,347.44", OP CARE PACKAGES,SUPPORTED LIVING,2102570575
03.09.2016,ADULT SOCIAL CARE,CHOICE SUPPORT,"4,340.04",LD HOME CARE,SUPPORTED LIVING,2102559832
30.09.2016,ADULT SOCIAL CARE,CHOICE SUPPORT,"4,340.04",LD HOME CARE,SUPPORTED LIVING,2102570594
03.09.2016,ADULT SOCIAL CARE,CHOICE SUPPORT,"4,252.00",LD HOME CARE,SUPPORTED LIVING,2102559845
30.09.2016,ADULT SOCIAL CARE,CHOICE SUPPORT,"4,252.00",LD HOME CARE,SUPPORTED LIVING,2102570607
03.09.2016,ADULT SOCIAL CARE,CHOICE SUPPORT,"4,204.00",LD HOME CARE,SUPPORTED LIVING,2102559842
30.09.2016,ADULT SOCIAL CARE,CHOICE SUPPORT,"4,204.00",LD HOME CARE,SUPPORTED LIVING,2102570604
03.09.2016,ADULT SOCIAL CARE,CHOICE SUPPORT,"4,151.36",LD HOME CARE,SUPPORTED LIVING,2102559776
03.09.2016,ADULT SOCIAL CARE,CHOICE SUPPORT,"4,151.36",LD HOME CARE,SUPPORTED LIVING,2102559790
30.09.2016,ADULT SOCIAL CARE,CHOICE SUPPORT,"4,151.36",LD HOME CARE,SUPPORTED LIVING,2102570538
30.09.2016,ADULT SOCIAL CARE,CHOICE SUPPORT,"4,151.36",LD HOME CARE,SUPPORTED LIVING,2102570552
03.09.2016,ADULT SOCIAL CARE,CHOICE SUPPORT,"4,110.32",LD HOME CARE,SUPPORTED LIVING,2102559784
03.09.2016,ADULT SOCIAL CARE,CHOICE SUPPORT,"4,101.32",LD HOME CARE,SUPPORTED LIVING,2102559762
30.09.2016,ADULT SOCIAL CARE,CHOICE SUPPORT,"4,101.32",LD HOME CARE,SUPPORTED LIVING,2102570525
03.09.2016,ADULT SOCIAL CARE,CHOICE SUPPORT,"4,080.56",LD HOME CARE,RECOVERABLE COSTS INCL. HEALTH,2102559780
30.09.2016,ADULT SOCIAL CARE,CHOICE SUPPORT,"4,080.56",LD HOME CARE,RECOVERABLE COSTS INCL. HEALTH,2102570542
30.09.2016,ADULT SOCIAL CARE,CHOICE SUPPORT,"3,991.20",LD HOME CARE,SUPPORTED LIVING,2102570548
03.09.2016,ADULT SOCIAL CARE,CHOICE SUPPORT,"3,951.48",LD HOME CARE,SUPPORTED LIVING,2102559822
30.09.2016,ADULT SOCIAL CARE,CHOICE SUPPORT,"3,951.48",LD HOME CARE,SUPPORTED LIVING,2102570584
03.09.2016,ADULT SOCIAL CARE,CHOICE SUPPORT,"3,920.56",LD HOME CARE,SUPPORTED LIVING,2102559781
30.09.2016,ADULT SOCIAL CARE,CHOICE SUPPORT,"3,920.56",LD HOME CARE,SUPPORTED LIVING,2102570543
30.09.2016,ADULT SOCIAL CARE,CHOICE SUPPORT,"3,913.16",LD HOME CARE,SUPPORTED LIVING,2102570546
03.09.2016,ADULT SOCIAL CARE,CHOICE SUPPORT,"3,681.96",LD HOME CARE,SUPPORTED LIVING,2102559838
30.09.2016,ADULT SOCIAL CARE,CHOICE SUPPORT,"3,681.96",LD HOME CARE,SUPPORTED LIVING,2102570600
03.09.2016,ADULT SOCIAL CARE,CHOICE SUPPORT,"3,680.00",LD HOME CARE,SUPPORTED LIVING,2102559831
30.09.2016,ADULT SOCIAL CARE,CHOICE SUPPORT,"3,680.00",LD HOME CARE,SUPPORTED LIVING,2102570593
03.09.2016,ADULT SOCIAL CARE,CHOICE SUPPORT,"3,636.00",LD HOME CARE,SUPPORTED LIVING,2102559843
30.09.2016,ADULT SOCIAL CARE,CHOICE SUPPORT,"3,636.00",LD HOME CARE,SUPPORTED LIVING,2102570605
03.09.2016,ADULT SOCIAL CARE,CHOICE SUPPORT,"3,436.64",LD HOME CARE,SUPPORTED LIVING,2102559764
30.09.2016,ADULT SOCIAL CARE,CHOICE SUPPORT,"3,436.64",LD HOME CARE,SUPPORTED LIVING,2102570527
03.09.2016,ADULT SOCIAL CARE,CHOICE SUPPORT,"3,354.56",LD HOME CARE,SUPPORTED LIVING,2102559789
30.09.2016,ADULT SOCIAL CARE,CHOICE SUPPORT,"3,354.56",LD HOME CARE,SUPPORTED LIVING,2102570551
03.09.2016,ADULT SOCIAL CARE,CHOICE SUPPORT,"3,256.00",LD HOME CARE,SUPPORTED LIVING,2102559812
30.09.2016,ADULT SOCIAL CARE,CHOICE SUPPORT,"3,256.00",LD HOME CARE,SUPPORTED LIVING,2102570574
03.09.2016,ADULT SOCIAL CARE,CHOICE SUPPORT,"3,163.96",LD HOME CARE,SUPPORTED LIVING,2102559807
30.09.2016,ADULT SOCIAL CARE,CHOICE SUPPORT,"3,163.96",LD HOME CARE,SUPPORTED LIVING,2102570569
03.09.2016,ADULT SOCIAL CARE,CHOICE SUPPORT,"3,047.36",LD HOME CARE,SUPPORTED LIVING,2102559792
30.09.2016,ADULT SOCIAL CARE,CHOICE SUPPORT,"3,047.36",LD HOME CARE,SUPPORTED LIVING,2102570554
03.09.2016,ADULT SOCIAL CARE,CHOICE SUPPORT,"2,971.84",LD HOME CARE,SUPPORTED LIVING,2102559785
30.09.2016,ADULT SOCIAL CARE,CHOICE SUPPORT,"2,971.84",LD HOME CARE,SUPPORTED LIVING,2102570547
03.09.2016,ADULT SOCIAL CARE,CHOICE SUPPORT,"2,966.48",LD HOME CARE,SUPPORTED LIVING,2102559848
30.09.2016,ADULT SOCIAL CARE,CHOICE SUPPORT,"2,966.48",LD HOME CARE,SUPPORTED LIVING,2102570610
03.09.2016,ADULT SOCIAL CARE,CHOICE SUPPORT,"2,778.68",LD HOME CARE,SUPPORTED LIVING,2102559786
03.09.2016,ADULT SOCIAL CARE,CHOICE SUPPORT,"2,712.76",LD HOME CARE,SUPPORTED LIVING,2102559835
30.09.2016,ADULT SOCIAL CARE,CHOICE SUPPORT,"2,712.76",LD HOME CARE,SUPPORTED LIVING,2102570597
03.09.2016,ADULT SOCIAL CARE,CHOICE SUPPORT,"2,540.00",LD HOME CARE,SUPPORTED LIVING,2102559810
30.09.2016,ADULT SOCIAL CARE,CHOICE SUPPORT,"2,540.00",LD HOME CARE,SUPPORTED LIVING,2102570572
03.09.2016,ADULT SOCIAL CARE,CHOICE SUPPORT,"2,379.64",LD HOME CARE,SUPPORTED LIVING,2102559833
30.09.2016,ADULT SOCIAL CARE,CHOICE SUPPORT,"2,379.64",LD HOME CARE,SUPPORTED LIVING,2102570595
03.09.2016,ADULT SOCIAL CARE,CHOICE SUPPORT,"2,056.00",LD HOME CARE,RESIDENTIAL CARE,2102559824
30.09.2016,ADULT SOCIAL CARE,CHOICE SUPPORT,"2,056.00",LD HOME CARE,RESIDENTIAL CARE,2102570586
03.09.2016,ADULT SOCIAL CARE,CHOICE SUPPORT,"1,976.00",LODGINGS SCHEME,SUPPORTED LIVING,2102559778
30.09.2016,ADULT SOCIAL CARE,CHOICE SUPPORT,"1,976.00",LODGINGS SCHEME,SUPPORTED LIVING,2102570540
03.09.2016,ADULT SOCIAL CARE,CHOICE SUPPORT,"1,908.96",LD HOME CARE,SUPPORTED LIVING,2102559850
30.09.2016,ADULT SOCIAL CARE,CHOICE SUPPORT,"1,908.96",LD HOME CARE,SUPPORTED LIVING,2102570612
03.09.2016,ADULT SOCIAL CARE,CHOICE SUPPORT,"1,869.28",LD HOME CARE,SUPPORTED LIVING,2102559787
30.09.2016,ADULT SOCIAL CARE,CHOICE SUPPORT,"1,869.28",LD HOME CARE,SUPPORTED LIVING,2102570549
03.09.2016,ADULT SOCIAL CARE,CHOICE SUPPORT,"1,777.32",LD HOME CARE,SUPPORTED LIVING,2102559797
30.09.2016,ADULT SOCIAL CARE,CHOICE SUPPORT,"1,777.32",LD HOME CARE,SUPPORTED LIVING,2102570559
03.09.2016,ADULT SOCIAL CARE,CHOICE SUPPORT,"1,737.60",LD HOME CARE,SUPPORTED LIVING,2102559819
30.09.2016,ADULT SOCIAL CARE,CHOICE SUPPORT,"1,737.60",LD HOME CARE,SUPPORTED LIVING,2102570581
03.09.2016,ADULT SOCIAL CARE,CHOICE SUPPORT,"1,579.84",LD HOME CARE,SUPPORTED LIVING,2102559808
30.09.2016,ADULT SOCIAL CARE,CHOICE SUPPORT,"1,579.84",LD HOME CARE,SUPPORTED LIVING,2102570570
03.09.2016,ADULT SOCIAL CARE,CHOICE SUPPORT,"1,514.00",LD HOME CARE,SUPPORTED LIVING,2102559856
30.09.2016,ADULT SOCIAL CARE,CHOICE SUPPORT,"1,514.00",LD HOME CARE,SUPPORTED LIVING,2102570618
03.09.2016,ADULT SOCIAL CARE,CHOICE SUPPORT,"1,448.16",LD HOME CARE,SUPPORTED LIVING,2102559827
30.09.2016,ADULT SOCIAL CARE,CHOICE SUPPORT,"1,448.16",LD HOME CARE,SUPPORTED LIVING,2102570589
03.09.2016,ADULT SOCIAL CARE,CHOICE SUPPORT,"1,161.64",LD HOME CARE,SUPPORTED LIVING,2102559817
30.09.2016,ADULT SOCIAL CARE,CHOICE SUPPORT,"1,161.64",LD HOME CARE,SUPPORTED LIVING,2102570579
27.09.2016,ADULT SOCIAL CARE,CHOICE SUPPORT,"1,102.20",LD HOME CARE,EXTERNAL AGENCIES AND BODIES,2102566792
27.09.2016,ADULT SOCIAL CARE,CHOICE SUPPORT,"1,102.12",LD HOME CARE,HOMECARE - SPOT,2102566801
03.09.2016,ADULT SOCIAL CARE,CHOICE SUPPORT,997.48,ADDITIONAL ONE TO ONE,RESIDENTIAL CARE,2102559763
30.09.2016,ADULT SOCIAL CARE,CHOICE SUPPORT,997.48,ADDITIONAL ONE TO ONE,RESIDENTIAL CARE,2102570526
27.09.2016,ADULT SOCIAL CARE,CHOICE SUPPORT,955.2,LD HOME CARE,HOMECARE - SPOT,2102566806
27.09.2016,ADULT SOCIAL CARE,CHOICE SUPPORT,881.76,LD HOME CARE,EXTERNAL AGENCIES AND BODIES,2102566807
03.09.2016,ADULT SOCIAL CARE,CHOICE SUPPORT,776.16,LD HOME CARE,SUPPORTED LIVING,2102559788
30.09.2016,ADULT SOCIAL CARE,CHOICE SUPPORT,776.16,LD HOME CARE,SUPPORTED LIVING,2102570550
27.09.2016,ADULT SOCIAL CARE,CHOICE SUPPORT,734.8,LD HOME CARE,HOMECARE - SPOT,2102566803
03.09.2016,ADULT SOCIAL CARE,CHOICE SUPPORT,705.6,LD HOME CARE,SUPPORTED LIVING,2102559818
30.09.2016,ADULT SOCIAL CARE,CHOICE SUPPORT,705.6,LD HOME CARE,SUPPORTED LIVING,2102570580
27.09.2016,ADULT SOCIAL CARE,CHOICE SUPPORT,661.32,LD HOME CARE,EXTERNAL AGENCIES AND BODIES,2102566800
03.09.2016,ADULT SOCIAL CARE,CHOICE SUPPORT,660.08,LD HOME CARE,SUPPORTED LIVING,2102559774
30.09.2016,ADULT SOCIAL CARE,CHOICE SUPPORT,660.08,LD HOME CARE,SUPPORTED LIVING,2102570536
03.09.2016,ADULT SOCIAL CARE,CHOICE SUPPORT,592.44,LD HOME CARE,SUPPORTED LIVING,2102559847
30.09.2016,ADULT SOCIAL CARE,CHOICE SUPPORT,592.44,LD HOME CARE,SUPPORTED LIVING,2102570609
27.09.2016,ADULT SOCIAL CARE,CHOICE SUPPORT,587.84,PWLD DAYCARE,EXTERNAL AGENCIES AND BODIES,2102566805
27.09.2016,ADULT SOCIAL CARE,CHOICE SUPPORT,587.8,LD HOME CARE,HOMECARE - SPOT,2102566793
27.09.2016,ADULT SOCIAL CARE,CHOICE SUPPORT,587.8,LD HOME CARE,EXTERNAL AGENCIES AND BODIES,2102566794
03.09.2016,ADULT SOCIAL CARE,CHOICE SUPPORT,564.48,LD HOME CARE,SUPPORTED LIVING,2102559855
30.09.2016,ADULT SOCIAL CARE,CHOICE SUPPORT,564.48,LD HOME CARE,SUPPORTED LIVING,2102570617
27.09.2016,ADULT SOCIAL CARE,CHOICE SUPPORT,514.36,PWLD HOME CARE IND,HOMECARE - SPOT,2102566790
27.09.2016,ADULT SOCIAL CARE,CHOICE SUPPORT,514.36,LD HOME CARE,EXTERNAL AGENCIES AND BODIES,2102566802
03.09.2016,ADULT SOCIAL CARE,CHOICE SUPPORT,493.92,LD HOME CARE,SUPPORTED LIVING,2102559809
30.09.2016,ADULT SOCIAL CARE,CHOICE SUPPORT,493.92,LD HOME CARE,SUPPORTED LIVING,2102570571
03.09.2016,ADULT SOCIAL CARE,CHOICE SUPPORT,480,LD HOME CARE,SUPPORTED LIVING,2102559779
30.09.2016,ADULT SOCIAL CARE,CHOICE SUPPORT,480,LD HOME CARE,SUPPORTED LIVING,2102570541
03.09.2016,ADULT SOCIAL CARE,CHOICE SUPPORT,464.8,LD HOME CARE,SUPPORTED LIVING,2102559761
30.09.2016,ADULT SOCIAL CARE,CHOICE SUPPORT,464.8,LD HOME CARE,SUPPORTED LIVING,2102570524
27.09.2016,ADULT SOCIAL CARE,CHOICE SUPPORT,440.88,LD HOME CARE,EXTERNAL AGENCIES AND BODIES,2102566795
27.09.2016,ADULT SOCIAL CARE,CHOICE SUPPORT,440.88,PWLD HOME CARE IND,EXTERNAL AGENCIES AND BODIES,2102566799
03.09.2016,ADULT SOCIAL CARE,CHOICE SUPPORT,428.48,LD HOME CARE,SUPPORTED LIVING,2102559783
30.09.2016,ADULT SOCIAL CARE,CHOICE SUPPORT,428.48,LD HOME CARE,SUPPORTED LIVING,2102570545
27.09.2016,ADULT SOCIAL CARE,CHOICE SUPPORT,367.4,PWLD HOME CARE IND,EXTERNAL AGENCIES AND BODIES,2102566811
03.09.2016,ADULT SOCIAL CARE,CHOICE SUPPORT,352.8,LD HOME CARE,SUPPORTED LIVING,2102559775
03.09.2016,ADULT SOCIAL CARE,CHOICE SUPPORT,352.8,LD HOME CARE,SUPPORTED LIVING,2102559851
30.09.2016,ADULT SOCIAL CARE,CHOICE SUPPORT,352.8,LD HOME CARE,SUPPORTED LIVING,2102570537
30.09.2016,ADULT SOCIAL CARE,CHOICE SUPPORT,352.8,LD HOME CARE,SUPPORTED LIVING,2102570613
03.09.2016,ADULT SOCIAL CARE,CHOICE SUPPORT,-321.8,PWLD RES PLACEMENTS,"MAND STATUTORY CHARGES, RESIDENTIAL",2102559795
03.09.2016,ADULT SOCIAL CARE,CHOICE SUPPORT,-321.8,LD HOME CARE,"MAND STATUTORY CHARGES, RESIDENTIAL",2102559825
30.09.2016,ADULT SOCIAL CARE,CHOICE SUPPORT,-321.8,PWLD RES PLACEMENTS,"MAND STATUTORY CHARGES, RESIDENTIAL",2102570557
30.09.2016,ADULT SOCIAL CARE,CHOICE SUPPORT,-321.8,LD HOME CARE,"MAND STATUTORY CHARGES, RESIDENTIAL",2102570587
03.09.2016,ADULT SOCIAL CARE,CHOICE SUPPORT,-326.96,PWLD RES PLACEMENTS,"MAND STATUTORY CHARGES, RESIDENTIAL",2102559799
30.09.2016,ADULT SOCIAL CARE,CHOICE SUPPORT,-326.96,PWLD RES PLACEMENTS,"MAND STATUTORY CHARGES, RESIDENTIAL",2102570561
03.09.2016,ADULT SOCIAL CARE,CHOICE SUPPORT,-331.16,LD HOME CARE,DISCRETIONARY FLEXIBLE FEES & INCOME,2102559791
30.09.2016,ADULT SOCIAL CARE,CHOICE SUPPORT,-331.16,LD HOME CARE,DISCRETIONARY FLEXIBLE FEES & INCOME,2102570553
03.09.2016,ADULT SOCIAL CARE,CHOICE SUPPORT,-346.6,PWLD RES PLACEMENTS,"MAND STATUTORY CHARGES, RESIDENTIAL",2102559803
30.09.2016,ADULT SOCIAL CARE,CHOICE SUPPORT,-346.6,PWLD RES PLACEMENTS,"MAND STATUTORY CHARGES, RESIDENTIAL",2102570565
03.09.2016,ADULT SOCIAL CARE,CHOICE SUPPORT,-381.8,LD HOME CARE,DISCRETIONARY FLEXIBLE FEES & INCOME,2102559839
30.09.2016,ADULT SOCIAL CARE,CHOICE SUPPORT,-381.8,LD HOME CARE,DISCRETIONARY FLEXIBLE FEES & INCOME,2102570601
03.09.2016,ADULT SOCIAL CARE,THE JOHN TOWNSEND TRUST,"8,350.80",PWLD RES PLACEMENTS,RESIDENTIAL CARE,2102560091
03.09.2016,ADULT SOCIAL CARE,THE JOHN TOWNSEND TRUST,-321.8,PWLD RES PLACEMENTS,"MAND STATUTORY CHARGES, RESIDENTIAL",2102560092
03.09.2016,ADULT SOCIAL CARE,ROSEDENE NURSING HOME,"3,521.24", OP CARE PACKAGES,NURSING PLACEMENTS FEES,2102560093
30.09.2016,ADULT SOCIAL CARE,ROSEDENE NURSING HOME,"3,521.24", OP CARE PACKAGES,NURSING PLACEMENTS FEES,2102570837
03.09.2016,ADULT SOCIAL CARE,ROSEDENE NURSING HOME,-540.8, OP CARE PACKAGES,"MAND STATUTORY CHARGES, NURSING",2102560094
30.09.2016,ADULT SOCIAL CARE,ROSEDENE NURSING HOME,-540.8, OP CARE PACKAGES,"MAND STATUTORY CHARGES, NURSING",2102570838
03.09.2016,ADULT SOCIAL CARE,HF TRUST LTD,"4,073.80",LD HOME CARE,SUPPORTED LIVING,2102560095
30.09.2016,ADULT SOCIAL CARE,HF TRUST LTD,"4,073.80",LD HOME CARE,SUPPORTED LIVING,2102570839
08.09.2016,ADULT SOCIAL CARE,HF TRUST LTD,"1,278.09",PWLD DAYCARE,DAYCARE,2102561226
03.09.2016,ADULT SOCIAL CARE,CRAEGMOOR HEALTHCARE,"5,897.24",PWLD RES PLACEMENTS,RESIDENTIAL CARE,2102560096
30.09.2016,ADULT SOCIAL CARE,CRAEGMOOR HEALTHCARE,"5,897.24",PWLD RES PLACEMENTS,RESIDENTIAL CARE,2102570840
03.09.2016,ADULT SOCIAL CARE,CRAEGMOOR HEALTHCARE,-372.6,PWLD RES PLACEMENTS,"MAND STATUTORY CHARGES, RESIDENTIAL",2102560097
30.09.2016,ADULT SOCIAL CARE,CRAEGMOOR HEALTHCARE,-372.6,PWLD RES PLACEMENTS,"MAND STATUTORY CHARGES, RESIDENTIAL",2102570841
03.09.2016,ADULT SOCIAL CARE,KEYRING-LIVING SUPPORT NETWORKS LTD,"7,779.24",LD HOME CARE,SUPPORTED LIVING,2102560098
03.09.2016,ADULT SOCIAL CARE,KEYRING-LIVING SUPPORT NETWORKS LTD,"7,779.24",LD HOME CARE,SUPPORTED LIVING,2102560099
30.09.2016,ADULT SOCIAL CARE,KEYRING-LIVING SUPPORT NETWORKS LTD,"7,779.24",LD HOME CARE,SUPPORTED LIVING,2102570842
30.09.2016,ADULT SOCIAL CARE,KEYRING-LIVING SUPPORT NETWORKS LTD,"7,779.24",LD HOME CARE,SUPPORTED LIVING,2102570843
27.09.2016,ADULT SOCIAL CARE,KEYRING-LIVING SUPPORT NETWORKS LTD,952.8,PWLD DAYCARE,EXTERNAL AGENCIES AND BODIES,2102566813
27.09.2016,ADULT SOCIAL CARE,KEYRING-LIVING SUPPORT NETWORKS LTD,508.16,PWLD HOME CARE IND,EXTERNAL AGENCIES AND BODIES,2102566812
30.09.2016,ADULT SOCIAL CARE,BEDE CAFE PROJECT,"2,920.00",PWLD DAYCARE,DAYCARE,2102569193
30.09.2016,ADULT SOCIAL CARE,BEDE CAFE PROJECT,"2,920.00",PWLD DAYCARE,DAYCARE,2102569195
30.09.2016,ADULT SOCIAL CARE,BEDE CAFE PROJECT,"2,336.00",PWLD DAYCARE,DAYCARE,2102569196
30.09.2016,ADULT SOCIAL CARE,BEDE CAFE PROJECT,"1,300.00",PWLD DAYCARE,DAYCARE,2102569179
30.09.2016,ADULT SOCIAL CARE,BEDE CAFE PROJECT,"1,168.00",PWLD DAYCARE,DAYCARE,2102569181
30.09.2016,ADULT SOCIAL CARE,BEDE CAFE PROJECT,"1,040.00",PWLD DAYCARE,OTHER PAYMENTS FOR CLIENTS,2102569178
30.09.2016,ADULT SOCIAL CARE,BEDE CAFE PROJECT,"1,040.00",PWLD DAYCARE,DAYCARE,2102569180
30.09.2016,ADULT SOCIAL CARE,BEDE CAFE PROJECT,"1,040.00",PWLD DAYCARE,DAYCARE,2102569187
30.09.2016,ADULT SOCIAL CARE,BEDE CAFE PROJECT,"1,040.00",PWLD DAYCARE,DAYCARE,2102569188
30.09.2016,ADULT SOCIAL CARE,BEDE CAFE PROJECT,"1,040.00",PWLD DAYCARE,DAYCARE,2102569191
30.09.2016,ADULT SOCIAL CARE,BEDE CAFE PROJECT,"1,040.00",PWLD DAYCARE,DAYCARE,2102569192
30.09.2016,ADULT SOCIAL CARE,BEDE CAFE PROJECT,"1,040.00",PWLD DAYCARE,DAYCARE,2102569197
30.09.2016,ADULT SOCIAL CARE,BEDE CAFE PROJECT,"1,040.00",PWLD DAYCARE,DAYCARE,2102569202
30.09.2016,ADULT SOCIAL CARE,BEDE CAFE PROJECT,780,PWLD DAYCARE,DAYCARE,2102569182
30.09.2016,ADULT SOCIAL CARE,BEDE CAFE PROJECT,780,PWLD DAYCARE,DAYCARE,2102569184
30.09.2016,ADULT SOCIAL CARE,BEDE CAFE PROJECT,780,PWLD DAYCARE,DAYCARE,2102569199
30.09.2016,ADULT SOCIAL CARE,BEDE CAFE PROJECT,780,PWLD DAYCARE,DAYCARE,2102569205
30.09.2016,ADULT SOCIAL CARE,BEDE CAFE PROJECT,585,PWLD DAYCARE,DAYCARE,2102569217
30.09.2016,ADULT SOCIAL CARE,BEDE CAFE PROJECT,520,PWLD DAYCARE,OTHER PAYMENTS FOR CLIENTS,2102569183
30.09.2016,ADULT SOCIAL CARE,BEDE CAFE PROJECT,520,PWLD DAYCARE,DAYCARE,2102569190
30.09.2016,ADULT SOCIAL CARE,BEDE CAFE PROJECT,520,PWLD DAYCARE,DAYCARE,2102569194
30.09.2016,ADULT SOCIAL CARE,BEDE CAFE PROJECT,520,PWLD DAYCARE,DAYCARE,2102569198
30.09.2016,ADULT SOCIAL CARE,BEDE CAFE PROJECT,520,PWLD DAYCARE,DAYCARE,2102569201
30.09.2016,ADULT SOCIAL CARE,BEDE CAFE PROJECT,520,PWLD DAYCARE,DAYCARE,2102569203
30.09.2016,ADULT SOCIAL CARE,BEDE CAFE PROJECT,448,PWLD DAYCARE,DAYCARE,2102569214
30.09.2016,ADULT SOCIAL CARE,BEDE CAFE PROJECT,420,PWLD DAYCARE,DAYCARE,2102569204
30.09.2016,ADULT SOCIAL CARE,BEDE CAFE PROJECT,260,PWLD DAYCARE,DAYCARE,2102569185
30.09.2016,ADULT SOCIAL CARE,BEDE CAFE PROJECT,260,PWLD DAYCARE,OTHER PAYMENTS FOR CLIENTS,2102569186
30.09.2016,ADULT SOCIAL CARE,BEDE CAFE PROJECT,260,PWLD DAYCARE,DAYCARE,2102569200
30.09.2016,ADULT SOCIAL CARE,BEDE CAFE PROJECT,260,PWLD DAYCARE,DAYCARE,2102569218
03.09.2016,ADULT SOCIAL CARE,CHOICE LTD,"8,403.92",PWLD RES PLACEMENTS,RESIDENTIAL CARE,2102560102
30.09.2016,ADULT SOCIAL CARE,CHOICE LTD,"8,403.92",PWLD RES PLACEMENTS,RESIDENTIAL CARE,2102570847
03.09.2016,ADULT SOCIAL CARE,CHOICE LTD,"8,059.80",PWLD RES PLACEMENTS,RESIDENTIAL CARE,2102560106
30.09.2016,ADULT SOCIAL CARE,CHOICE LTD,"8,059.80",PWLD RES PLACEMENTS,RESIDENTIAL CARE,2102570851
03.09.2016,ADULT SOCIAL CARE,CHOICE LTD,"8,017.48",CHOICE SUPPORTED LIVING,RESIDENTIAL CARE,2102560108
30.09.2016,ADULT SOCIAL CARE,CHOICE LTD,"8,017.48",CHOICE SUPPORTED LIVING,RESIDENTIAL CARE,2102570853
03.09.2016,ADULT SOCIAL CARE,CHOICE LTD,"7,962.60",PWLD RES PLACEMENTS,RESIDENTIAL CARE,2102560104
30.09.2016,ADULT SOCIAL CARE,CHOICE LTD,"7,962.60",PWLD RES PLACEMENTS,RESIDENTIAL CARE,2102570849
03.09.2016,ADULT SOCIAL CARE,CHOICE LTD,"7,760.84",PWLD RES PLACEMENTS,RESIDENTIAL CARE,2102560100
30.09.2016,ADULT SOCIAL CARE,CHOICE LTD,"7,760.84",PWLD RES PLACEMENTS,RESIDENTIAL CARE,2102570845
03.09.2016,ADULT SOCIAL CARE,CHOICE LTD,-321.8,PWLD RES PLACEMENTS,"MAND STATUTORY CHARGES, RESIDENTIAL",2102560105
03.09.2016,ADULT SOCIAL CARE,CHOICE LTD,-321.8,PWLD RES PLACEMENTS,"MAND STATUTORY CHARGES, RESIDENTIAL",2102560107
03.09.2016,ADULT SOCIAL CARE,CHOICE LTD,-321.8,CHOICE SUPPORTED LIVING,"MAND STATUTORY CHARGES, RESIDENTIAL",2102560109
30.09.2016,ADULT SOCIAL CARE,CHOICE LTD,-321.8,PWLD RES PLACEMENTS,"MAND STATUTORY CHARGES, RESIDENTIAL",2102570850
30.09.2016,ADULT SOCIAL CARE,CHOICE LTD,-321.8,PWLD RES PLACEMENTS,"MAND STATUTORY CHARGES, RESIDENTIAL",2102570852
30.09.2016,ADULT SOCIAL CARE,CHOICE LTD,-321.8,CHOICE SUPPORTED LIVING,"MAND STATUTORY CHARGES, RESIDENTIAL",2102570854
30.09.2016,ADULT SOCIAL CARE,CHOICE LTD,-332.29,PWLD RES PLACEMENTS,"MAND STATUTORY CHARGES, RESIDENTIAL",2102570844
30.09.2016,ADULT SOCIAL CARE,CHOICE LTD,-344.6,PWLD RES PLACEMENTS,"MAND STATUTORY CHARGES, RESIDENTIAL",2102570848
03.09.2016,ADULT SOCIAL CARE,CHOICE LTD,-400.6,PWLD RES PLACEMENTS,"MAND STATUTORY CHARGES, RESIDENTIAL",2102560101
30.09.2016,ADULT SOCIAL CARE,CHOICE LTD,-400.6,PWLD RES PLACEMENTS,"MAND STATUTORY CHARGES, RESIDENTIAL",2102570846
06.09.2016,ADULT SOCIAL CARE,THAMES WATER UTILITIES LTD,305.11,MH NORTH,WATER,5902210650
03.09.2016,ADULT SOCIAL CARE,CASTLEBAR HEALTHCARE LTD,"2,484.36",OP - NURSING,NURSING PLACEMENTS FEES,2102560113
03.09.2016,ADULT SOCIAL CARE,CASTLEBAR HEALTHCARE LTD,"2,484.36",OP - NURSING,NURSING PLACEMENTS FEES,2102560115
03.09.2016,ADULT SOCIAL CARE,CASTLEBAR HEALTHCARE LTD,"2,484.36",OP - NURSING,NURSING PLACEMENTS FEES,2102560116
03.09.2016,ADULT SOCIAL CARE,CASTLEBAR HEALTHCARE LTD,"2,341.16", OP CARE PACKAGES,NURSING PLACEMENTS FEES,2102560112
03.09.2016,ADULT SOCIAL CARE,CASTLEBAR HEALTHCARE LTD,"2,328.36", OP CARE PACKAGES,NURSING PLACEMENTS FEES,2102560114
03.09.2016,ADULT SOCIAL CARE,THE ELMS (SELBH),"3,220.00",OP - RESIDENTIAL - DEMENTIA,RESIDENTIAL CARE,2102560125
30.09.2016,ADULT SOCIAL CARE,THE ELMS (SELBH),"3,220.00",OP - RESIDENTIAL - DEMENTIA,RESIDENTIAL CARE,2102570868
03.09.2016,ADULT SOCIAL CARE,THE ELMS (SELBH),"2,880.00",OP - RESIDENTIAL - DEMENTIA,RESIDENTIAL CARE,2102560132
30.09.2016,ADULT SOCIAL CARE,THE ELMS (SELBH),"2,880.00",OP - RESIDENTIAL - DEMENTIA,RESIDENTIAL CARE,2102570875
03.09.2016,ADULT SOCIAL CARE,THE ELMS (SELBH),"2,620.80",OP - RESIDENTIAL - DEMENTIA,RESIDENTIAL CARE,2102560120
30.09.2016,ADULT SOCIAL CARE,THE ELMS (SELBH),"2,620.80",OP - RESIDENTIAL - DEMENTIA,RESIDENTIAL CARE,2102570863
03.09.2016,ADULT SOCIAL CARE,THE ELMS (SELBH),"2,520.00",OP - RESIDENTIAL,RESIDENTIAL CARE,2102560124
30.09.2016,ADULT SOCIAL CARE,THE ELMS (SELBH),"2,520.00",OP - RESIDENTIAL,RESIDENTIAL CARE,2102570867
03.09.2016,ADULT SOCIAL CARE,THE ELMS (SELBH),"2,496.00", OP CARE PACKAGES,RESIDENTIAL CARE,2102560126
30.09.2016,ADULT SOCIAL CARE,THE ELMS (SELBH),"2,496.00", OP CARE PACKAGES,RESIDENTIAL CARE,2102570869
03.09.2016,ADULT SOCIAL CARE,THE ELMS (SELBH),"2,453.24",OP - RESIDENTIAL - DEMENTIA,RESIDENTIAL CARE,2102560117
30.09.2016,ADULT SOCIAL CARE,THE ELMS (SELBH),"2,453.24",OP - RESIDENTIAL - DEMENTIA,RESIDENTIAL CARE,2102570860
03.09.2016,ADULT SOCIAL CARE,THE ELMS (SELBH),"2,288.92",OP - RESIDENTIAL - DEMENTIA,RESIDENTIAL CARE,2102560128
03.09.2016,ADULT SOCIAL CARE,THE ELMS (SELBH),"2,288.92", OP CARE PACKAGES,RESIDENTIAL CARE,2102560130
30.09.2016,ADULT SOCIAL CARE,THE ELMS (SELBH),"2,288.92",OP - RESIDENTIAL - DEMENTIA,RESIDENTIAL CARE,2102570871
30.09.2016,ADULT SOCIAL CARE,THE ELMS (SELBH),"2,288.92", OP CARE PACKAGES,RESIDENTIAL CARE,2102570873
03.09.2016,ADULT SOCIAL CARE,THE ELMS (SELBH),"2,184.84", OP CARE PACKAGES,RESIDENTIAL CARE,2102560122
30.09.2016,ADULT SOCIAL CARE,THE ELMS (SELBH),"2,184.84", OP CARE PACKAGES,RESIDENTIAL CARE,2102570865
03.09.2016,ADULT SOCIAL CARE,THE ELMS (SELBH),"2,109.36", OP CARE PACKAGES,RESIDENTIAL CARE,2102560118
30.09.2016,ADULT SOCIAL CARE,THE ELMS (SELBH),"2,109.36", OP CARE PACKAGES,RESIDENTIAL CARE,2102570861
03.09.2016,ADULT SOCIAL CARE,THE ELMS (SELBH),-518.88, OP CARE PACKAGES,"MAND STATUTORY CHARGES, RESIDENTIAL",2102560127
30.09.2016,ADULT SOCIAL CARE,THE ELMS (SELBH),-518.88, OP CARE PACKAGES,"MAND STATUTORY CHARGES, RESIDENTIAL",2102570870
03.09.2016,ADULT SOCIAL CARE,THE ELMS (SELBH),-549.8, OP CARE PACKAGES,"MAND STATUTORY CHARGES, RESIDENTIAL",2102560119
30.09.2016,ADULT SOCIAL CARE,THE ELMS (SELBH),-549.8, OP CARE PACKAGES,"MAND STATUTORY CHARGES, RESIDENTIAL",2102570862
03.09.2016,ADULT SOCIAL CARE,THE ELMS (SELBH),-573.24,OP - RESIDENTIAL - DEMENTIA,"MAND STATUTORY CHARGES, RESIDENTIAL",2102560121
30.09.2016,ADULT SOCIAL CARE,THE ELMS (SELBH),-573.24,OP - RESIDENTIAL - DEMENTIA,"MAND STATUTORY CHARGES, RESIDENTIAL",2102570864
03.09.2016,ADULT SOCIAL CARE,THE ELMS (SELBH),-651, OP CARE PACKAGES,"MAND STATUTORY CHARGES, RESIDENTIAL",2102560131
30.09.2016,ADULT SOCIAL CARE,THE ELMS (SELBH),-651, OP CARE PACKAGES,"MAND STATUTORY CHARGES, RESIDENTIAL",2102570874
03.09.2016,ADULT SOCIAL CARE,THE ELMS (SELBH),-838.76,OP - RESIDENTIAL - DEMENTIA,"MAND STATUTORY CHARGES, RESIDENTIAL",2102560129
30.09.2016,ADULT SOCIAL CARE,THE ELMS (SELBH),-838.76,OP - RESIDENTIAL - DEMENTIA,"MAND STATUTORY CHARGES, RESIDENTIAL",2102570872
03.09.2016,ADULT SOCIAL CARE,THE ELMS (SELBH),"-1,033.24",OP - RESIDENTIAL - DEMENTIA,"MAND STATUTORY CHARGES, RESIDENTIAL",2102560133
30.09.2016,ADULT SOCIAL CARE,THE ELMS (SELBH),"-1,033.24",OP - RESIDENTIAL - DEMENTIA,"MAND STATUTORY CHARGES, RESIDENTIAL",2102570876
03.09.2016,ADULT SOCIAL CARE,THE ELMS (SELBH),"-1,423.76", OP CARE PACKAGES,"MAND STATUTORY CHARGES, RESIDENTIAL",2102560123
30.09.2016,ADULT SOCIAL CARE,THE ELMS (SELBH),"-1,423.76", OP CARE PACKAGES,"MAND STATUTORY CHARGES, RESIDENTIAL",2102570866
02.09.2016,ADULT SOCIAL CARE,GOLDSBOROUGH HOMECARE & NURSING,"1,895.40", OP CARE PACKAGES,PERSONALISATION PAYMENTS,2102557691
02.09.2016,ADULT SOCIAL CARE,GOLDSBOROUGH HOMECARE & NURSING,690.32,PD DIRECT PAYMENTS,PERSONALISATION PAYMENTS,2102557692
02.09.2016,ADULT SOCIAL CARE,GOLDSBOROUGH HOMECARE & NURSING,655.2,PD DIRECT PAYMENTS,PERSONALISATION PAYMENTS,2102557690
03.09.2016,ADULT SOCIAL CARE,BUPA CARE (PRIORY MEWS),"2,058.80", OP CARE PACKAGES,RESIDENTIAL CARE,2102560134
30.09.2016,ADULT SOCIAL CARE,BUPA CARE (PRIORY MEWS),"2,058.80", OP CARE PACKAGES,RESIDENTIAL CARE,2102570877
03.09.2016,ADULT SOCIAL CARE,BUPA CARE (PRIORY MEWS),-673.32, OP CARE PACKAGES,"MAND STATUTORY CHARGES, RESIDENTIAL",2102560135
30.09.2016,ADULT SOCIAL CARE,BUPA CARE (PRIORY MEWS),-673.32, OP CARE PACKAGES,"MAND STATUTORY CHARGES, RESIDENTIAL",2102570878
13.09.2016,ADULT SOCIAL CARE,THAMES REACH,"24,039.50",SP SUPPORTING PEOPLE,RECOVERABLE COSTS INCL. HEALTH,2102562489
19.09.2016,ADULT SOCIAL CARE,ACTION ON ADDICTION LTD,"3,360.21",DRUGS & ALCOHOL REHABITATION PLACES,PLACEMENTS - REHAB,2102564546
03.09.2016,ADULT SOCIAL CARE,ST AUBYNS NURSING HOME,"2,095.68", OP CARE PACKAGES,NURSING PLACEMENTS FEES,2102560137
30.09.2016,ADULT SOCIAL CARE,ST AUBYNS NURSING HOME,"2,095.68", OP CARE PACKAGES,NURSING PLACEMENTS FEES,2102570879
03.09.2016,ADULT SOCIAL CARE,ST AUBYNS NURSING HOME,-521.32, OP CARE PACKAGES,"MAND STATUTORY CHARGES, NURSING",2102560138
30.09.2016,ADULT SOCIAL CARE,ST AUBYNS NURSING HOME,-521.32, OP CARE PACKAGES,"MAND STATUTORY CHARGES, NURSING",2102570880
03.09.2016,ADULT SOCIAL CARE,PARKVIEW NURSING HOME,"7,169.68", OP CARE PACKAGES,NURSING PLACEMENTS FEES,2102560160
30.09.2016,ADULT SOCIAL CARE,PARKVIEW NURSING HOME,"7,169.68", OP CARE PACKAGES,NURSING PLACEMENTS FEES,2102570903
03.09.2016,ADULT SOCIAL CARE,PARKVIEW NURSING HOME,"2,628.56",OP - NURSING,NURSING PLACEMENTS FEES,2102560141
03.09.2016,ADULT SOCIAL CARE,PARKVIEW NURSING HOME,"2,628.56",OP - NURSING,NURSING PLACEMENTS FEES,2102560158
30.09.2016,ADULT SOCIAL CARE,PARKVIEW NURSING HOME,"2,628.56",OP - NURSING,NURSING PLACEMENTS FEES,2102570883
30.09.2016,ADULT SOCIAL CARE,PARKVIEW NURSING HOME,"2,628.56",OP - NURSING,NURSING PLACEMENTS FEES,2102570901
03.09.2016,ADULT SOCIAL CARE,PARKVIEW NURSING HOME,"2,556.44",PD NURSING,NURSING PLACEMENTS FEES,2102560147
03.09.2016,ADULT SOCIAL CARE,PARKVIEW NURSING HOME,"2,552.00",OP - NURSING,NURSING PLACEMENTS FEES,2102560143
30.09.2016,ADULT SOCIAL CARE,PARKVIEW NURSING HOME,"2,552.00",OP - NURSING,NURSING PLACEMENTS FEES,2102570885
30.09.2016,ADULT SOCIAL CARE,PARKVIEW NURSING HOME,"2,552.00",OP - NURSING,NURSING PLACEMENTS FEES,2102570898
03.09.2016,ADULT SOCIAL CARE,PARKVIEW NURSING HOME,"2,391.56", OP CARE PACKAGES,NURSING PLACEMENTS FEES,2102560150
30.09.2016,ADULT SOCIAL CARE,PARKVIEW NURSING HOME,"2,391.56", OP CARE PACKAGES,NURSING PLACEMENTS FEES,2102570892
03.09.2016,ADULT SOCIAL CARE,PARKVIEW NURSING HOME,"2,384.76",OP - NURSING,NURSING PLACEMENTS FEES,2102560154
30.09.2016,ADULT SOCIAL CARE,PARKVIEW NURSING HOME,"2,384.76",OP - NURSING,NURSING PLACEMENTS FEES,2102570896
03.09.2016,ADULT SOCIAL CARE,PARKVIEW NURSING HOME,"2,380.20",OP - NURSING,NURSING PLACEMENTS FEES,2102560140
30.09.2016,ADULT SOCIAL CARE,PARKVIEW NURSING HOME,"2,380.20",OP - NURSING,NURSING PLACEMENTS FEES,2102570882
30.09.2016,ADULT SOCIAL CARE,PARKVIEW NURSING HOME,"2,369.71",OP - NURSING,NURSING PLACEMENTS FEES,2102570881
03.09.2016,ADULT SOCIAL CARE,PARKVIEW NURSING HOME,"2,355.68", OP CARE PACKAGES,NURSING PLACEMENTS FEES,2102560142
03.09.2016,ADULT SOCIAL CARE,PARKVIEW NURSING HOME,"2,355.68", OP CARE PACKAGES,NURSING PLACEMENTS FEES,2102560148
30.09.2016,ADULT SOCIAL CARE,PARKVIEW NURSING HOME,"2,355.68", OP CARE PACKAGES,NURSING PLACEMENTS FEES,2102570884
30.09.2016,ADULT SOCIAL CARE,PARKVIEW NURSING HOME,"2,355.68", OP CARE PACKAGES,NURSING PLACEMENTS FEES,2102570890
03.09.2016,ADULT SOCIAL CARE,PARKVIEW NURSING HOME,"2,335.28", OP CARE PACKAGES,NURSING PLACEMENTS FEES,2102560146
30.09.2016,ADULT SOCIAL CARE,PARKVIEW NURSING HOME,"2,335.28", OP CARE PACKAGES,NURSING PLACEMENTS FEES,2102570888
03.09.2016,ADULT SOCIAL CARE,PARKVIEW NURSING HOME,"2,288.92", OP CARE PACKAGES,RESIDENTIAL CARE,2102560152
30.09.2016,ADULT SOCIAL CARE,PARKVIEW NURSING HOME,"2,288.92", OP CARE PACKAGES,RESIDENTIAL CARE,2102570894
03.09.2016,ADULT SOCIAL CARE,PARKVIEW NURSING HOME,"2,287.08",PD NURSING,NURSING PLACEMENTS FEES,2102560159
30.09.2016,ADULT SOCIAL CARE,PARKVIEW NURSING HOME,"2,287.08",PD NURSING,NURSING PLACEMENTS FEES,2102570902
03.09.2016,ADULT SOCIAL CARE,PARKVIEW NURSING HOME,"2,144.80",OP - NURSING,NURSING PLACEMENTS FEES,2102560145
03.09.2016,ADULT SOCIAL CARE,PARKVIEW NURSING HOME,"2,144.80", OP CARE PACKAGES,NURSING PLACEMENTS FEES,2102560162
30.09.2016,ADULT SOCIAL CARE,PARKVIEW NURSING HOME,"2,144.80",OP - NURSING,NURSING PLACEMENTS FEES,2102570887
30.09.2016,ADULT SOCIAL CARE,PARKVIEW NURSING HOME,"2,144.80", OP CARE PACKAGES,NURSING PLACEMENTS FEES,2102570905
03.09.2016,ADULT SOCIAL CARE,PARKVIEW NURSING HOME,"2,140.20",OP - NURSING,NURSING PLACEMENTS FEES,2102560156
30.09.2016,ADULT SOCIAL CARE,PARKVIEW NURSING HOME,"2,140.20",OP - NURSING,NURSING PLACEMENTS FEES,2102570899
03.09.2016,ADULT SOCIAL CARE,PARKVIEW NURSING HOME,"2,095.68", OP CARE PACKAGES,NURSING PLACEMENTS FEES,2102560149
30.09.2016,ADULT SOCIAL CARE,PARKVIEW NURSING HOME,"2,095.68", OP CARE PACKAGES,NURSING PLACEMENTS FEES,2102570891
03.09.2016,ADULT SOCIAL CARE,PARKVIEW NURSING HOME,"1,927.52",PD NURSING,NURSING PLACEMENTS FEES,2102560151
30.09.2016,ADULT SOCIAL CARE,PARKVIEW NURSING HOME,"1,927.52",PD NURSING,NURSING PLACEMENTS FEES,2102570893
03.09.2016,ADULT SOCIAL CARE,PARKVIEW NURSING HOME,-511.52, OP CARE PACKAGES,"MAND STATUTORY CHARGES, NURSING",2102560163
30.09.2016,ADULT SOCIAL CARE,PARKVIEW NURSING HOME,-511.52, OP CARE PACKAGES,"MAND STATUTORY CHARGES, NURSING",2102570906
03.09.2016,ADULT SOCIAL CARE,PARKVIEW NURSING HOME,-517.64, OP CARE PACKAGES,"MAND STATUTORY CHARGES, NURSING",2102560161
30.09.2016,ADULT SOCIAL CARE,PARKVIEW NURSING HOME,-517.64, OP CARE PACKAGES,"MAND STATUTORY CHARGES, NURSING",2102570904
03.09.2016,ADULT SOCIAL CARE,PARKVIEW NURSING HOME,-522.8,OP - NURSING,"MAND STATUTORY CHARGES, NURSING",2102560155
03.09.2016,ADULT SOCIAL CARE,PARKVIEW NURSING HOME,-522.8,OP - NURSING,"MAND STATUTORY CHARGES, NURSING",2102560157
30.09.2016,ADULT SOCIAL CARE,PARKVIEW NURSING HOME,-522.8,OP - NURSING,"MAND STATUTORY CHARGES, NURSING",2102570897
30.09.2016,ADULT SOCIAL CARE,PARKVIEW NURSING HOME,-522.8,OP - NURSING,"MAND STATUTORY CHARGES, NURSING",2102570900
03.09.2016,ADULT SOCIAL CARE,PARKVIEW NURSING HOME,-946.56, OP CARE PACKAGES,"MAND STATUTORY CHARGES, RESIDENTIAL",2102560153
30.09.2016,ADULT SOCIAL CARE,PARKVIEW NURSING HOME,-946.56, OP CARE PACKAGES,"MAND STATUTORY CHARGES, RESIDENTIAL",2102570895
03.09.2016,ADULT SOCIAL CARE,PARKVIEW NURSING HOME,"-1,079.16",OP - NURSING,"MAND STATUTORY CHARGES, NURSING",2102560144
30.09.2016,ADULT SOCIAL CARE,PARKVIEW NURSING HOME,"-1,079.16",OP - NURSING,"MAND STATUTORY CHARGES, NURSING",2102570886
03.09.2016,ADULT SOCIAL CARE,PARKVIEW NURSING HOME,"-4,211.40",OP - NURSING,"MAND STATUTORY CHARGES, NURSING",2102560139
30.09.2016,ADULT SOCIAL CARE,PARKVIEW NURSING HOME,"-4,565.07",PD NURSING,NURSING PLACEMENTS FEES,2102570889
03.09.2016,ADULT SOCIAL CARE,THE REGARD PARTNERSHIP,"17,517.48",PWLD RES PLACEMENTS,RESIDENTIAL CARE,2102560200
30.09.2016,ADULT SOCIAL CARE,THE REGARD PARTNERSHIP,"17,517.48",PWLD RES PLACEMENTS,RESIDENTIAL CARE,2102570940
03.09.2016,ADULT SOCIAL CARE,THE REGARD PARTNERSHIP,"8,926.40",PWLD RES PLACEMENTS,RESIDENTIAL CARE,2102560198
30.09.2016,ADULT SOCIAL CARE,THE REGARD PARTNERSHIP,"8,926.40",PWLD RES PLACEMENTS,RESIDENTIAL CARE,2102570938
03.09.2016,ADULT SOCIAL CARE,THE REGARD PARTNERSHIP,"7,794.64",LD HOME CARE,SUPPORTED LIVING,2102560173
30.09.2016,ADULT SOCIAL CARE,THE REGARD PARTNERSHIP,"7,794.64",LD HOME CARE,SUPPORTED LIVING,2102570913
03.09.2016,ADULT SOCIAL CARE,THE REGARD PARTNERSHIP,"7,272.00",PWLD RES PLACEMENTS,RESIDENTIAL CARE,2102560191
30.09.2016,ADULT SOCIAL CARE,THE REGARD PARTNERSHIP,"7,272.00",PWLD RES PLACEMENTS,RESIDENTIAL CARE,2102570931
03.09.2016,ADULT SOCIAL CARE,THE REGARD PARTNERSHIP,"7,070.00",PWLD RES PLACEMENTS,RESIDENTIAL CARE,2102560169
30.09.2016,ADULT SOCIAL CARE,THE REGARD PARTNERSHIP,"7,070.00",PWLD RES PLACEMENTS,RESIDENTIAL CARE,2102570909
03.09.2016,ADULT SOCIAL CARE,THE REGARD PARTNERSHIP,"6,766.84",PWLD RES PLACEMENTS,RESIDENTIAL CARE,2102560189
30.09.2016,ADULT SOCIAL CARE,THE REGARD PARTNERSHIP,"6,766.84",PWLD RES PLACEMENTS,RESIDENTIAL CARE,2102570929
03.09.2016,ADULT SOCIAL CARE,THE REGARD PARTNERSHIP,"6,567.84",PWLD RES PLACEMENTS,RESIDENTIAL CARE,2102560196
30.09.2016,ADULT SOCIAL CARE,THE REGARD PARTNERSHIP,"6,567.84",PWLD RES PLACEMENTS,RESIDENTIAL CARE,2102570936
03.09.2016,ADULT SOCIAL CARE,THE REGARD PARTNERSHIP,"6,356.00",PWLD RESPITE RESIDENTIAL,RESIDENTIAL CARE,2102560188
30.09.2016,ADULT SOCIAL CARE,THE REGARD PARTNERSHIP,"6,356.00",PWLD RESPITE RESIDENTIAL,RESIDENTIAL CARE,2102570928
03.09.2016,ADULT SOCIAL CARE,THE REGARD PARTNERSHIP,"5,825.20",PD HOME CARE,SUPPORTED LIVING,2102560194
30.09.2016,ADULT SOCIAL CARE,THE REGARD PARTNERSHIP,"5,825.20",PD HOME CARE,SUPPORTED LIVING,2102570934
03.09.2016,ADULT SOCIAL CARE,THE REGARD PARTNERSHIP,"4,852.84",PWLD RES PLACEMENTS,RESIDENTIAL CARE,2102560167
30.09.2016,ADULT SOCIAL CARE,THE REGARD PARTNERSHIP,"4,852.84",PWLD RES PLACEMENTS,RESIDENTIAL CARE,2102570907
03.09.2016,ADULT SOCIAL CARE,THE REGARD PARTNERSHIP,"4,440.00",LD HOME CARE,SUPPORTED LIVING,2102560171
30.09.2016,ADULT SOCIAL CARE,THE REGARD PARTNERSHIP,"4,440.00",LD HOME CARE,SUPPORTED LIVING,2102570911
03.09.2016,ADULT SOCIAL CARE,THE REGARD PARTNERSHIP,"4,188.28",LD HOME CARE,SUPPORTED LIVING,2102560184
30.09.2016,ADULT SOCIAL CARE,THE REGARD PARTNERSHIP,"4,188.28",LD HOME CARE,SUPPORTED LIVING,2102570924
03.09.2016,ADULT SOCIAL CARE,THE REGARD PARTNERSHIP,"4,056.76",PD HOME CARE,SUPPORTED LIVING,2102560182
30.09.2016,ADULT SOCIAL CARE,THE REGARD PARTNERSHIP,"4,056.76",PD HOME CARE,SUPPORTED LIVING,2102570922
03.09.2016,ADULT SOCIAL CARE,THE REGARD PARTNERSHIP,"4,040.00",PD HOME CARE,SUPPORTED LIVING,2102560193
30.09.2016,ADULT SOCIAL CARE,THE REGARD PARTNERSHIP,"4,040.00",PD HOME CARE,SUPPORTED LIVING,2102570933
03.09.2016,ADULT SOCIAL CARE,THE REGARD PARTNERSHIP,"3,791.64",LD HOME CARE,SUPPORTED LIVING,2102560180
30.09.2016,ADULT SOCIAL CARE,THE REGARD PARTNERSHIP,"3,791.64",LD HOME CARE,SUPPORTED LIVING,2102570920
03.09.2016,ADULT SOCIAL CARE,THE REGARD PARTNERSHIP,"3,260.00",PD HOME CARE,SUPPORTED LIVING,2102560186
30.09.2016,ADULT SOCIAL CARE,THE REGARD PARTNERSHIP,"3,260.00",PD HOME CARE,SUPPORTED LIVING,2102570926
03.09.2016,ADULT SOCIAL CARE,THE REGARD PARTNERSHIP,"3,102.20",PD HOME CARE,SUPPORTED LIVING,2102560179
30.09.2016,ADULT SOCIAL CARE,THE REGARD PARTNERSHIP,"3,102.20",PD HOME CARE,SUPPORTED LIVING,2102570919
03.09.2016,ADULT SOCIAL CARE,THE REGARD PARTNERSHIP,"2,920.96",LD HOME CARE,SUPPORTED LIVING,2102560177
30.09.2016,ADULT SOCIAL CARE,THE REGARD PARTNERSHIP,"2,920.96",LD HOME CARE,SUPPORTED LIVING,2102570917
03.09.2016,ADULT SOCIAL CARE,THE REGARD PARTNERSHIP,"2,897.88",PD HOME CARE,SUPPORTED LIVING,2102560175
30.09.2016,ADULT SOCIAL CARE,THE REGARD PARTNERSHIP,"2,897.88",PD HOME CARE,SUPPORTED LIVING,2102570915
03.09.2016,ADULT SOCIAL CARE,THE REGARD PARTNERSHIP,-260.44,LD HOME CARE,DISCRETIONARY FLEXIBLE FEES & INCOME,2102560178
30.09.2016,ADULT SOCIAL CARE,THE REGARD PARTNERSHIP,-260.44,LD HOME CARE,DISCRETIONARY FLEXIBLE FEES & INCOME,2102570918
03.09.2016,ADULT SOCIAL CARE,THE REGARD PARTNERSHIP,-267.76,LD HOME CARE,DISCRETIONARY FLEXIBLE FEES & INCOME,2102560181
30.09.2016,ADULT SOCIAL CARE,THE REGARD PARTNERSHIP,-267.76,LD HOME CARE,DISCRETIONARY FLEXIBLE FEES & INCOME,2102570921
03.09.2016,ADULT SOCIAL CARE,THE REGARD PARTNERSHIP,-280.92,PD HOME CARE,DISCRETIONARY FLEXIBLE FEES & INCOME,2102560183
30.09.2016,ADULT SOCIAL CARE,THE REGARD PARTNERSHIP,-280.92,PD HOME CARE,DISCRETIONARY FLEXIBLE FEES & INCOME,2102570923
03.09.2016,ADULT SOCIAL CARE,THE REGARD PARTNERSHIP,-284.8,PD HOME CARE,DISCRETIONARY FLEXIBLE FEES & INCOME,2102560176
30.09.2016,ADULT SOCIAL CARE,THE REGARD PARTNERSHIP,-284.8,PD HOME CARE,DISCRETIONARY FLEXIBLE FEES & INCOME,2102570916
03.09.2016,ADULT SOCIAL CARE,THE REGARD PARTNERSHIP,-321.8,PWLD RES PLACEMENTS,"MAND STATUTORY CHARGES, RESIDENTIAL",2102560168
30.09.2016,ADULT SOCIAL CARE,THE REGARD PARTNERSHIP,-321.8,PWLD RES PLACEMENTS,"MAND STATUTORY CHARGES, RESIDENTIAL",2102570908
03.09.2016,ADULT SOCIAL CARE,THE REGARD PARTNERSHIP,-362.48,LD HOME CARE,DISCRETIONARY FLEXIBLE FEES & INCOME,2102560174
03.09.2016,ADULT SOCIAL CARE,THE REGARD PARTNERSHIP,-362.48,LD HOME CARE,DISCRETIONARY FLEXIBLE FEES & INCOME,2102560185
30.09.2016,ADULT SOCIAL CARE,THE REGARD PARTNERSHIP,-362.48,LD HOME CARE,DISCRETIONARY FLEXIBLE FEES & INCOME,2102570914
30.09.2016,ADULT SOCIAL CARE,THE REGARD PARTNERSHIP,-362.48,LD HOME CARE,DISCRETIONARY FLEXIBLE FEES & INCOME,2102570925
03.09.2016,ADULT SOCIAL CARE,THE REGARD PARTNERSHIP,-363.12,LD HOME CARE,DISCRETIONARY FLEXIBLE FEES & INCOME,2102560172
30.09.2016,ADULT SOCIAL CARE,THE REGARD PARTNERSHIP,-363.12,LD HOME CARE,DISCRETIONARY FLEXIBLE FEES & INCOME,2102570912
03.09.2016,ADULT SOCIAL CARE,THE REGARD PARTNERSHIP,-366.32,PD HOME CARE,DISCRETIONARY FLEXIBLE FEES & INCOME,2102560187
30.09.2016,ADULT SOCIAL CARE,THE REGARD PARTNERSHIP,-366.32,PD HOME CARE,DISCRETIONARY FLEXIBLE FEES & INCOME,2102570927
03.09.2016,ADULT SOCIAL CARE,THE REGARD PARTNERSHIP,-387.6,PWLD RES PLACEMENTS,"MAND STATUTORY CHARGES, RESIDENTIAL",2102560190
30.09.2016,ADULT SOCIAL CARE,THE REGARD PARTNERSHIP,-387.6,PWLD RES PLACEMENTS,"MAND STATUTORY CHARGES, RESIDENTIAL",2102570930
03.09.2016,ADULT SOCIAL CARE,THE REGARD PARTNERSHIP,-400.6,PWLD RES PLACEMENTS,"MAND STATUTORY CHARGES, RESIDENTIAL",2102560199
30.09.2016,ADULT SOCIAL CARE,THE REGARD PARTNERSHIP,-400.6,PWLD RES PLACEMENTS,"MAND STATUTORY CHARGES, RESIDENTIAL",2102570939
03.09.2016,ADULT SOCIAL CARE,THE REGARD PARTNERSHIP,-401.12,PWLD RES PLACEMENTS,"MAND STATUTORY CHARGES, RESIDENTIAL",2102560192
30.09.2016,ADULT SOCIAL CARE,THE REGARD PARTNERSHIP,-401.12,PWLD RES PLACEMENTS,"MAND STATUTORY CHARGES, RESIDENTIAL",2102570932
03.09.2016,ADULT SOCIAL CARE,THE REGARD PARTNERSHIP,-414.32,PD HOME CARE,DISCRETIONARY FLEXIBLE FEES & INCOME,2102560195
30.09.2016,ADULT SOCIAL CARE,THE REGARD PARTNERSHIP,-414.32,PD HOME CARE,DISCRETIONARY FLEXIBLE FEES & INCOME,2102570935
03.09.2016,ADULT SOCIAL CARE,THE REGARD PARTNERSHIP,-495.8,PWLD RES PLACEMENTS,"MAND STATUTORY CHARGES, RESIDENTIAL",2102560197
30.09.2016,ADULT SOCIAL CARE,THE REGARD PARTNERSHIP,-495.8,PWLD RES PLACEMENTS,"MAND STATUTORY CHARGES, RESIDENTIAL",2102570937
03.09.2016,ADULT SOCIAL CARE,THE REGARD PARTNERSHIP,-505.2,PWLD RES PLACEMENTS,"MAND STATUTORY CHARGES, RESIDENTIAL",2102560170
30.09.2016,ADULT SOCIAL CARE,THE REGARD PARTNERSHIP,-505.2,PWLD RES PLACEMENTS,"MAND STATUTORY CHARGES, RESIDENTIAL",2102570910
14.09.2016,ADULT SOCIAL CARE,VEOLIA ES (UK)LTD,470.7,FRED FRANCIS CENTRE,PREMISES CLEANING,5902212324
03.09.2016,ADULT SOCIAL CARE,INSIGHT,"11,239.32",PWLD RES PLACEMENTS,RESIDENTIAL CARE,2102560205
30.09.2016,ADULT SOCIAL CARE,INSIGHT,"11,239.32",PWLD RES PLACEMENTS,RESIDENTIAL CARE,2102570945
03.09.2016,ADULT SOCIAL CARE,INSIGHT,"8,802.20",CHOICE SUPPORTED LIVING,RESIDENTIAL CARE,2102560207
30.09.2016,ADULT SOCIAL CARE,INSIGHT,"8,802.20",CHOICE SUPPORTED LIVING,RESIDENTIAL CARE,2102570947
03.09.2016,ADULT SOCIAL CARE,INSIGHT,"5,631.44",PWLD RES PLACEMENTS,RESIDENTIAL CARE,2102560202
30.09.2016,ADULT SOCIAL CARE,INSIGHT,"5,631.44",PWLD RES PLACEMENTS,RESIDENTIAL CARE,2102570942
03.09.2016,ADULT SOCIAL CARE,INSIGHT,"5,437.28",PWLD RES PLACEMENTS,RESIDENTIAL CARE,2102560201
03.09.2016,ADULT SOCIAL CARE,INSIGHT,"5,437.28",PWLD RES PLACEMENTS,RESIDENTIAL CARE,2102560204
30.09.2016,ADULT SOCIAL CARE,INSIGHT,"5,437.28",PWLD RES PLACEMENTS,RESIDENTIAL CARE,2102570941
30.09.2016,ADULT SOCIAL CARE,INSIGHT,"5,437.28",PWLD RES PLACEMENTS,RESIDENTIAL CARE,2102570944
03.09.2016,ADULT SOCIAL CARE,INSIGHT,-321.8,PWLD RES PLACEMENTS,"MAND STATUTORY CHARGES, RESIDENTIAL",2102560203
30.09.2016,ADULT SOCIAL CARE,INSIGHT,-321.8,PWLD RES PLACEMENTS,"MAND STATUTORY CHARGES, RESIDENTIAL",2102570943
03.09.2016,ADULT SOCIAL CARE,INSIGHT,-395.8,PWLD RES PLACEMENTS,"MAND STATUTORY CHARGES, RESIDENTIAL",2102560206
30.09.2016,ADULT SOCIAL CARE,INSIGHT,-395.8,PWLD RES PLACEMENTS,"MAND STATUTORY CHARGES, RESIDENTIAL",2102570946
13.09.2016,ADULT SOCIAL CARE,LOOK AHEAD CARE AND SUPPORT LTD,"20,486.71",CCG JOINT COMMISSIONG,SUPPORTED LIVING,2102562479
03.09.2016,ADULT SOCIAL CARE,FIELDSIDE RESIDENTIAL CARE HOME,"2,244.20", OP CARE PACKAGES,RESIDENTIAL CARE,2102560208
30.09.2016,ADULT SOCIAL CARE,FIELDSIDE RESIDENTIAL CARE HOME,"2,244.20", OP CARE PACKAGES,RESIDENTIAL CARE,2102570948
03.09.2016,ADULT SOCIAL CARE,FIELDSIDE RESIDENTIAL CARE HOME,-564.44, OP CARE PACKAGES,"MAND STATUTORY CHARGES, RESIDENTIAL",2102560209
30.09.2016,ADULT SOCIAL CARE,FIELDSIDE RESIDENTIAL CARE HOME,-564.44, OP CARE PACKAGES,"MAND STATUTORY CHARGES, RESIDENTIAL",2102570949
03.09.2016,ADULT SOCIAL CARE,WESTMINSTER HEALTH CARE LTD,"2,412.80",OP - PLACEMENT-RESPITE & IC,RESIDENTIAL CARE,2102560211
03.09.2016,ADULT SOCIAL CARE,WESTMINSTER HEALTH CARE LTD,"2,412.80",OP - PLACEMENT-RESPITE & IC,RESIDENTIAL CARE,2102560213
30.09.2016,ADULT SOCIAL CARE,WESTMINSTER HEALTH CARE LTD,"2,412.80",OP - PLACEMENT-RESPITE & IC,RESIDENTIAL CARE,2102570950
03.09.2016,ADULT SOCIAL CARE,WESTMINSTER HEALTH CARE LTD,-589.28,OP - PLACEMENT-RESPITE & IC,"MAND STATUTORY CHARGES, RESIDENTIAL",2102560212
03.09.2016,ADULT SOCIAL CARE,WESTMINSTER HEALTH CARE LTD,-589.28,OP - PLACEMENT-RESPITE & IC,"MAND STATUTORY CHARGES, RESIDENTIAL",2102560214
30.09.2016,ADULT SOCIAL CARE,WESTMINSTER HEALTH CARE LTD,-589.28,OP - PLACEMENT-RESPITE & IC,"MAND STATUTORY CHARGES, RESIDENTIAL",2102570951
03.09.2016,ADULT SOCIAL CARE,WESTMINSTER HEALTH CARE LTD,"-2,209.80",OP - PLACEMENT-RESPITE & IC,"MAND STATUTORY CHARGES, RESIDENTIAL",2102560210
03.09.2016,ADULT SOCIAL CARE,LITTLE SISTERS OF THE POOR,"2,288.92",OP - RESIDENTIAL - DEMENTIA,RESIDENTIAL CARE,2102560217
30.09.2016,ADULT SOCIAL CARE,LITTLE SISTERS OF THE POOR,"2,288.92",OP - RESIDENTIAL - DEMENTIA,RESIDENTIAL CARE,2102570954
03.09.2016,ADULT SOCIAL CARE,LITTLE SISTERS OF THE POOR,"2,172.00",OP - RESIDENTIAL - DEMENTIA,RESIDENTIAL CARE,2102560215
30.09.2016,ADULT SOCIAL CARE,LITTLE SISTERS OF THE POOR,"2,172.00",OP - RESIDENTIAL - DEMENTIA,RESIDENTIAL CARE,2102570952
03.09.2016,ADULT SOCIAL CARE,LITTLE SISTERS OF THE POOR,-522.8,OP - RESIDENTIAL - DEMENTIA,"MAND STATUTORY CHARGES, RESIDENTIAL",2102560216
30.09.2016,ADULT SOCIAL CARE,LITTLE SISTERS OF THE POOR,-522.8,OP - RESIDENTIAL - DEMENTIA,"MAND STATUTORY CHARGES, RESIDENTIAL",2102570953
03.09.2016,ADULT SOCIAL CARE,REDACTED PERSONAL DATA,"9,933.36",PD RESIDENTIAL,RESIDENTIAL CARE,2102560218
30.09.2016,ADULT SOCIAL CARE,REDACTED PERSONAL DATA,"9,933.36",PD RESIDENTIAL,RESIDENTIAL CARE,2102570955
03.09.2016,ADULT SOCIAL CARE,REDACTED PERSONAL DATA,"9,000.00",PD RESIDENTIAL,NURSING PLACEMENTS FEES,2102560219
30.09.2016,ADULT SOCIAL CARE,REDACTED PERSONAL DATA,"9,000.00",PD RESIDENTIAL,NURSING PLACEMENTS FEES,2102570956
03.09.2016,ADULT SOCIAL CARE,REDACTED PERSONAL DATA,"6,350.72",PD RESIDENTIAL,NURSING PLACEMENTS FEES,2102560221
30.09.2016,ADULT SOCIAL CARE,REDACTED PERSONAL DATA,"6,350.72",PD RESIDENTIAL,NURSING PLACEMENTS FEES,2102570958
03.09.2016,ADULT SOCIAL CARE,REDACTED PERSONAL DATA,-321.8,PD RESIDENTIAL,"MAND STATUTORY CHARGES, NURSING",2102560220
30.09.2016,ADULT SOCIAL CARE,REDACTED PERSONAL DATA,-321.8,PD RESIDENTIAL,"MAND STATUTORY CHARGES, NURSING",2102570957
03.09.2016,ADULT SOCIAL CARE,BUPA CARE (GALLION'S VIEW),"2,380.20",OP - NURSING,NURSING PLACEMENTS FEES,2102560223
30.09.2016,ADULT SOCIAL CARE,BUPA CARE (GALLION'S VIEW),"2,380.20",OP - NURSING,NURSING PLACEMENTS FEES,2102570959
03.09.2016,ADULT SOCIAL CARE,BUPA CARE (GALLION'S VIEW),-798.4,OP - NURSING,"MAND STATUTORY CHARGES, NURSING",2102560224
30.09.2016,ADULT SOCIAL CARE,BUPA CARE (GALLION'S VIEW),-798.4,OP - NURSING,"MAND STATUTORY CHARGES, NURSING",2102570960
03.09.2016,ADULT SOCIAL CARE,OGILVIE COURT,"4,591.92",PWLD RES PLACEMENTS,RESIDENTIAL CARE,2102560225
30.09.2016,ADULT SOCIAL CARE,OGILVIE COURT,"4,591.92",PWLD RES PLACEMENTS,RESIDENTIAL CARE,2102570961
03.09.2016,ADULT SOCIAL CARE,OGILVIE COURT,-400.6,PWLD RES PLACEMENTS,"MAND STATUTORY CHARGES, RESIDENTIAL",2102560226
30.09.2016,ADULT SOCIAL CARE,OGILVIE COURT,-400.6,PWLD RES PLACEMENTS,"MAND STATUTORY CHARGES, RESIDENTIAL",2102570962
03.09.2016,ADULT SOCIAL CARE,PENERLEY LODGE REST HOME,"2,184.84", OP CARE PACKAGES,RESIDENTIAL CARE,2102560230
30.09.2016,ADULT SOCIAL CARE,PENERLEY LODGE REST HOME,"2,184.84", OP CARE PACKAGES,RESIDENTIAL CARE,2102570966
03.09.2016,ADULT SOCIAL CARE,PENERLEY LODGE REST HOME,"2,113.40", OP CARE PACKAGES,RESIDENTIAL CARE,2102560227
03.09.2016,ADULT SOCIAL CARE,PENERLEY LODGE REST HOME,"2,113.40", OP CARE PACKAGES,RESIDENTIAL CARE,2102560229
30.09.2016,ADULT SOCIAL CARE,PENERLEY LODGE REST HOME,"2,113.40", OP CARE PACKAGES,RESIDENTIAL CARE,2102570963
30.09.2016,ADULT SOCIAL CARE,PENERLEY LODGE REST HOME,"2,113.40", OP CARE PACKAGES,RESIDENTIAL CARE,2102570965
03.09.2016,ADULT SOCIAL CARE,PENERLEY LODGE REST HOME,-522.8, OP CARE PACKAGES,"MAND STATUTORY CHARGES, RESIDENTIAL",2102560228
30.09.2016,ADULT SOCIAL CARE,PENERLEY LODGE REST HOME,-522.8, OP CARE PACKAGES,"MAND STATUTORY CHARGES, RESIDENTIAL",2102570964
03.09.2016,ADULT SOCIAL CARE,THE AVENUES TRUST,"6,041.68",PWLD RES PLACEMENTS,RESIDENTIAL CARE,2102560231
30.09.2016,ADULT SOCIAL CARE,THE AVENUES TRUST,"6,041.68",PWLD RES PLACEMENTS,RESIDENTIAL CARE,2102570967
03.09.2016,ADULT SOCIAL CARE,THE AVENUES TRUST,-321.8,PWLD RES PLACEMENTS,"MAND STATUTORY CHARGES, RESIDENTIAL",2102560232
30.09.2016,ADULT SOCIAL CARE,THE AVENUES TRUST,-321.8,PWLD RES PLACEMENTS,"MAND STATUTORY CHARGES, RESIDENTIAL",2102570968
03.09.2016,ADULT SOCIAL CARE,REDACTED PERSONAL DATA,"3,132.84",PWLD RES PLACEMENTS,RESIDENTIAL CARE,2102560233
30.09.2016,ADULT SOCIAL CARE,REDACTED PERSONAL DATA,"3,132.84",PWLD RES PLACEMENTS,RESIDENTIAL CARE,2102570969
03.09.2016,ADULT SOCIAL CARE,REDACTED PERSONAL DATA,-321.56,PWLD RES PLACEMENTS,"MAND STATUTORY CHARGES, RESIDENTIAL",2102560234
30.09.2016,ADULT SOCIAL CARE,REDACTED PERSONAL DATA,-321.56,PWLD RES PLACEMENTS,"MAND STATUTORY CHARGES, RESIDENTIAL",2102570970
03.09.2016,ADULT SOCIAL CARE,REDACTED PERSONAL DATA,"1,356.44",LD HOME CARE,SUPPORTED LIVING,2102558713
30.09.2016,ADULT SOCIAL CARE,REDACTED PERSONAL DATA,"1,356.44",LD HOME CARE,SUPPORTED LIVING,2102569616
09.09.2016,ADULT SOCIAL CARE,COWLEY ST INVESTMENTS,"14,375.00",MH NORTH,RENTS,2102561295
09.09.2016,ADULT SOCIAL CARE,COWLEY ST INVESTMENTS,"3,687.50",MH NORTH,RENTS,2102561305
03.09.2016,ADULT SOCIAL CARE,THE REGARD PARTNERSHIP (IVY LODGE),"3,525.72",LD HOME CARE,RESIDENTIAL CARE,2102559752
30.09.2016,ADULT SOCIAL CARE,THE REGARD PARTNERSHIP (IVY LODGE),"3,525.72",LD HOME CARE,RESIDENTIAL CARE,2102570515
03.09.2016,ADULT SOCIAL CARE,THE REGARD PARTNERSHIP (IVY LODGE),-570.04,LD HOME CARE,"MAND STATUTORY CHARGES, RESIDENTIAL",2102559753
30.09.2016,ADULT SOCIAL CARE,THE REGARD PARTNERSHIP (IVY LODGE),-570.04,LD HOME CARE,"MAND STATUTORY CHARGES, RESIDENTIAL",2102570516
06.09.2016,ADULT SOCIAL CARE,THAMES WATER UTILITIES LTD,594.88,SOUTHWARK RESOURCE CENTRE,WATER,5902210674
03.09.2016,ADULT SOCIAL CARE,GIBSON LODGE EMI NURSING,"4,120.00",OP - NURSING,NURSING PLACEMENTS FEES,2102559757
30.09.2016,ADULT SOCIAL CARE,GIBSON LODGE EMI NURSING,"4,120.00",OP - NURSING,NURSING PLACEMENTS FEES,2102570520
03.09.2016,ADULT SOCIAL CARE,GIBSON LODGE EMI NURSING,"2,455.96", OP CARE PACKAGES,NURSING PLACEMENTS FEES,2102559758
30.09.2016,ADULT SOCIAL CARE,GIBSON LODGE EMI NURSING,"2,455.96", OP CARE PACKAGES,NURSING PLACEMENTS FEES,2102570521
03.09.2016,ADULT SOCIAL CARE,GIBSON LODGE EMI NURSING,"2,372.40", OP CARE PACKAGES,NURSING PLACEMENTS FEES,2102559754
03.09.2016,ADULT SOCIAL CARE,GIBSON LODGE EMI NURSING,"2,372.40", OP CARE PACKAGES,NURSING PLACEMENTS FEES,2102559759
30.09.2016,ADULT SOCIAL CARE,GIBSON LODGE EMI NURSING,"2,372.40", OP CARE PACKAGES,NURSING PLACEMENTS FEES,2102570517
30.09.2016,ADULT SOCIAL CARE,GIBSON LODGE EMI NURSING,"2,372.40", OP CARE PACKAGES,NURSING PLACEMENTS FEES,2102570522
03.09.2016,ADULT SOCIAL CARE,GIBSON LODGE EMI NURSING,439.16, OP CARE PACKAGES,RECOVERABLE COSTS INCL. HEALTH,2102559755
03.09.2016,ADULT SOCIAL CARE,GIBSON LODGE EMI NURSING,439.16, OP CARE PACKAGES,RECOVERABLE COSTS INCL. HEALTH,2102559760
30.09.2016,ADULT SOCIAL CARE,GIBSON LODGE EMI NURSING,439.16, OP CARE PACKAGES,RECOVERABLE COSTS INCL. HEALTH,2102570518
30.09.2016,ADULT SOCIAL CARE,GIBSON LODGE EMI NURSING,439.16, OP CARE PACKAGES,RECOVERABLE COSTS INCL. HEALTH,2102570523
03.09.2016,ADULT SOCIAL CARE,GIBSON LODGE EMI NURSING,-522.8, OP CARE PACKAGES,"MAND STATUTORY CHARGES, NURSING",2102559756
30.09.2016,ADULT SOCIAL CARE,GIBSON LODGE EMI NURSING,-522.8, OP CARE PACKAGES,"MAND STATUTORY CHARGES, NURSING",2102570519
03.09.2016,ADULT SOCIAL CARE,COLLINGWOOD COURT (BUPA CARE HOMES),"4,650.60", OP CARE PACKAGES,NURSING PLACEMENTS FEES,2102559857
30.09.2016,ADULT SOCIAL CARE,COLLINGWOOD COURT (BUPA CARE HOMES),"4,650.60", OP CARE PACKAGES,NURSING PLACEMENTS FEES,2102570619
03.09.2016,ADULT SOCIAL CARE,COLLINGWOOD COURT (BUPA CARE HOMES),"3,102.28", OP CARE PACKAGES,NURSING PLACEMENTS FEES,2102559861
30.09.2016,ADULT SOCIAL CARE,COLLINGWOOD COURT (BUPA CARE HOMES),"3,102.28", OP CARE PACKAGES,NURSING PLACEMENTS FEES,2102570623
03.09.2016,ADULT SOCIAL CARE,COLLINGWOOD COURT (BUPA CARE HOMES),"2,715.52", OP CARE PACKAGES,NURSING PLACEMENTS FEES,2102559859
30.09.2016,ADULT SOCIAL CARE,COLLINGWOOD COURT (BUPA CARE HOMES),"2,715.52", OP CARE PACKAGES,NURSING PLACEMENTS FEES,2102570621
03.09.2016,ADULT SOCIAL CARE,COLLINGWOOD COURT (BUPA CARE HOMES),"2,203.76",PD NURSING,NURSING PLACEMENTS FEES,2102559858
30.09.2016,ADULT SOCIAL CARE,COLLINGWOOD COURT (BUPA CARE HOMES),"2,203.76",PD NURSING,NURSING PLACEMENTS FEES,2102570620
03.09.2016,ADULT SOCIAL CARE,COLLINGWOOD COURT (BUPA CARE HOMES),-522.8, OP CARE PACKAGES,"MAND STATUTORY CHARGES, NURSING",2102559860
30.09.2016,ADULT SOCIAL CARE,COLLINGWOOD COURT (BUPA CARE HOMES),-522.8, OP CARE PACKAGES,"MAND STATUTORY CHARGES, NURSING",2102570622
03.09.2016,ADULT SOCIAL CARE,COLLINGWOOD COURT (BUPA CARE HOMES),-601.8, OP CARE PACKAGES,"MAND STATUTORY CHARGES, NURSING",2102559862
30.09.2016,ADULT SOCIAL CARE,COLLINGWOOD COURT (BUPA CARE HOMES),-601.8, OP CARE PACKAGES,"MAND STATUTORY CHARGES, NURSING",2102570624
03.09.2016,ADULT SOCIAL CARE,MISSION CARE,"2,504.96",OP - NURSING,NURSING PLACEMENTS FEES,2102559863
30.09.2016,ADULT SOCIAL CARE,MISSION CARE,"2,504.96",OP - NURSING,NURSING PLACEMENTS FEES,2102570625
03.09.2016,ADULT SOCIAL CARE,MISSION CARE,-692.6,OP - NURSING,"MAND STATUTORY CHARGES, NURSING",2102559864
30.09.2016,ADULT SOCIAL CARE,MISSION CARE,-692.6,OP - NURSING,"MAND STATUTORY CHARGES, NURSING",2102570626
03.09.2016,ADULT SOCIAL CARE,GRANGE FARM COMPLEX,"1,778.36",LD HOME CARE,SUPPORTED LIVING,2102559865
30.09.2016,ADULT SOCIAL CARE,GRANGE FARM COMPLEX,"1,778.36",LD HOME CARE,SUPPORTED LIVING,2102570627
28.09.2016,ADULT SOCIAL CARE,NESTOR PRIMECARE SERVICES LTD,"98,673.12",EXTRA CARE CONTRACT.,HOMECARE - SPOT,5902214899
28.09.2016,ADULT SOCIAL CARE,NESTOR PRIMECARE SERVICES LTD,"2,134.22",EXTRA CARE CONTRACT.,HOMECARE - SPOT,5902214898
27.09.2016,ADULT SOCIAL CARE,NESTOR PRIMECARE SERVICES LTD,"1,502.20",PWLD HOME CARE IND,HOMECARE - SPOT,2102567352
27.09.2016,ADULT SOCIAL CARE,NESTOR PRIMECARE SERVICES LTD,911.17,PD HOME CARE,HOMECARE - SPOT,2102567376
27.09.2016,ADULT SOCIAL CARE,NESTOR PRIMECARE SERVICES LTD,829.1,HOME CARE C&V,HOMECARE - SPOT,2102567353
27.09.2016,ADULT SOCIAL CARE,NESTOR PRIMECARE SERVICES LTD,702.6,OP - HOMECARE,HOMECARE - SPOT,2102567355
27.09.2016,ADULT SOCIAL CARE,NESTOR PRIMECARE SERVICES LTD,583.04,PD HOME CARE,HOMECARE - SPOT,2102567354
27.09.2016,ADULT SOCIAL CARE,NESTOR PRIMECARE SERVICES LTD,388.5,PWLD HOME CARE IND,HOMECARE - SPOT,2102567351
27.09.2016,ADULT SOCIAL CARE,NESTOR PRIMECARE SERVICES LTD,371,PWLD HOME CARE IND,HOMECARE - SPOT,2102567356
03.09.2016,ADULT SOCIAL CARE,MANLEY COURT NURSING HOME (BUPA),"13,033.43",OP - NURSING,NURSING PLACEMENTS FEES,2102559866
03.09.2016,ADULT SOCIAL CARE,MANLEY COURT NURSING HOME (BUPA),"6,602.47",OP - NURSING,"MAND STATUTORY CHARGES, NURSING",2102559867
03.09.2016,ADULT SOCIAL CARE,MANLEY COURT NURSING HOME (BUPA),"3,220.32",PD NURSING,NURSING PLACEMENTS FEES,2102559868
30.09.2016,ADULT SOCIAL CARE,MANLEY COURT NURSING HOME (BUPA),"3,220.32",PD NURSING,NURSING PLACEMENTS FEES,2102570628
03.09.2016,ADULT SOCIAL CARE,MANLEY COURT NURSING HOME (BUPA),"2,715.08",OP - NURSING,NURSING PLACEMENTS FEES,2102559873
30.09.2016,ADULT SOCIAL CARE,MANLEY COURT NURSING HOME (BUPA),"2,715.08",OP - NURSING,NURSING PLACEMENTS FEES,2102570633
03.09.2016,ADULT SOCIAL CARE,MANLEY COURT NURSING HOME (BUPA),"2,628.56",OP - NURSING,NURSING PLACEMENTS FEES,2102559869
03.09.2016,ADULT SOCIAL CARE,MANLEY COURT NURSING HOME (BUPA),"2,628.56",OP - NURSING,NURSING PLACEMENTS FEES,2102559870
03.09.2016,ADULT SOCIAL CARE,MANLEY COURT NURSING HOME (BUPA),"2,628.56",OP - NURSING,NURSING PLACEMENTS FEES,2102559874
30.09.2016,ADULT SOCIAL CARE,MANLEY COURT NURSING HOME (BUPA),"2,628.56",OP - NURSING,NURSING PLACEMENTS FEES,2102570629
30.09.2016,ADULT SOCIAL CARE,MANLEY COURT NURSING HOME (BUPA),"2,628.56",OP - NURSING,NURSING PLACEMENTS FEES,2102570630
30.09.2016,ADULT SOCIAL CARE,MANLEY COURT NURSING HOME (BUPA),"2,628.56",OP - NURSING,NURSING PLACEMENTS FEES,2102570634
03.09.2016,ADULT SOCIAL CARE,MANLEY COURT NURSING HOME (BUPA),"2,552.00",OP - NURSING,NURSING PLACEMENTS FEES,2102559871
30.09.2016,ADULT SOCIAL CARE,MANLEY COURT NURSING HOME (BUPA),"2,552.00",OP - NURSING,NURSING PLACEMENTS FEES,2102570631
03.09.2016,ADULT SOCIAL CARE,MANLEY COURT NURSING HOME (BUPA),"2,525.56",OP - NURSING,NURSING PLACEMENTS FEES,2102559872
30.09.2016,ADULT SOCIAL CARE,MANLEY COURT NURSING HOME (BUPA),"2,525.56",OP - NURSING,NURSING PLACEMENTS FEES,2102570632
23.09.2016,ADULT SOCIAL CARE,LAMBETH CHINESE COMMUNITY ASSOCIATION,"2,205.33",OP - HOMECARE,HOMECARE - SPOT,2102566174
23.09.2016,ADULT SOCIAL CARE,LAMBETH CHINESE COMMUNITY ASSOCIATION,811.8,OP - HOMECARE,HOMECARE - SPOT,2102566173
23.09.2016,ADULT SOCIAL CARE,LAMBETH CHINESE COMMUNITY ASSOCIATION,674.32, OP CARE PACKAGES,HOMECARE - SPOT,2102566168
23.09.2016,ADULT SOCIAL CARE,LAMBETH CHINESE COMMUNITY ASSOCIATION,491.69,OP - HOMECARE,HOMECARE - SPOT,2102566171
27.09.2016,ADULT SOCIAL CARE,LAMBETH CHINESE COMMUNITY ASSOCIATION,461.63,OP - HOMECARE,HOMECARE - SPOT,2102567358
23.09.2016,ADULT SOCIAL CARE,LAMBETH CHINESE COMMUNITY ASSOCIATION,393.38,OP - HOMECARE,HOMECARE - SPOT,2102566172
23.09.2016,ADULT SOCIAL CARE,LAMBETH CHINESE COMMUNITY ASSOCIATION,391.18, OP CARE PACKAGES,HOMECARE - SPOT,2102566169
03.09.2016,ADULT SOCIAL CARE,AVANTE PARTNERSHIP (WEYBOURNE),"2,344.04",OP - RESIDENTIAL - DEMENTIA,RESIDENTIAL CARE,2102559875
30.09.2016,ADULT SOCIAL CARE,AVANTE PARTNERSHIP (WEYBOURNE),"2,344.04",OP - RESIDENTIAL - DEMENTIA,RESIDENTIAL CARE,2102570635
03.09.2016,ADULT SOCIAL CARE,AVANTE PARTNERSHIP (WEYBOURNE),"2,217.28", OP CARE PACKAGES,RESIDENTIAL CARE,2102559878
30.09.2016,ADULT SOCIAL CARE,AVANTE PARTNERSHIP (WEYBOURNE),"2,217.28", OP CARE PACKAGES,RESIDENTIAL CARE,2102570637
03.09.2016,ADULT SOCIAL CARE,AVANTE PARTNERSHIP (WEYBOURNE),"2,102.64",OP - RESIDENTIAL,RESIDENTIAL CARE,2102559880
30.09.2016,ADULT SOCIAL CARE,AVANTE PARTNERSHIP (WEYBOURNE),"2,102.64",OP - RESIDENTIAL,RESIDENTIAL CARE,2102570639
03.09.2016,ADULT SOCIAL CARE,AVANTE PARTNERSHIP (WEYBOURNE),-629.28,OP - RESIDENTIAL - DEMENTIA,"MAND STATUTORY CHARGES, RESIDENTIAL",2102559876
30.09.2016,ADULT SOCIAL CARE,AVANTE PARTNERSHIP (WEYBOURNE),-629.28,OP - RESIDENTIAL - DEMENTIA,"MAND STATUTORY CHARGES, RESIDENTIAL",2102570636
03.09.2016,ADULT SOCIAL CARE,AVANTE PARTNERSHIP (WEYBOURNE),-736.04,OP - RESIDENTIAL,"MAND STATUTORY CHARGES, RESIDENTIAL",2102559881
30.09.2016,ADULT SOCIAL CARE,AVANTE PARTNERSHIP (WEYBOURNE),-736.04,OP - RESIDENTIAL,"MAND STATUTORY CHARGES, RESIDENTIAL",2102570640
03.09.2016,ADULT SOCIAL CARE,AVANTE PARTNERSHIP (WEYBOURNE),-963.52, OP CARE PACKAGES,"MAND STATUTORY CHARGES, RESIDENTIAL",2102559879
30.09.2016,ADULT SOCIAL CARE,AVANTE PARTNERSHIP (WEYBOURNE),-963.52, OP CARE PACKAGES,"MAND STATUTORY CHARGES, RESIDENTIAL",2102570638
16.09.2016,ADULT SOCIAL CARE,BRITISH TELECOMMUNICATIONS PLC,463.44,ORIENT STREET,TELEPHONES (LAND LINES),5902212964
03.09.2016,ADULT SOCIAL CARE,THE PADDOCK (THE SWALLOW GROUP),"3,838.00",CHOICE SUPPORTED LIVING,RESIDENTIAL CARE,2102559886
30.09.2016,ADULT SOCIAL CARE,THE PADDOCK (THE SWALLOW GROUP),"3,838.00",CHOICE SUPPORTED LIVING,RESIDENTIAL CARE,2102570645
03.09.2016,ADULT SOCIAL CARE,THE PADDOCK (THE SWALLOW GROUP),"2,828.00",PWLD RES PLACEMENTS,RESIDENTIAL CARE,2102559882
03.09.2016,ADULT SOCIAL CARE,THE PADDOCK (THE SWALLOW GROUP),"2,828.00",CHOICE SUPPORTED LIVING,RESIDENTIAL CARE,2102559884
30.09.2016,ADULT SOCIAL CARE,THE PADDOCK (THE SWALLOW GROUP),"2,828.00",PWLD RES PLACEMENTS,RESIDENTIAL CARE,2102570641
30.09.2016,ADULT SOCIAL CARE,THE PADDOCK (THE SWALLOW GROUP),"2,828.00",CHOICE SUPPORTED LIVING,RESIDENTIAL CARE,2102570643
03.09.2016,ADULT SOCIAL CARE,THE PADDOCK (THE SWALLOW GROUP),-501.2,CHOICE SUPPORTED LIVING,"MAND STATUTORY CHARGES, RESIDENTIAL",2102559885
30.09.2016,ADULT SOCIAL CARE,THE PADDOCK (THE SWALLOW GROUP),-501.2,CHOICE SUPPORTED LIVING,"MAND STATUTORY CHARGES, RESIDENTIAL",2102570644
03.09.2016,ADULT SOCIAL CARE,THE PADDOCK (THE SWALLOW GROUP),-505.2,CHOICE SUPPORTED LIVING,"MAND STATUTORY CHARGES, RESIDENTIAL",2102559887
30.09.2016,ADULT SOCIAL CARE,THE PADDOCK (THE SWALLOW GROUP),-505.2,CHOICE SUPPORTED LIVING,"MAND STATUTORY CHARGES, RESIDENTIAL",2102570646
03.09.2016,ADULT SOCIAL CARE,THE PADDOCK (THE SWALLOW GROUP),-522.8,PWLD RES PLACEMENTS,"MAND STATUTORY CHARGES, RESIDENTIAL",2102559883
30.09.2016,ADULT SOCIAL CARE,THE PADDOCK (THE SWALLOW GROUP),-522.8,PWLD RES PLACEMENTS,"MAND STATUTORY CHARGES, RESIDENTIAL",2102570642
03.09.2016,ADULT SOCIAL CARE,THE OLD  SCHOOL HOUSE (MADELEY),"5,758.16",PWLD RES PLACEMENTS,RESIDENTIAL CARE,2102559888
30.09.2016,ADULT SOCIAL CARE,THE OLD  SCHOOL HOUSE (MADELEY),"5,758.16",PWLD RES PLACEMENTS,RESIDENTIAL CARE,2102570647
03.09.2016,ADULT SOCIAL CARE,THE OLD  SCHOOL HOUSE (MADELEY),-522.8,PWLD RES PLACEMENTS,"MAND STATUTORY CHARGES, RESIDENTIAL",2102559889
30.09.2016,ADULT SOCIAL CARE,THE OLD  SCHOOL HOUSE (MADELEY),-522.8,PWLD RES PLACEMENTS,"MAND STATUTORY CHARGES, RESIDENTIAL",2102570648
03.09.2016,ADULT SOCIAL CARE,SAFFRONLAND HOMES,"6,928.36",PWLD RES PLACEMENTS,RESIDENTIAL CARE,2102559890
30.09.2016,ADULT SOCIAL CARE,SAFFRONLAND HOMES,"6,928.36",PWLD RES PLACEMENTS,RESIDENTIAL CARE,2102570649
19.09.2016,ADULT SOCIAL CARE,SAFFRONLAND HOMES,"1,128.04",PWLD HOME CARE IND,OTHER PAYMENTS FOR CLIENTS,2102564532
03.09.2016,ADULT SOCIAL CARE,CARE UNLIMITED GROUP LTD,"1,329.76", OP CARE PACKAGES,NURSING PLACEMENTS FEES,2102559891
30.09.2016,ADULT SOCIAL CARE,CARE UNLIMITED GROUP LTD,"1,329.76", OP CARE PACKAGES,NURSING PLACEMENTS FEES,2102570650
03.09.2016,ADULT SOCIAL CARE,CHARLTON PARK (FOUR SEASONS),"2,252.44",OP - NURSING,NURSING PLACEMENTS FEES,2102559896
03.09.2016,ADULT SOCIAL CARE,CHARLTON PARK (FOUR SEASONS),"2,252.44",OP - NURSING,NURSING PLACEMENTS FEES,2102559898
30.09.2016,ADULT SOCIAL CARE,CHARLTON PARK (FOUR SEASONS),"2,252.44",OP - NURSING,NURSING PLACEMENTS FEES,2102570655
30.09.2016,ADULT SOCIAL CARE,CHARLTON PARK (FOUR SEASONS),"2,252.44",OP - NURSING,NURSING PLACEMENTS FEES,2102570657
03.09.2016,ADULT SOCIAL CARE,CHARLTON PARK (FOUR SEASONS),"2,095.68", OP CARE PACKAGES,NURSING PLACEMENTS FEES,2102559894
30.09.2016,ADULT SOCIAL CARE,CHARLTON PARK (FOUR SEASONS),"2,095.68", OP CARE PACKAGES,NURSING PLACEMENTS FEES,2102570653
03.09.2016,ADULT SOCIAL CARE,CHARLTON PARK (FOUR SEASONS),"2,060.00",OP - NURSING,NURSING PLACEMENTS FEES,2102559892
30.09.2016,ADULT SOCIAL CARE,CHARLTON PARK (FOUR SEASONS),"2,060.00",OP - NURSING,NURSING PLACEMENTS FEES,2102570651
03.09.2016,ADULT SOCIAL CARE,CHARLTON PARK (FOUR SEASONS),-522.8,OP - NURSING,"MAND STATUTORY CHARGES, NURSING",2102559893
30.09.2016,ADULT SOCIAL CARE,CHARLTON PARK (FOUR SEASONS),-522.8,OP - NURSING,"MAND STATUTORY CHARGES, NURSING",2102570652
03.09.2016,ADULT SOCIAL CARE,CHARLTON PARK (FOUR SEASONS),-591.72,OP - NURSING,"MAND STATUTORY CHARGES, NURSING",2102559899
30.09.2016,ADULT SOCIAL CARE,CHARLTON PARK (FOUR SEASONS),-591.72,OP - NURSING,"MAND STATUTORY CHARGES, NURSING",2102570658
03.09.2016,ADULT SOCIAL CARE,CHARLTON PARK (FOUR SEASONS),-888.28, OP CARE PACKAGES,"MAND STATUTORY CHARGES, NURSING",2102559895
30.09.2016,ADULT SOCIAL CARE,CHARLTON PARK (FOUR SEASONS),-888.28, OP CARE PACKAGES,"MAND STATUTORY CHARGES, NURSING",2102570654
03.09.2016,ADULT SOCIAL CARE,CHARLTON PARK (FOUR SEASONS),"-1,015.24",OP - NURSING,"MAND STATUTORY CHARGES, NURSING",2102559897
30.09.2016,ADULT SOCIAL CARE,CHARLTON PARK (FOUR SEASONS),"-1,015.24",OP - NURSING,"MAND STATUTORY CHARGES, NURSING",2102570656
02.09.2016,ADULT SOCIAL CARE,REDACTED PERSONAL DATA,"1,210.40",PD DIRECT PAYMENTS,PAYMENTS TO CLIENTS (DIRECT PAYMENTS),2102557621
03.09.2016,ADULT SOCIAL CARE,YARA ENTERPRISES LTD,"2,246.40",OP - RESIDENTIAL - DEMENTIA,RESIDENTIAL CARE,2102559901
30.09.2016,ADULT SOCIAL CARE,YARA ENTERPRISES LTD,"2,246.40",OP - RESIDENTIAL - DEMENTIA,RESIDENTIAL CARE,2102570659
03.09.2016,ADULT SOCIAL CARE,YARA ENTERPRISES LTD,-761.88,OP - RESIDENTIAL - DEMENTIA,"MAND STATUTORY CHARGES, RESIDENTIAL",2102559902
30.09.2016,ADULT SOCIAL CARE,YARA ENTERPRISES LTD,-761.88,OP - RESIDENTIAL - DEMENTIA,"MAND STATUTORY CHARGES, RESIDENTIAL",2102570660
03.09.2016,ADULT SOCIAL CARE,N NOTARO HOMES LTD,"1,808.84",PD RESIDENTIAL,RESIDENTIAL CARE,2102559903
30.09.2016,ADULT SOCIAL CARE,N NOTARO HOMES LTD,"1,808.84",PD RESIDENTIAL,RESIDENTIAL CARE,2102570661
03.09.2016,ADULT SOCIAL CARE,N NOTARO HOMES LTD,-505.2,PD RESIDENTIAL,"MAND STATUTORY CHARGES, RESIDENTIAL",2102559904
30.09.2016,ADULT SOCIAL CARE,N NOTARO HOMES LTD,-505.2,PD RESIDENTIAL,"MAND STATUTORY CHARGES, RESIDENTIAL",2102570662
03.09.2016,ADULT SOCIAL CARE,RNIB COMMUNITY LIVING SERVICE,"7,129.24",PWLD RES PLACEMENTS,RESIDENTIAL CARE,2102559905
30.09.2016,ADULT SOCIAL CARE,RNIB COMMUNITY LIVING SERVICE,"7,129.24",PWLD RES PLACEMENTS,RESIDENTIAL CARE,2102570663
09.09.2016,ADULT SOCIAL CARE,CARE O LINE,990,TRANSITION 14YRS TO 18YRS,SECTION 17 PAYMENTS TO AGENCIES/CARERS,2102562022
09.09.2016,ADULT SOCIAL CARE,CARE O LINE,990,TRANSITION 14YRS TO 18YRS,SECTION 17 PAYMENTS TO AGENCIES/CARERS,2102562023
09.09.2016,ADULT SOCIAL CARE,CARE O LINE,990,TRANSITION 14YRS TO 18YRS,SECTION 17 PAYMENTS TO AGENCIES/CARERS,2102562024
12.09.2016,ADULT SOCIAL CARE,CARE O LINE,990,TRANSITION 14YRS TO 18YRS,SECTION 17 PAYMENTS TO AGENCIES/CARERS,2102562347
12.09.2016,ADULT SOCIAL CARE,CARE O LINE,990,TRANSITION 14YRS TO 18YRS,SECTION 17 PAYMENTS TO AGENCIES/CARERS,2102562348
12.09.2016,ADULT SOCIAL CARE,CARE O LINE,990,TRANSITION 14YRS TO 18YRS,SECTION 17 PAYMENTS TO AGENCIES/CARERS,2102562350
12.09.2016,ADULT SOCIAL CARE,CARE O LINE,990,TRANSITION 14YRS TO 18YRS,SECTION 17 PAYMENTS TO AGENCIES/CARERS,2102562351
12.09.2016,ADULT SOCIAL CARE,CARE O LINE,990,TRANSITION 14YRS TO 18YRS,SECTION 17 PAYMENTS TO AGENCIES/CARERS,2102562353
12.09.2016,ADULT SOCIAL CARE,CARE O LINE,990,TRANSITION 14YRS TO 18YRS,SECTION 17 PAYMENTS TO AGENCIES/CARERS,2102562356
12.09.2016,ADULT SOCIAL CARE,CARE O LINE,990,TRANSITION 14YRS TO 18YRS,SECTION 17 PAYMENTS TO AGENCIES/CARERS,2102562359
12.09.2016,ADULT SOCIAL CARE,CARE O LINE,990,TRANSITION 14YRS TO 18YRS,SECTION 17 PAYMENTS TO AGENCIES/CARERS,2102562360
12.09.2016,ADULT SOCIAL CARE,CARE O LINE,990,TRANSITION 14YRS TO 18YRS,SECTION 17 PAYMENTS TO AGENCIES/CARERS,2102562361
12.09.2016,ADULT SOCIAL CARE,CARE O LINE,-343.75,TRANSITION 14YRS TO 18YRS,SECTION 17 PAYMENTS TO AGENCIES/CARERS,2102562358
12.09.2016,ADULT SOCIAL CARE,CARE O LINE,-371.25,TRANSITION 14YRS TO 18YRS,SECTION 17 PAYMENTS TO AGENCIES/CARERS,2102562352
30.09.2016,ADULT SOCIAL CARE,ANCHOR TRUST,"22,291.43",ANCHOR CONTRACT,RESIDENTIAL CARE,2102570711
03.09.2016,ADULT SOCIAL CARE,ANCHOR TRUST,"21,837.96",ANCHOR CONTRACT,RESIDENTIAL CARE,2102559983
30.09.2016,ADULT SOCIAL CARE,ANCHOR TRUST,"21,837.96",ANCHOR CONTRACT,RESIDENTIAL CARE,2102570740
03.09.2016,ADULT SOCIAL CARE,ANCHOR TRUST,"3,660.40",ANCHOR CONTRACT,RESIDENTIAL CARE,2102560035
30.09.2016,ADULT SOCIAL CARE,ANCHOR TRUST,"2,820.00",ANCHOR CONTRACT,RESIDENTIAL CARE,2102570665
30.09.2016,ADULT SOCIAL CARE,ANCHOR TRUST,"2,081.43",OP - NURSING,RESIDENTIAL CARE,2102570701
30.09.2016,ADULT SOCIAL CARE,ANCHOR TRUST,"2,077.71",ANCHOR CONTRACT,RESIDENTIAL CARE,2102570805
03.09.2016,ADULT SOCIAL CARE,ANCHOR TRUST,"1,880.00",ANCHOR CONTRACT,RESIDENTIAL CARE,2102559910
03.09.2016,ADULT SOCIAL CARE,ANCHOR TRUST,"1,880.00",ANCHOR CONTRACT,RESIDENTIAL CARE,2102559911
03.09.2016,ADULT SOCIAL CARE,ANCHOR TRUST,"1,880.00",ANCHOR CONTRACT,RESIDENTIAL CARE,2102559916
03.09.2016,ADULT SOCIAL CARE,ANCHOR TRUST,"1,880.00",ANCHOR CONTRACT,RESIDENTIAL CARE,2102559918
03.09.2016,ADULT SOCIAL CARE,ANCHOR TRUST,"1,880.00",ANCHOR CONTRACT,RESIDENTIAL CARE,2102559920
03.09.2016,ADULT SOCIAL CARE,ANCHOR TRUST,"1,880.00",ANCHOR CONTRACT,RESIDENTIAL CARE,2102559926
03.09.2016,ADULT SOCIAL CARE,ANCHOR TRUST,"1,880.00",ANCHOR CONTRACT,RESIDENTIAL CARE,2102559928
03.09.2016,ADULT SOCIAL CARE,ANCHOR TRUST,"1,880.00",ANCHOR CONTRACT,RESIDENTIAL CARE,2102559931
03.09.2016,ADULT SOCIAL CARE,ANCHOR TRUST,"1,880.00",ANCHOR CONTRACT,RESIDENTIAL CARE,2102559943
03.09.2016,ADULT SOCIAL CARE,ANCHOR TRUST,"1,880.00",ANCHOR CONTRACT,RESIDENTIAL CARE,2102559946
03.09.2016,ADULT SOCIAL CARE,ANCHOR TRUST,"1,880.00",ANCHOR CONTRACT,RESIDENTIAL CARE,2102559948
03.09.2016,ADULT SOCIAL CARE,ANCHOR TRUST,"1,880.00",ANCHOR CONTRACT,RESIDENTIAL CARE,2102559949
03.09.2016,ADULT SOCIAL CARE,ANCHOR TRUST,"1,880.00",ANCHOR CONTRACT,RESIDENTIAL CARE,2102559952
03.09.2016,ADULT SOCIAL CARE,ANCHOR TRUST,"1,880.00",ANCHOR CONTRACT,RESIDENTIAL CARE,2102559954
03.09.2016,ADULT SOCIAL CARE,ANCHOR TRUST,"1,880.00",ANCHOR CONTRACT,RESIDENTIAL CARE,2102559955
03.09.2016,ADULT SOCIAL CARE,ANCHOR TRUST,"1,880.00",ANCHOR CONTRACT,RESIDENTIAL CARE,2102559957
03.09.2016,ADULT SOCIAL CARE,ANCHOR TRUST,"1,880.00",ANCHOR CONTRACT,RESIDENTIAL CARE,2102559958
03.09.2016,ADULT SOCIAL CARE,ANCHOR TRUST,"1,880.00",ANCHOR CONTRACT,RESIDENTIAL CARE,2102559959
03.09.2016,ADULT SOCIAL CARE,ANCHOR TRUST,"1,880.00",ANCHOR CONTRACT,RESIDENTIAL CARE,2102559963
03.09.2016,ADULT SOCIAL CARE,ANCHOR TRUST,"1,880.00",ANCHOR CONTRACT,RESIDENTIAL CARE,2102559967
03.09.2016,ADULT SOCIAL CARE,ANCHOR TRUST,"1,880.00",ANCHOR CONTRACT,RESIDENTIAL CARE,2102559969
03.09.2016,ADULT SOCIAL CARE,ANCHOR TRUST,"1,880.00",ANCHOR CONTRACT,RESIDENTIAL CARE,2102559970
03.09.2016,ADULT SOCIAL CARE,ANCHOR TRUST,"1,880.00",ANCHOR CONTRACT,PLACEMENTS - RESPITE,2102559971
03.09.2016,ADULT SOCIAL CARE,ANCHOR TRUST,"1,880.00",ANCHOR CONTRACT,RESIDENTIAL CARE,2102559973
03.09.2016,ADULT SOCIAL CARE,ANCHOR TRUST,"1,880.00",ANCHOR CONTRACT,RESIDENTIAL CARE,2102559974
03.09.2016,ADULT SOCIAL CARE,ANCHOR TRUST,"1,880.00",ANCHOR CONTRACT,RESIDENTIAL CARE,2102559975
03.09.2016,ADULT SOCIAL CARE,ANCHOR TRUST,"1,880.00",ANCHOR CONTRACT,RESIDENTIAL CARE,2102559976
03.09.2016,ADULT SOCIAL CARE,ANCHOR TRUST,"1,880.00",ANCHOR CONTRACT,RESIDENTIAL CARE,2102559979
03.09.2016,ADULT SOCIAL CARE,ANCHOR TRUST,"1,880.00",ANCHOR CONTRACT,RESIDENTIAL CARE,2102559980
03.09.2016,ADULT SOCIAL CARE,ANCHOR TRUST,"1,880.00",ANCHOR CONTRACT,RESIDENTIAL CARE,2102559982
03.09.2016,ADULT SOCIAL CARE,ANCHOR TRUST,"1,880.00",ANCHOR CONTRACT,RESIDENTIAL CARE,2102559987
03.09.2016,ADULT SOCIAL CARE,ANCHOR TRUST,"1,880.00",ANCHOR CONTRACT,RESIDENTIAL CARE,2102559989
03.09.2016,ADULT SOCIAL CARE,ANCHOR TRUST,"1,880.00",ANCHOR CONTRACT,RESIDENTIAL CARE,2102559990
03.09.2016,ADULT SOCIAL CARE,ANCHOR TRUST,"1,880.00",ANCHOR CONTRACT,RESIDENTIAL CARE,2102559994
03.09.2016,ADULT SOCIAL CARE,ANCHOR TRUST,"1,880.00",ANCHOR CONTRACT,RESIDENTIAL CARE,2102559995
03.09.2016,ADULT SOCIAL CARE,ANCHOR TRUST,"1,880.00",ANCHOR CONTRACT,RESIDENTIAL CARE,2102559996
03.09.2016,ADULT SOCIAL CARE,ANCHOR TRUST,"1,880.00",ANCHOR CONTRACT,RESIDENTIAL CARE,2102560000
03.09.2016,ADULT SOCIAL CARE,ANCHOR TRUST,"1,880.00",ANCHOR CONTRACT,RESIDENTIAL CARE,2102560002
03.09.2016,ADULT SOCIAL CARE,ANCHOR TRUST,"1,880.00",ANCHOR CONTRACT,RESIDENTIAL CARE,2102560003
03.09.2016,ADULT SOCIAL CARE,ANCHOR TRUST,"1,880.00",ANCHOR CONTRACT,RESIDENTIAL CARE,2102560004
03.09.2016,ADULT SOCIAL CARE,ANCHOR TRUST,"1,880.00",ANCHOR CONTRACT,RESIDENTIAL CARE,2102560005
03.09.2016,ADULT SOCIAL CARE,ANCHOR TRUST,"1,880.00",ANCHOR CONTRACT,RESIDENTIAL CARE,2102560008
03.09.2016,ADULT SOCIAL CARE,ANCHOR TRUST,"1,880.00",ANCHOR CONTRACT,RESIDENTIAL CARE,2102560010
03.09.2016,ADULT SOCIAL CARE,ANCHOR TRUST,"1,880.00",ANCHOR CONTRACT,RESIDENTIAL CARE,2102560012
03.09.2016,ADULT SOCIAL CARE,ANCHOR TRUST,"1,880.00",ANCHOR CONTRACT,RESIDENTIAL CARE,2102560013
03.09.2016,ADULT SOCIAL CARE,ANCHOR TRUST,"1,880.00",ANCHOR CONTRACT,RESIDENTIAL CARE,2102560014
03.09.2016,ADULT SOCIAL CARE,ANCHOR TRUST,"1,880.00",ANCHOR CONTRACT,RESIDENTIAL CARE,2102560015
03.09.2016,ADULT SOCIAL CARE,ANCHOR TRUST,"1,880.00",ANCHOR CONTRACT,RESIDENTIAL CARE,2102560017
03.09.2016,ADULT SOCIAL CARE,ANCHOR TRUST,"1,880.00",ANCHOR CONTRACT,RESIDENTIAL CARE,2102560020
03.09.2016,ADULT SOCIAL CARE,ANCHOR TRUST,"1,880.00",ANCHOR CONTRACT,RESIDENTIAL CARE,2102560022
03.09.2016,ADULT SOCIAL CARE,ANCHOR TRUST,"1,880.00",ANCHOR CONTRACT,RESIDENTIAL CARE,2102560033
03.09.2016,ADULT SOCIAL CARE,ANCHOR TRUST,"1,880.00",ANCHOR CONTRACT,RESIDENTIAL CARE,2102560034
03.09.2016,ADULT SOCIAL CARE,ANCHOR TRUST,"1,880.00",ANCHOR CONTRACT,RESIDENTIAL CARE,2102560038
03.09.2016,ADULT SOCIAL CARE,ANCHOR TRUST,"1,880.00",ANCHOR CONTRACT,RESIDENTIAL CARE,2102560039
03.09.2016,ADULT SOCIAL CARE,ANCHOR TRUST,"1,880.00",ANCHOR CONTRACT,RESIDENTIAL CARE,2102560040
30.09.2016,ADULT SOCIAL CARE,ANCHOR TRUST,"1,880.00",ANCHOR CONTRACT,RESIDENTIAL CARE,2102570669
30.09.2016,ADULT SOCIAL CARE,ANCHOR TRUST,"1,880.00",ANCHOR CONTRACT,RESIDENTIAL CARE,2102570670
30.09.2016,ADULT SOCIAL CARE,ANCHOR TRUST,"1,880.00",ANCHOR CONTRACT,RESIDENTIAL CARE,2102570675
30.09.2016,ADULT SOCIAL CARE,ANCHOR TRUST,"1,880.00",ANCHOR CONTRACT,RESIDENTIAL CARE,2102570677
30.09.2016,ADULT SOCIAL CARE,ANCHOR TRUST,"1,880.00",ANCHOR CONTRACT,RESIDENTIAL CARE,2102570679
30.09.2016,ADULT SOCIAL CARE,ANCHOR TRUST,"1,880.00",ANCHOR CONTRACT,RESIDENTIAL CARE,2102570684
30.09.2016,ADULT SOCIAL CARE,ANCHOR TRUST,"1,880.00",ANCHOR CONTRACT,RESIDENTIAL CARE,2102570686
30.09.2016,ADULT SOCIAL CARE,ANCHOR TRUST,"1,880.00",ANCHOR CONTRACT,RESIDENTIAL CARE,2102570688
30.09.2016,ADULT SOCIAL CARE,ANCHOR TRUST,"1,880.00",ANCHOR CONTRACT,RESIDENTIAL CARE,2102570689
30.09.2016,ADULT SOCIAL CARE,ANCHOR TRUST,"1,880.00",ANCHOR CONTRACT,RESIDENTIAL CARE,2102570700
30.09.2016,ADULT SOCIAL CARE,ANCHOR TRUST,"1,880.00",ANCHOR CONTRACT,RESIDENTIAL CARE,2102570702
30.09.2016,ADULT SOCIAL CARE,ANCHOR TRUST,"1,880.00",OP - NURSING,RESIDENTIAL CARE,2102570703
30.09.2016,ADULT SOCIAL CARE,ANCHOR TRUST,"1,880.00",ANCHOR CONTRACT,RESIDENTIAL CARE,2102570705
30.09.2016,ADULT SOCIAL CARE,ANCHOR TRUST,"1,880.00",ANCHOR CONTRACT,RESIDENTIAL CARE,2102570706
30.09.2016,ADULT SOCIAL CARE,ANCHOR TRUST,"1,880.00",ANCHOR CONTRACT,RESIDENTIAL CARE,2102570709
30.09.2016,ADULT SOCIAL CARE,ANCHOR TRUST,"1,880.00",ANCHOR CONTRACT,RESIDENTIAL CARE,2102570712
30.09.2016,ADULT SOCIAL CARE,ANCHOR TRUST,"1,880.00",ANCHOR CONTRACT,RESIDENTIAL CARE,2102570713
30.09.2016,ADULT SOCIAL CARE,ANCHOR TRUST,"1,880.00",ANCHOR CONTRACT,RESIDENTIAL CARE,2102570715
30.09.2016,ADULT SOCIAL CARE,ANCHOR TRUST,"1,880.00",ANCHOR CONTRACT,RESIDENTIAL CARE,2102570716
30.09.2016,ADULT SOCIAL CARE,ANCHOR TRUST,"1,880.00",ANCHOR CONTRACT,RESIDENTIAL CARE,2102570717
30.09.2016,ADULT SOCIAL CARE,ANCHOR TRUST,"1,880.00",ANCHOR CONTRACT,RESIDENTIAL CARE,2102570721
30.09.2016,ADULT SOCIAL CARE,ANCHOR TRUST,"1,880.00",ANCHOR CONTRACT,RESIDENTIAL CARE,2102570724
30.09.2016,ADULT SOCIAL CARE,ANCHOR TRUST,"1,880.00",ANCHOR CONTRACT,RESIDENTIAL CARE,2102570726
30.09.2016,ADULT SOCIAL CARE,ANCHOR TRUST,"1,880.00",ANCHOR CONTRACT,RESIDENTIAL CARE,2102570727
30.09.2016,ADULT SOCIAL CARE,ANCHOR TRUST,"1,880.00",ANCHOR CONTRACT,PLACEMENTS - RESPITE,2102570728
30.09.2016,ADULT SOCIAL CARE,ANCHOR TRUST,"1,880.00",ANCHOR CONTRACT,RESIDENTIAL CARE,2102570730
30.09.2016,ADULT SOCIAL CARE,ANCHOR TRUST,"1,880.00",ANCHOR CONTRACT,RESIDENTIAL CARE,2102570731
30.09.2016,ADULT SOCIAL CARE,ANCHOR TRUST,"1,880.00",ANCHOR CONTRACT,RESIDENTIAL CARE,2102570732
30.09.2016,ADULT SOCIAL CARE,ANCHOR TRUST,"1,880.00",ANCHOR CONTRACT,RESIDENTIAL CARE,2102570733
30.09.2016,ADULT SOCIAL CARE,ANCHOR TRUST,"1,880.00",ANCHOR CONTRACT,RESIDENTIAL CARE,2102570736
30.09.2016,ADULT SOCIAL CARE,ANCHOR TRUST,"1,880.00",ANCHOR CONTRACT,RESIDENTIAL CARE,2102570737
30.09.2016,ADULT SOCIAL CARE,ANCHOR TRUST,"1,880.00",ANCHOR CONTRACT,RESIDENTIAL CARE,2102570739
30.09.2016,ADULT SOCIAL CARE,ANCHOR TRUST,"1,880.00",ANCHOR CONTRACT,RESIDENTIAL CARE,2102570745
30.09.2016,ADULT SOCIAL CARE,ANCHOR TRUST,"1,880.00",ANCHOR CONTRACT,RESIDENTIAL CARE,2102570747
30.09.2016,ADULT SOCIAL CARE,ANCHOR TRUST,"1,880.00",ANCHOR CONTRACT,RESIDENTIAL CARE,2102570748
30.09.2016,ADULT SOCIAL CARE,ANCHOR TRUST,"1,880.00",ANCHOR CONTRACT,RESIDENTIAL CARE,2102570752
30.09.2016,ADULT SOCIAL CARE,ANCHOR TRUST,"1,880.00",ANCHOR CONTRACT,RESIDENTIAL CARE,2102570753
30.09.2016,ADULT SOCIAL CARE,ANCHOR TRUST,"1,880.00",ANCHOR CONTRACT,RESIDENTIAL CARE,2102570754
30.09.2016,ADULT SOCIAL CARE,ANCHOR TRUST,"1,880.00",ANCHOR CONTRACT,RESIDENTIAL CARE,2102570758
30.09.2016,ADULT SOCIAL CARE,ANCHOR TRUST,"1,880.00",ANCHOR CONTRACT,RESIDENTIAL CARE,2102570761
30.09.2016,ADULT SOCIAL CARE,ANCHOR TRUST,"1,880.00",ANCHOR CONTRACT,RESIDENTIAL CARE,2102570762
30.09.2016,ADULT SOCIAL CARE,ANCHOR TRUST,"1,880.00",ANCHOR CONTRACT,RESIDENTIAL CARE,2102570763
30.09.2016,ADULT SOCIAL CARE,ANCHOR TRUST,"1,880.00",ANCHOR CONTRACT,RESIDENTIAL CARE,2102570764
30.09.2016,ADULT SOCIAL CARE,ANCHOR TRUST,"1,880.00",ANCHOR CONTRACT,RESIDENTIAL CARE,2102570765
30.09.2016,ADULT SOCIAL CARE,ANCHOR TRUST,"1,880.00",ANCHOR CONTRACT,RESIDENTIAL CARE,2102570768
30.09.2016,ADULT SOCIAL CARE,ANCHOR TRUST,"1,880.00",ANCHOR CONTRACT,RESIDENTIAL CARE,2102570770
30.09.2016,ADULT SOCIAL CARE,ANCHOR TRUST,"1,880.00",ANCHOR CONTRACT,RESIDENTIAL CARE,2102570772
30.09.2016,ADULT SOCIAL CARE,ANCHOR TRUST,"1,880.00",ANCHOR CONTRACT,RESIDENTIAL CARE,2102570773
30.09.2016,ADULT SOCIAL CARE,ANCHOR TRUST,"1,880.00",ANCHOR CONTRACT,RESIDENTIAL CARE,2102570774
30.09.2016,ADULT SOCIAL CARE,ANCHOR TRUST,"1,880.00",ANCHOR CONTRACT,RESIDENTIAL CARE,2102570775
30.09.2016,ADULT SOCIAL CARE,ANCHOR TRUST,"1,880.00",ANCHOR CONTRACT,RESIDENTIAL CARE,2102570777
30.09.2016,ADULT SOCIAL CARE,ANCHOR TRUST,"1,880.00",ANCHOR CONTRACT,RESIDENTIAL CARE,2102570781
30.09.2016,ADULT SOCIAL CARE,ANCHOR TRUST,"1,880.00",ANCHOR CONTRACT,RESIDENTIAL CARE,2102570783
30.09.2016,ADULT SOCIAL CARE,ANCHOR TRUST,"1,880.00",ANCHOR CONTRACT,RESIDENTIAL CARE,2102570798
30.09.2016,ADULT SOCIAL CARE,ANCHOR TRUST,"1,880.00",ANCHOR CONTRACT,RESIDENTIAL CARE,2102570799
30.09.2016,ADULT SOCIAL CARE,ANCHOR TRUST,"1,880.00",ANCHOR CONTRACT,RESIDENTIAL CARE,2102570802
30.09.2016,ADULT SOCIAL CARE,ANCHOR TRUST,"1,880.00",ANCHOR CONTRACT,RESIDENTIAL CARE,2102570804
30.09.2016,ADULT SOCIAL CARE,ANCHOR TRUST,"1,880.00",ANCHOR CONTRACT,RESIDENTIAL CARE,2102570806
03.09.2016,ADULT SOCIAL CARE,ANCHOR TRUST,"1,818.00",ANCHOR CONTRACT,RESIDENTIAL CARE,2102559908
03.09.2016,ADULT SOCIAL CARE,ANCHOR TRUST,"1,818.00",ANCHOR CONTRACT,RESIDENTIAL CARE,2102559909
03.09.2016,ADULT SOCIAL CARE,ANCHOR TRUST,"1,818.00",ANCHOR CONTRACT,RESIDENTIAL CARE,2102559912
03.09.2016,ADULT SOCIAL CARE,ANCHOR TRUST,"1,818.00",ANCHOR CONTRACT,RESIDENTIAL CARE,2102559913
03.09.2016,ADULT SOCIAL CARE,ANCHOR TRUST,"1,818.00",ANCHOR CONTRACT,RESIDENTIAL CARE,2102559915
03.09.2016,ADULT SOCIAL CARE,ANCHOR TRUST,"1,818.00",ANCHOR CONTRACT,RESIDENTIAL CARE,2102559917
03.09.2016,ADULT SOCIAL CARE,ANCHOR TRUST,"1,818.00",ANCHOR CONTRACT,RESIDENTIAL CARE,2102559919
03.09.2016,ADULT SOCIAL CARE,ANCHOR TRUST,"1,818.00",ANCHOR CONTRACT,RESIDENTIAL CARE,2102559921
03.09.2016,ADULT SOCIAL CARE,ANCHOR TRUST,"1,818.00",ANCHOR CONTRACT,RESIDENTIAL CARE,2102559922
03.09.2016,ADULT SOCIAL CARE,ANCHOR TRUST,"1,818.00",ANCHOR CONTRACT,RESIDENTIAL CARE,2102559923
03.09.2016,ADULT SOCIAL CARE,ANCHOR TRUST,"1,818.00",ANCHOR CONTRACT,RESIDENTIAL CARE,2102559924
03.09.2016,ADULT SOCIAL CARE,ANCHOR TRUST,"1,818.00",ANCHOR CONTRACT,RESIDENTIAL CARE,2102559925
03.09.2016,ADULT SOCIAL CARE,ANCHOR TRUST,"1,818.00",ANCHOR CONTRACT,RESIDENTIAL CARE,2102559927
03.09.2016,ADULT SOCIAL CARE,ANCHOR TRUST,"1,818.00",ANCHOR CONTRACT,RESIDENTIAL CARE,2102559930
03.09.2016,ADULT SOCIAL CARE,ANCHOR TRUST,"1,818.00",ANCHOR CONTRACT,RESIDENTIAL CARE,2102559933
03.09.2016,ADULT SOCIAL CARE,ANCHOR TRUST,"1,818.00",ANCHOR CONTRACT,RESIDENTIAL CARE,2102559935
03.09.2016,ADULT SOCIAL CARE,ANCHOR TRUST,"1,818.00",ANCHOR CONTRACT,RESIDENTIAL CARE,2102559936
03.09.2016,ADULT SOCIAL CARE,ANCHOR TRUST,"1,818.00",ANCHOR CONTRACT,RESIDENTIAL CARE,2102559937
03.09.2016,ADULT SOCIAL CARE,ANCHOR TRUST,"1,818.00",ANCHOR CONTRACT,RESIDENTIAL CARE,2102559938
03.09.2016,ADULT SOCIAL CARE,ANCHOR TRUST,"1,818.00",ANCHOR CONTRACT,RESIDENTIAL CARE,2102559939
03.09.2016,ADULT SOCIAL CARE,ANCHOR TRUST,"1,818.00",ANCHOR CONTRACT,RESIDENTIAL CARE,2102559940
03.09.2016,ADULT SOCIAL CARE,ANCHOR TRUST,"1,818.00",ANCHOR CONTRACT,RESIDENTIAL CARE,2102559941
03.09.2016,ADULT SOCIAL CARE,ANCHOR TRUST,"1,818.00",ANCHOR CONTRACT,RESIDENTIAL CARE,2102559942
03.09.2016,ADULT SOCIAL CARE,ANCHOR TRUST,"1,818.00",ANCHOR CONTRACT,RESIDENTIAL CARE,2102559947
03.09.2016,ADULT SOCIAL CARE,ANCHOR TRUST,"1,818.00",ANCHOR CONTRACT,RESIDENTIAL CARE,2102559950
03.09.2016,ADULT SOCIAL CARE,ANCHOR TRUST,"1,818.00",ANCHOR CONTRACT,RESIDENTIAL CARE,2102559951
03.09.2016,ADULT SOCIAL CARE,ANCHOR TRUST,"1,818.00",ANCHOR CONTRACT,RESIDENTIAL CARE,2102559953
03.09.2016,ADULT SOCIAL CARE,ANCHOR TRUST,"1,818.00",ANCHOR CONTRACT,RESIDENTIAL CARE,2102559956
03.09.2016,ADULT SOCIAL CARE,ANCHOR TRUST,"1,818.00",ANCHOR CONTRACT,RESIDENTIAL CARE,2102559960
03.09.2016,ADULT SOCIAL CARE,ANCHOR TRUST,"1,818.00",ANCHOR CONTRACT,RESIDENTIAL CARE,2102559961
03.09.2016,ADULT SOCIAL CARE,ANCHOR TRUST,"1,818.00",ANCHOR CONTRACT,RESIDENTIAL CARE,2102559962
03.09.2016,ADULT SOCIAL CARE,ANCHOR TRUST,"1,818.00",ANCHOR CONTRACT,RESIDENTIAL CARE,2102559964
03.09.2016,ADULT SOCIAL CARE,ANCHOR TRUST,"1,818.00",ANCHOR CONTRACT,RESIDENTIAL CARE,2102559965
03.09.2016,ADULT SOCIAL CARE,ANCHOR TRUST,"1,818.00",ANCHOR CONTRACT,RESIDENTIAL CARE,2102559968
03.09.2016,ADULT SOCIAL CARE,ANCHOR TRUST,"1,818.00",ANCHOR CONTRACT,RESIDENTIAL CARE,2102559972
03.09.2016,ADULT SOCIAL CARE,ANCHOR TRUST,"1,818.00",ANCHOR CONTRACT,RESIDENTIAL CARE,2102559977
03.09.2016,ADULT SOCIAL CARE,ANCHOR TRUST,"1,818.00",ANCHOR CONTRACT,RESIDENTIAL CARE,2102559978
03.09.2016,ADULT SOCIAL CARE,ANCHOR TRUST,"1,818.00",ANCHOR CONTRACT,RESIDENTIAL CARE,2102559981
03.09.2016,ADULT SOCIAL CARE,ANCHOR TRUST,"1,818.00",ANCHOR CONTRACT,RESIDENTIAL CARE,2102559986
03.09.2016,ADULT SOCIAL CARE,ANCHOR TRUST,"1,818.00",ANCHOR CONTRACT,RESIDENTIAL CARE,2102559988
03.09.2016,ADULT SOCIAL CARE,ANCHOR TRUST,"1,818.00",ANCHOR CONTRACT,RESIDENTIAL CARE,2102559991
03.09.2016,ADULT SOCIAL CARE,ANCHOR TRUST,"1,818.00",ANCHOR CONTRACT,RESIDENTIAL CARE,2102559992
03.09.2016,ADULT SOCIAL CARE,ANCHOR TRUST,"1,818.00",ANCHOR CONTRACT,RESIDENTIAL CARE,2102559993
03.09.2016,ADULT SOCIAL CARE,ANCHOR TRUST,"1,818.00",ANCHOR CONTRACT,RESIDENTIAL CARE,2102559997
03.09.2016,ADULT SOCIAL CARE,ANCHOR TRUST,"1,818.00",ANCHOR CONTRACT,RESIDENTIAL CARE,2102559998
03.09.2016,ADULT SOCIAL CARE,ANCHOR TRUST,"1,818.00",ANCHOR CONTRACT,RESIDENTIAL CARE,2102559999
03.09.2016,ADULT SOCIAL CARE,ANCHOR TRUST,"1,818.00",ANCHOR CONTRACT,RESIDENTIAL CARE,2102560001
03.09.2016,ADULT SOCIAL CARE,ANCHOR TRUST,"1,818.00",ANCHOR CONTRACT,RESIDENTIAL CARE,2102560006
03.09.2016,ADULT SOCIAL CARE,ANCHOR TRUST,"1,818.00",ANCHOR CONTRACT,RESIDENTIAL CARE,2102560007
03.09.2016,ADULT SOCIAL CARE,ANCHOR TRUST,"1,818.00",ANCHOR CONTRACT,RESIDENTIAL CARE,2102560009
03.09.2016,ADULT SOCIAL CARE,ANCHOR TRUST,"1,818.00",ANCHOR CONTRACT,RESIDENTIAL CARE,2102560011
03.09.2016,ADULT SOCIAL CARE,ANCHOR TRUST,"1,818.00",ANCHOR CONTRACT,RESIDENTIAL CARE,2102560016
03.09.2016,ADULT SOCIAL CARE,ANCHOR TRUST,"1,818.00",ANCHOR CONTRACT,RESIDENTIAL CARE,2102560018
03.09.2016,ADULT SOCIAL CARE,ANCHOR TRUST,"1,818.00",ANCHOR CONTRACT,RESIDENTIAL CARE,2102560019
03.09.2016,ADULT SOCIAL CARE,ANCHOR TRUST,"1,818.00",ANCHOR CONTRACT,RESIDENTIAL CARE,2102560021
03.09.2016,ADULT SOCIAL CARE,ANCHOR TRUST,"1,818.00",ANCHOR CONTRACT,RESIDENTIAL CARE,2102560023
03.09.2016,ADULT SOCIAL CARE,ANCHOR TRUST,"1,818.00",ANCHOR CONTRACT,RESIDENTIAL CARE,2102560024
03.09.2016,ADULT SOCIAL CARE,ANCHOR TRUST,"1,818.00",ANCHOR CONTRACT,RESIDENTIAL CARE,2102560025
03.09.2016,ADULT SOCIAL CARE,ANCHOR TRUST,"1,818.00",ANCHOR CONTRACT,RESIDENTIAL CARE,2102560026
03.09.2016,ADULT SOCIAL CARE,ANCHOR TRUST,"1,818.00",ANCHOR CONTRACT,RESIDENTIAL CARE,2102560027
03.09.2016,ADULT SOCIAL CARE,ANCHOR TRUST,"1,818.00",ANCHOR CONTRACT,RESIDENTIAL CARE,2102560028
03.09.2016,ADULT SOCIAL CARE,ANCHOR TRUST,"1,818.00",ANCHOR CONTRACT,RESIDENTIAL CARE,2102560029
03.09.2016,ADULT SOCIAL CARE,ANCHOR TRUST,"1,818.00",ANCHOR CONTRACT,RESIDENTIAL CARE,2102560030
03.09.2016,ADULT SOCIAL CARE,ANCHOR TRUST,"1,818.00",ANCHOR CONTRACT,RESIDENTIAL CARE,2102560031
03.09.2016,ADULT SOCIAL CARE,ANCHOR TRUST,"1,818.00",ANCHOR CONTRACT,RESIDENTIAL CARE,2102560032
03.09.2016,ADULT SOCIAL CARE,ANCHOR TRUST,"1,818.00",ANCHOR CONTRACT,RESIDENTIAL CARE,2102560036
03.09.2016,ADULT SOCIAL CARE,ANCHOR TRUST,"1,818.00",PD RESPITE,RESIDENTIAL CARE,2102560037
03.09.2016,ADULT SOCIAL CARE,ANCHOR TRUST,"1,818.00",ANCHOR CONTRACT,RESIDENTIAL CARE,2102560041
03.09.2016,ADULT SOCIAL CARE,ANCHOR TRUST,"1,818.00",ANCHOR CONTRACT,RESIDENTIAL CARE,2102560042
30.09.2016,ADULT SOCIAL CARE,ANCHOR TRUST,"1,818.00",ANCHOR CONTRACT,RESIDENTIAL CARE,2102570667
30.09.2016,ADULT SOCIAL CARE,ANCHOR TRUST,"1,818.00",ANCHOR CONTRACT,RESIDENTIAL CARE,2102570671
30.09.2016,ADULT SOCIAL CARE,ANCHOR TRUST,"1,818.00",ANCHOR CONTRACT,RESIDENTIAL CARE,2102570672
30.09.2016,ADULT SOCIAL CARE,ANCHOR TRUST,"1,818.00",ANCHOR CONTRACT,RESIDENTIAL CARE,2102570673
30.09.2016,ADULT SOCIAL CARE,ANCHOR TRUST,"1,818.00",ANCHOR CONTRACT,RESIDENTIAL CARE,2102570674
30.09.2016,ADULT SOCIAL CARE,ANCHOR TRUST,"1,818.00",ANCHOR CONTRACT,RESIDENTIAL CARE,2102570676
30.09.2016,ADULT SOCIAL CARE,ANCHOR TRUST,"1,818.00",ANCHOR CONTRACT,RESIDENTIAL CARE,2102570678
30.09.2016,ADULT SOCIAL CARE,ANCHOR TRUST,"1,818.00",ANCHOR CONTRACT,RESIDENTIAL CARE,2102570680
30.09.2016,ADULT SOCIAL CARE,ANCHOR TRUST,"1,818.00",ANCHOR CONTRACT,RESIDENTIAL CARE,2102570681
30.09.2016,ADULT SOCIAL CARE,ANCHOR TRUST,"1,818.00",ANCHOR CONTRACT,RESIDENTIAL CARE,2102570682
30.09.2016,ADULT SOCIAL CARE,ANCHOR TRUST,"1,818.00",ANCHOR CONTRACT,RESIDENTIAL CARE,2102570683
30.09.2016,ADULT SOCIAL CARE,ANCHOR TRUST,"1,818.00",ANCHOR CONTRACT,RESIDENTIAL CARE,2102570685
30.09.2016,ADULT SOCIAL CARE,ANCHOR TRUST,"1,818.00",ANCHOR CONTRACT,RESIDENTIAL CARE,2102570687
30.09.2016,ADULT SOCIAL CARE,ANCHOR TRUST,"1,818.00",ANCHOR CONTRACT,RESIDENTIAL CARE,2102570690
30.09.2016,ADULT SOCIAL CARE,ANCHOR TRUST,"1,818.00",ANCHOR CONTRACT,RESIDENTIAL CARE,2102570691
30.09.2016,ADULT SOCIAL CARE,ANCHOR TRUST,"1,818.00",ANCHOR CONTRACT,RESIDENTIAL CARE,2102570692
30.09.2016,ADULT SOCIAL CARE,ANCHOR TRUST,"1,818.00",ANCHOR CONTRACT,RESIDENTIAL CARE,2102570694
30.09.2016,ADULT SOCIAL CARE,ANCHOR TRUST,"1,818.00",ANCHOR CONTRACT,RESIDENTIAL CARE,2102570695
30.09.2016,ADULT SOCIAL CARE,ANCHOR TRUST,"1,818.00",ANCHOR CONTRACT,RESIDENTIAL CARE,2102570696
30.09.2016,ADULT SOCIAL CARE,ANCHOR TRUST,"1,818.00",ANCHOR CONTRACT,RESIDENTIAL CARE,2102570697
30.09.2016,ADULT SOCIAL CARE,ANCHOR TRUST,"1,818.00",ANCHOR CONTRACT,RESIDENTIAL CARE,2102570698
30.09.2016,ADULT SOCIAL CARE,ANCHOR TRUST,"1,818.00",ANCHOR CONTRACT,RESIDENTIAL CARE,2102570699
30.09.2016,ADULT SOCIAL CARE,ANCHOR TRUST,"1,818.00",ANCHOR CONTRACT,RESIDENTIAL CARE,2102570704
30.09.2016,ADULT SOCIAL CARE,ANCHOR TRUST,"1,818.00",ANCHOR CONTRACT,RESIDENTIAL CARE,2102570707
30.09.2016,ADULT SOCIAL CARE,ANCHOR TRUST,"1,818.00",ANCHOR CONTRACT,RESIDENTIAL CARE,2102570708
30.09.2016,ADULT SOCIAL CARE,ANCHOR TRUST,"1,818.00",ANCHOR CONTRACT,RESIDENTIAL CARE,2102570710
30.09.2016,ADULT SOCIAL CARE,ANCHOR TRUST,"1,818.00",ANCHOR CONTRACT,RESIDENTIAL CARE,2102570714
30.09.2016,ADULT SOCIAL CARE,ANCHOR TRUST,"1,818.00",ANCHOR CONTRACT,RESIDENTIAL CARE,2102570718
30.09.2016,ADULT SOCIAL CARE,ANCHOR TRUST,"1,818.00",ANCHOR CONTRACT,RESIDENTIAL CARE,2102570719
30.09.2016,ADULT SOCIAL CARE,ANCHOR TRUST,"1,818.00",ANCHOR CONTRACT,RESIDENTIAL CARE,2102570720
30.09.2016,ADULT SOCIAL CARE,ANCHOR TRUST,"1,818.00",ANCHOR CONTRACT,RESIDENTIAL CARE,2102570722
30.09.2016,ADULT SOCIAL CARE,ANCHOR TRUST,"1,818.00",ANCHOR CONTRACT,RESIDENTIAL CARE,2102570723
30.09.2016,ADULT SOCIAL CARE,ANCHOR TRUST,"1,818.00",ANCHOR CONTRACT,RESIDENTIAL CARE,2102570725
30.09.2016,ADULT SOCIAL CARE,ANCHOR TRUST,"1,818.00",ANCHOR CONTRACT,RESIDENTIAL CARE,2102570729
30.09.2016,ADULT SOCIAL CARE,ANCHOR TRUST,"1,818.00",ANCHOR CONTRACT,RESIDENTIAL CARE,2102570734
30.09.2016,ADULT SOCIAL CARE,ANCHOR TRUST,"1,818.00",ANCHOR CONTRACT,RESIDENTIAL CARE,2102570735
30.09.2016,ADULT SOCIAL CARE,ANCHOR TRUST,"1,818.00",ANCHOR CONTRACT,RESIDENTIAL CARE,2102570738
30.09.2016,ADULT SOCIAL CARE,ANCHOR TRUST,"1,818.00",ANCHOR CONTRACT,RESIDENTIAL CARE,2102570744
30.09.2016,ADULT SOCIAL CARE,ANCHOR TRUST,"1,818.00",ANCHOR CONTRACT,RESIDENTIAL CARE,2102570746
30.09.2016,ADULT SOCIAL CARE,ANCHOR TRUST,"1,818.00",ANCHOR CONTRACT,RESIDENTIAL CARE,2102570749
30.09.2016,ADULT SOCIAL CARE,ANCHOR TRUST,"1,818.00",ANCHOR CONTRACT,RESIDENTIAL CARE,2102570750
30.09.2016,ADULT SOCIAL CARE,ANCHOR TRUST,"1,818.00",ANCHOR CONTRACT,RESIDENTIAL CARE,2102570751
30.09.2016,ADULT SOCIAL CARE,ANCHOR TRUST,"1,818.00",ANCHOR CONTRACT,RESIDENTIAL CARE,2102570755
30.09.2016,ADULT SOCIAL CARE,ANCHOR TRUST,"1,818.00",ANCHOR CONTRACT,RESIDENTIAL CARE,2102570756
30.09.2016,ADULT SOCIAL CARE,ANCHOR TRUST,"1,818.00",ANCHOR CONTRACT,RESIDENTIAL CARE,2102570757
30.09.2016,ADULT SOCIAL CARE,ANCHOR TRUST,"1,818.00",ANCHOR CONTRACT,RESIDENTIAL CARE,2102570759
30.09.2016,ADULT SOCIAL CARE,ANCHOR TRUST,"1,818.00",ANCHOR CONTRACT,RESIDENTIAL CARE,2102570766
30.09.2016,ADULT SOCIAL CARE,ANCHOR TRUST,"1,818.00",ANCHOR CONTRACT,RESIDENTIAL CARE,2102570767
30.09.2016,ADULT SOCIAL CARE,ANCHOR TRUST,"1,818.00",ANCHOR CONTRACT,RESIDENTIAL CARE,2102570769
30.09.2016,ADULT SOCIAL CARE,ANCHOR TRUST,"1,818.00",ANCHOR CONTRACT,RESIDENTIAL CARE,2102570771
30.09.2016,ADULT SOCIAL CARE,ANCHOR TRUST,"1,818.00",ANCHOR CONTRACT,RESIDENTIAL CARE,2102570776
30.09.2016,ADULT SOCIAL CARE,ANCHOR TRUST,"1,818.00",ANCHOR CONTRACT,RESIDENTIAL CARE,2102570778
30.09.2016,ADULT SOCIAL CARE,ANCHOR TRUST,"1,818.00",ANCHOR CONTRACT,RESIDENTIAL CARE,2102570779
30.09.2016,ADULT SOCIAL CARE,ANCHOR TRUST,"1,818.00",ANCHOR CONTRACT,RESIDENTIAL CARE,2102570782
30.09.2016,ADULT SOCIAL CARE,ANCHOR TRUST,"1,818.00",ANCHOR CONTRACT,RESIDENTIAL CARE,2102570788
30.09.2016,ADULT SOCIAL CARE,ANCHOR TRUST,"1,818.00",ANCHOR CONTRACT,RESIDENTIAL CARE,2102570789
30.09.2016,ADULT SOCIAL CARE,ANCHOR TRUST,"1,818.00",ANCHOR CONTRACT,RESIDENTIAL CARE,2102570790
30.09.2016,ADULT SOCIAL CARE,ANCHOR TRUST,"1,818.00",ANCHOR CONTRACT,RESIDENTIAL CARE,2102570791
30.09.2016,ADULT SOCIAL CARE,ANCHOR TRUST,"1,818.00",ANCHOR CONTRACT,RESIDENTIAL CARE,2102570792
30.09.2016,ADULT SOCIAL CARE,ANCHOR TRUST,"1,818.00",ANCHOR CONTRACT,RESIDENTIAL CARE,2102570793
30.09.2016,ADULT SOCIAL CARE,ANCHOR TRUST,"1,818.00",ANCHOR CONTRACT,RESIDENTIAL CARE,2102570795
30.09.2016,ADULT SOCIAL CARE,ANCHOR TRUST,"1,818.00",ANCHOR CONTRACT,RESIDENTIAL CARE,2102570796
30.09.2016,ADULT SOCIAL CARE,ANCHOR TRUST,"1,818.00",ANCHOR CONTRACT,RESIDENTIAL CARE,2102570797
30.09.2016,ADULT SOCIAL CARE,ANCHOR TRUST,"1,818.00",ANCHOR CONTRACT,RESIDENTIAL CARE,2102570800
30.09.2016,ADULT SOCIAL CARE,ANCHOR TRUST,"1,818.00",PD RESPITE,RESIDENTIAL CARE,2102570801
30.09.2016,ADULT SOCIAL CARE,ANCHOR TRUST,"1,818.00",ANCHOR CONTRACT,RESIDENTIAL CARE,2102570807
30.09.2016,ADULT SOCIAL CARE,ANCHOR TRUST,"1,818.00",ANCHOR CONTRACT,RESIDENTIAL CARE,2102570808
03.09.2016,ADULT SOCIAL CARE,ANCHOR TRUST,"1,812.86",ANCHOR CONTRACT,RESIDENTIAL CARE,2102559985
30.09.2016,ADULT SOCIAL CARE,ANCHOR TRUST,"1,812.86",ANCHOR CONTRACT,RESIDENTIAL CARE,2102570803
30.09.2016,ADULT SOCIAL CARE,ANCHOR TRUST,"1,688.14",ANCHOR CONTRACT,RESIDENTIAL CARE,2102570780
03.09.2016,ADULT SOCIAL CARE,ANCHOR TRUST,"1,558.29",ANCHOR CONTRACT,RESIDENTIAL CARE,2102559914
03.09.2016,ADULT SOCIAL CARE,ANCHOR TRUST,"1,233.64",ANCHOR CONTRACT,PLACEMENTS - RESPITE,2102559929
30.09.2016,ADULT SOCIAL CARE,ANCHOR TRUST,"1,208.58",ANCHOR CONTRACT,PLACEMENTS - RESPITE,2102570794
30.09.2016,ADULT SOCIAL CARE,ANCHOR TRUST,"1,074.29",ANCHOR CONTRACT,RESIDENTIAL CARE,2102570760
03.09.2016,ADULT SOCIAL CARE,ANCHOR TRUST,"1,038.86",ANCHOR CONTRACT,PLACEMENTS - RESPITE,2102559934
30.09.2016,ADULT SOCIAL CARE,ANCHOR TRUST,973.93,ANCHOR CONTRACT,PLACEMENTS - RESPITE,2102570787
30.09.2016,ADULT SOCIAL CARE,ANCHOR TRUST,940,ANCHOR CONTRACT,PLACEMENTS - RESPITE,2102570742
03.09.2016,ADULT SOCIAL CARE,ANCHOR TRUST,872.86,ANCHOR CONTRACT,PLACEMENTS - RESPITE,2102559944
03.09.2016,ADULT SOCIAL CARE,ANCHOR TRUST,844.07,ANCHOR CONTRACT,RESIDENTIAL CARE,2102559906
30.09.2016,ADULT SOCIAL CARE,ANCHOR TRUST,671.43,ANCHOR CONTRACT,RESIDENTIAL CARE,2102570741
03.09.2016,ADULT SOCIAL CARE,ANCHOR TRUST,584.36,ANCHOR CONTRACT,PLACEMENTS - RESPITE,2102559932
30.09.2016,ADULT SOCIAL CARE,ANCHOR TRUST,454.5,ANCHOR CONTRACT,RESIDENTIAL CARE,2102570666
30.09.2016,ADULT SOCIAL CARE,ANCHOR TRUST,454.5,ANCHOR CONTRACT,PLACEMENTS - RESPITE,2102570743
03.09.2016,ADULT SOCIAL CARE,ANCHOR TRUST,335.71,ANCHOR CONTRACT,RESIDENTIAL CARE,2102559984
03.09.2016,ADULT SOCIAL CARE,ANCHOR TRUST,259.71,ANCHOR CONTRACT,RESIDENTIAL CARE,2102559907
30.09.2016,ADULT SOCIAL CARE,ANCHOR TRUST,-259.71,ANCHOR CONTRACT,RESIDENTIAL CARE,2102570693
30.09.2016,ADULT SOCIAL CARE,ANCHOR TRUST,-714.21,ANCHOR CONTRACT,RESIDENTIAL CARE,2102570784
03.09.2016,ADULT SOCIAL CARE,ANCHOR TRUST,-805.71,ANCHOR CONTRACT,RESIDENTIAL CARE,2102559945
03.09.2016,ADULT SOCIAL CARE,ANCHOR TRUST,"-1,947.14",ANCHOR CONTRACT,RESIDENTIAL CARE,2102559966
30.09.2016,ADULT SOCIAL CARE,ANCHOR TRUST,"-5,778.64",ANCHOR CONTRACT,RESIDENTIAL CARE,2102570664
30.09.2016,ADULT SOCIAL CARE,ANCHOR TRUST,"-10,981.20",ANCHOR CONTRACT,RESIDENTIAL CARE,2102570786
02.09.2016,ADULT SOCIAL CARE,BEDE HOUSE ASSOCIATION,280,PERSONAL BUDGET - SOCIAL CARE,PERSONALISATION PAYMENTS,2102557623
03.09.2016,ADULT SOCIAL CARE,THE DULWICH CARE CENTRE,"3,000.00",PD RESIDENTIAL,RESIDENTIAL CARE,2102560049
30.09.2016,ADULT SOCIAL CARE,THE DULWICH CARE CENTRE,"3,000.00",PD RESIDENTIAL,RESIDENTIAL CARE,2102570811
03.09.2016,ADULT SOCIAL CARE,THE DULWICH CARE CENTRE,"2,288.92", OP CARE PACKAGES,RESIDENTIAL CARE,2102560058
30.09.2016,ADULT SOCIAL CARE,THE DULWICH CARE CENTRE,"2,288.92", OP CARE PACKAGES,RESIDENTIAL CARE,2102570814
03.09.2016,ADULT SOCIAL CARE,THE DULWICH CARE CENTRE,"2,276.64", OP CARE PACKAGES,NURSING PLACEMENTS FEES,2102560051
30.09.2016,ADULT SOCIAL CARE,THE DULWICH CARE CENTRE,"2,276.64", OP CARE PACKAGES,NURSING PLACEMENTS FEES,2102570812
03.09.2016,ADULT SOCIAL CARE,THE DULWICH CARE CENTRE,"2,200.88",OP - HOMECARE,RESIDENTIAL CARE,2102560054
30.09.2016,ADULT SOCIAL CARE,THE DULWICH CARE CENTRE,367.77,OP - HOMECARE,"MAND STATUTORY CHARGES, RESIDENTIAL",2102570810
03.09.2016,ADULT SOCIAL CARE,THE DULWICH CARE CENTRE,326.99, OP CARE PACKAGES,"MAND STATUTORY CHARGES, RESIDENTIAL",2102560044
03.09.2016,ADULT SOCIAL CARE,THE DULWICH CARE CENTRE,298.1,PD NURSING,NURSING PLACEMENTS FEES,2102560050
03.09.2016,ADULT SOCIAL CARE,THE DULWICH CARE CENTRE,297.47,PD NURSING,NURSING PLACEMENTS FEES,2102560056
03.09.2016,ADULT SOCIAL CARE,THE DULWICH CARE CENTRE,-321.8,OP - HOMECARE,"MAND STATUTORY CHARGES, RESIDENTIAL",2102560055
03.09.2016,ADULT SOCIAL CARE,THE DULWICH CARE CENTRE,-326.99, OP CARE PACKAGES,RESIDENTIAL CARE,2102560043
03.09.2016,ADULT SOCIAL CARE,THE DULWICH CARE CENTRE,-459.6, OP CARE PACKAGES,NURSING PLACEMENTS FEES,2102560045
03.09.2016,ADULT SOCIAL CARE,THE DULWICH CARE CENTRE,-550, OP CARE PACKAGES,RESIDENTIAL CARE,2102560053
03.09.2016,ADULT SOCIAL CARE,THE DULWICH CARE CENTRE,-560.6, OP CARE PACKAGES,"MAND STATUTORY CHARGES, NURSING",2102560052
30.09.2016,ADULT SOCIAL CARE,THE DULWICH CARE CENTRE,-560.6, OP CARE PACKAGES,"MAND STATUTORY CHARGES, NURSING",2102570813
03.09.2016,ADULT SOCIAL CARE,THE DULWICH CARE CENTRE,-658.28, OP CARE PACKAGES,NURSING PLACEMENTS FEES,2102560047
03.09.2016,ADULT SOCIAL CARE,THE DULWICH CARE CENTRE,-993.2, OP CARE PACKAGES,"MAND STATUTORY CHARGES, RESIDENTIAL",2102560059
30.09.2016,ADULT SOCIAL CARE,THE DULWICH CARE CENTRE,-993.2, OP CARE PACKAGES,"MAND STATUTORY CHARGES, RESIDENTIAL",2102570815
30.09.2016,ADULT SOCIAL CARE,THE DULWICH CARE CENTRE,"-2,515.29",OP - HOMECARE,RESIDENTIAL CARE,2102570809
07.09.2016,ADULT SOCIAL CARE,PEABODY TRUST,480.1,APPOINTEESHIPS,OTHER PAYMENTS FOR CLIENTS,2102561090
07.09.2016,ADULT SOCIAL CARE,PEABODY TRUST,456,APPOINTEESHIPS,OTHER PAYMENTS FOR CLIENTS,2102561089
19.09.2016,ADULT SOCIAL CARE,CRANSTOUN DRUG SERVICES,675,DRUGS & ALCOHOL REHABITATION PLACES,PLACEMENTS - REHAB,2102564544
11.09.2016,ADULT SOCIAL CARE,MEDACS HOMECARE,"22,620.15",REABLEMENT SERVICE,HOMECARE - IC,5902210797
06.09.2016,ADULT SOCIAL CARE,MEDACS HOMECARE,"21,598.11",REABLEMENT SERVICE,HOMECARE - IC,5902210752
03.09.2016,ADULT SOCIAL CARE,MEDACS HOMECARE,"21,169.76",REABLEMENT SERVICE,HOMECARE - IC,5902210456
14.09.2016,ADULT SOCIAL CARE,MEDACS HOMECARE,"2,189.18",PD HOME CARE,HOMECARE - SPOT,2102563890
14.09.2016,ADULT SOCIAL CARE,MEDACS HOMECARE,"1,741.23",PD HOME CARE,HOMECARE - SPOT,2102563888
14.09.2016,ADULT SOCIAL CARE,MEDACS HOMECARE,"1,616.36",TRANSITION 14YRS TO 18YRS,SECTION 17 PAYMENTS TO AGENCIES/CARERS,2102563244
03.09.2016,ADULT SOCIAL CARE,MEDACS HOMECARE,"1,616.16",TRANSITION 14YRS TO 18YRS,SECTION 17 PAYMENTS TO AGENCIES/CARERS,2102558656
14.09.2016,ADULT SOCIAL CARE,MEDACS HOMECARE,"1,572.87",TRANSITION 14YRS TO 18YRS,SECTION 17 PAYMENTS TO AGENCIES/CARERS,2102563239
02.09.2016,ADULT SOCIAL CARE,MEDACS HOMECARE,959.4, OP CARE PACKAGES,PERSONALISATION PAYMENTS,2102557683
11.09.2016,ADULT SOCIAL CARE,MEDACS HOMECARE,944.41,REABLEMENT SERVICE,CAR MILEAGE EXPENSES,5902210799
13.09.2016,ADULT SOCIAL CARE,MEDACS HOMECARE,923.52,TRANSITION 14YRS TO 18YRS,SECTION 17 PAYMENTS TO AGENCIES/CARERS,2102562511
03.09.2016,ADULT SOCIAL CARE,MEDACS HOMECARE,865.8,TRANSITION 14YRS TO 18YRS,SECTION 17 PAYMENTS TO AGENCIES/CARERS,2102558658
14.09.2016,ADULT SOCIAL CARE,MEDACS HOMECARE,865.8,TRANSITION 14YRS TO 18YRS,SECTION 17 PAYMENTS TO AGENCIES/CARERS,2102563234
02.09.2016,ADULT SOCIAL CARE,MEDACS HOMECARE,819, OP CARE PACKAGES,PERSONALISATION PAYMENTS,2102557681
23.09.2016,ADULT SOCIAL CARE,MEDACS HOMECARE,809.55,LD HOME CARE,EXTERNAL AGENCIES AND BODIES,2102566179
13.09.2016,ADULT SOCIAL CARE,MEDACS HOMECARE,773.08,OP - HOMECARE,HOMECARE - SPOT,2102562675
02.09.2016,ADULT SOCIAL CARE,MEDACS HOMECARE,725.4,PD DIRECT PAYMENTS,PERSONALISATION PAYMENTS,2102557626
14.09.2016,ADULT SOCIAL CARE,MEDACS HOMECARE,700.83,PD HOME CARE,HOMECARE - SPOT,2102563887
23.09.2016,ADULT SOCIAL CARE,MEDACS HOMECARE,693.6,PD HOME CARE,HOMECARE - SPOT,2102566178
02.09.2016,ADULT SOCIAL CARE,MEDACS HOMECARE,678.6, OP CARE PACKAGES,PERSONALISATION PAYMENTS,2102557628
02.09.2016,ADULT SOCIAL CARE,MEDACS HOMECARE,643.52, OP CARE PACKAGES,PERSONALISATION PAYMENTS,2102557682
11.09.2016,ADULT SOCIAL CARE,MEDACS HOMECARE,603.28,REABLEMENT SERVICE,CAR MILEAGE EXPENSES,5902210758
03.09.2016,ADULT SOCIAL CARE,MEDACS HOMECARE,533.91,TRANSITION 14YRS TO 18YRS,SECTION 17 PAYMENTS TO AGENCIES/CARERS,2102558659
03.09.2016,ADULT SOCIAL CARE,MEDACS HOMECARE,510.46,REABLEMENT SERVICE,CAR MILEAGE EXPENSES,5902210458
14.09.2016,ADULT SOCIAL CARE,MEDACS HOMECARE,490.62,TRANSITION 14YRS TO 18YRS,SECTION 17 PAYMENTS TO AGENCIES/CARERS,2102563238
13.09.2016,ADULT SOCIAL CARE,MEDACS HOMECARE,411.82, OP CARE PACKAGES,HOMECARE - SPOT,2102562676
02.09.2016,ADULT SOCIAL CARE,MEDACS HOMECARE,392,PERSONAL BUDGET - SOCIAL CARE,PERSONALISATION PAYMENTS,2102557684
06.09.2016,ADULT SOCIAL CARE,MEDACS HOMECARE,388.5,REABLEMENT SERVICE,PARKING CHARGES,5902210763
02.09.2016,ADULT SOCIAL CARE,MEDACS HOMECARE,374.4, OP CARE PACKAGES,PERSONALISATION PAYMENTS,2102557651
02.09.2016,ADULT SOCIAL CARE,MEDACS HOMECARE,327.6, OP CARE PACKAGES,PERSONALISATION PAYMENTS,2102557686
02.09.2016,ADULT SOCIAL CARE,MEDACS HOMECARE,327.6, OP CARE PACKAGES,PERSONALISATION PAYMENTS,2102557688
03.09.2016,ADULT SOCIAL CARE,MEDACS HOMECARE,315,REABLEMENT SERVICE,PARKING CHARGES,5902210462
14.09.2016,ADULT SOCIAL CARE,MEDACS HOMECARE,303.03,TRANSITION 14YRS TO 18YRS,SECTION 17 PAYMENTS TO AGENCIES/CARERS,2102563249
07.09.2016,ADULT SOCIAL CARE,MEDACS HOMECARE,294,REABLEMENT SERVICE,PARKING CHARGES,5902210801
23.09.2016,ADULT SOCIAL CARE,MEDACS HOMECARE,289,PWLD HOME CARE IND,HOMECARE - SPOT,2102566177
14.09.2016,ADULT SOCIAL CARE,MEDACS HOMECARE,285.39,OP - HOMECARE,HOMECARE - SPOT,2102563889
02.09.2016,ADULT SOCIAL CARE,MEDACS HOMECARE,-254.68, OP CARE PACKAGES,DISCRETIONARY FLEXIBLE FEES & INCOME,2102557687
02.09.2016,ADULT SOCIAL CARE,MEDACS HOMECARE,-392,PERSONAL BUDGET - SOCIAL CARE,DISCRETIONARY FLEXIBLE FEES & INCOME,2102557685
03.09.2016,ADULT SOCIAL CARE,FOUR SEASONS (UPLANDS CARE HOME),"2,628.56",OP - NURSING,NURSING PLACEMENTS FEES,2102560065
30.09.2016,ADULT SOCIAL CARE,FOUR SEASONS (UPLANDS CARE HOME),"2,628.56",OP - NURSING,NURSING PLACEMENTS FEES,2102570821
03.09.2016,ADULT SOCIAL CARE,FOUR SEASONS (UPLANDS CARE HOME),"2,628.00",OP - NURSING,NURSING PLACEMENTS FEES,2102560062
30.09.2016,ADULT SOCIAL CARE,FOUR SEASONS (UPLANDS CARE HOME),"2,628.00",OP - NURSING,NURSING PLACEMENTS FEES,2102570818
03.09.2016,ADULT SOCIAL CARE,FOUR SEASONS (UPLANDS CARE HOME),"2,362.44", OP CARE PACKAGES,RESIDENTIAL CARE,2102560063
30.09.2016,ADULT SOCIAL CARE,FOUR SEASONS (UPLANDS CARE HOME),"2,362.44", OP CARE PACKAGES,RESIDENTIAL CARE,2102570819
03.09.2016,ADULT SOCIAL CARE,FOUR SEASONS (UPLANDS CARE HOME),"2,109.36",OP - RESIDENTIAL,RESIDENTIAL CARE,2102560061
30.09.2016,ADULT SOCIAL CARE,FOUR SEASONS (UPLANDS CARE HOME),"2,109.36",OP - RESIDENTIAL,RESIDENTIAL CARE,2102570817
03.09.2016,ADULT SOCIAL CARE,FOUR SEASONS (UPLANDS CARE HOME),"2,095.68", OP CARE PACKAGES,NURSING PLACEMENTS FEES,2102560060
03.09.2016,ADULT SOCIAL CARE,FOUR SEASONS (UPLANDS CARE HOME),"2,095.68", OP CARE PACKAGES,NURSING PLACEMENTS FEES,2102560066
30.09.2016,ADULT SOCIAL CARE,FOUR SEASONS (UPLANDS CARE HOME),"2,095.68", OP CARE PACKAGES,NURSING PLACEMENTS FEES,2102570816
30.09.2016,ADULT SOCIAL CARE,FOUR SEASONS (UPLANDS CARE HOME),"2,095.68", OP CARE PACKAGES,NURSING PLACEMENTS FEES,2102570822
03.09.2016,ADULT SOCIAL CARE,FOUR SEASONS (UPLANDS CARE HOME),-710.64, OP CARE PACKAGES,"MAND STATUTORY CHARGES, RESIDENTIAL",2102560064
30.09.2016,ADULT SOCIAL CARE,FOUR SEASONS (UPLANDS CARE HOME),-710.64, OP CARE PACKAGES,"MAND STATUTORY CHARGES, RESIDENTIAL",2102570820
03.09.2016,ADULT SOCIAL CARE,FOUR SEASONS (UPLANDS CARE HOME),-752.2, OP CARE PACKAGES,"MAND STATUTORY CHARGES, NURSING",2102560067
30.09.2016,ADULT SOCIAL CARE,FOUR SEASONS (UPLANDS CARE HOME),-752.2, OP CARE PACKAGES,"MAND STATUTORY CHARGES, NURSING",2102570823
30.09.2016,ADULT SOCIAL CARE,EQUINOX,"3,044.08", OP CARE PACKAGES,RESIDENTIAL CARE,2102560072
30.09.2016,ADULT SOCIAL CARE,EQUINOX,"3,044.08", OP CARE PACKAGES,RESIDENTIAL CARE,2102560082
30.09.2016,ADULT SOCIAL CARE,EQUINOX,"3,044.08", OP CARE PACKAGES,RESIDENTIAL CARE,2102570826
30.09.2016,ADULT SOCIAL CARE,EQUINOX,"2,899.12", OP CARE PACKAGES,RESIDENTIAL CARE,2102560074
30.09.2016,ADULT SOCIAL CARE,EQUINOX,"2,899.12", OP CARE PACKAGES,RESIDENTIAL CARE,2102560084
30.09.2016,ADULT SOCIAL CARE,EQUINOX,"2,899.12", OP CARE PACKAGES,RESIDENTIAL CARE,2102570828
30.09.2016,ADULT SOCIAL CARE,EQUINOX,"2,682.76", OP CARE PACKAGES,RESIDENTIAL CARE,2102560076
30.09.2016,ADULT SOCIAL CARE,EQUINOX,"2,682.76", OP CARE PACKAGES,RESIDENTIAL CARE,2102560086
30.09.2016,ADULT SOCIAL CARE,EQUINOX,"2,682.76", OP CARE PACKAGES,RESIDENTIAL CARE,2102570830
30.09.2016,ADULT SOCIAL CARE,EQUINOX,"2,227.52",DRUGS & ALCOHOL RESIDENTIAL PLACES,RESIDENTIAL CARE,2102560070
30.09.2016,ADULT SOCIAL CARE,EQUINOX,"2,227.52",DRUGS & ALCOHOL RESIDENTIAL PLACES,RESIDENTIAL CARE,2102560080
30.09.2016,ADULT SOCIAL CARE,EQUINOX,"2,227.52",DRUGS & ALCOHOL RESIDENTIAL PLACES,RESIDENTIAL CARE,2102570824
30.09.2016,ADULT SOCIAL CARE,EQUINOX,758.97,PD RESIDENTIAL,"MAND STATUTORY CHARGES, RESIDENTIAL",2102560078
30.09.2016,ADULT SOCIAL CARE,EQUINOX,-427.92, OP CARE PACKAGES,"MAND STATUTORY CHARGES, RESIDENTIAL",2102560073
30.09.2016,ADULT SOCIAL CARE,EQUINOX,-427.92, OP CARE PACKAGES,"MAND STATUTORY CHARGES, RESIDENTIAL",2102560083
30.09.2016,ADULT SOCIAL CARE,EQUINOX,-427.92, OP CARE PACKAGES,"MAND STATUTORY CHARGES, RESIDENTIAL",2102570827
30.09.2016,ADULT SOCIAL CARE,EQUINOX,-477.64, OP CARE PACKAGES,"MAND STATUTORY CHARGES, RESIDENTIAL",2102560075
30.09.2016,ADULT SOCIAL CARE,EQUINOX,-477.64, OP CARE PACKAGES,"MAND STATUTORY CHARGES, RESIDENTIAL",2102560085
30.09.2016,ADULT SOCIAL CARE,EQUINOX,-477.64, OP CARE PACKAGES,"MAND STATUTORY CHARGES, RESIDENTIAL",2102570829
30.09.2016,ADULT SOCIAL CARE,EQUINOX,"-3,047.07",PD RESIDENTIAL,RESIDENTIAL CARE,2102560077
30.09.2016,ADULT SOCIAL CARE,EQUINOX,"-3,047.07",DRUGS & ALCOHOL RESIDENTIAL PLACES,RESIDENTIAL CARE,2102560079
30.09.2016,ADULT SOCIAL CARE,EQUINOX,"-9,509.71",PWLD RES PLACEMENTS,RESIDENTIAL CARE,2102560068
30.09.2016,ADULT SOCIAL CARE,EQUINOX,"-9,509.71",DRUGS & ALCOHOL RESIDENTIAL PLACES,RESIDENTIAL CARE,2102560069
03.09.2016,ADULT SOCIAL CARE,THE REGARD PARTNERSHIP (INGLEWOOD HSE),"6,482.60",PWLD RES PLACEMENTS,RESIDENTIAL CARE,2102560087
30.09.2016,ADULT SOCIAL CARE,THE REGARD PARTNERSHIP (INGLEWOOD HSE),"6,482.60",PWLD RES PLACEMENTS,RESIDENTIAL CARE,2102570831
03.09.2016,ADULT SOCIAL CARE,THE REGARD PARTNERSHIP (INGLEWOOD HSE),-400.6,PWLD RES PLACEMENTS,"MAND STATUTORY CHARGES, RESIDENTIAL",2102560088
30.09.2016,ADULT SOCIAL CARE,THE REGARD PARTNERSHIP (INGLEWOOD HSE),-400.6,PWLD RES PLACEMENTS,"MAND STATUTORY CHARGES, RESIDENTIAL",2102570832
02.09.2016,ADULT SOCIAL CARE,REDACTED PERSONAL DATA,"3,278.60",PD DIRECT PAYMENTS,PAYMENTS TO CLIENTS (DIRECT PAYMENTS),2102557689
22.09.2016,ADULT SOCIAL CARE,F A ALBIN AND SONS,984.6,PUBLIC FUNERALS S.46,MISCELLANEOUS EXPENSES,5902213904
21.09.2016,ADULT SOCIAL CARE,F A ALBIN AND SONS,978,PUBLIC FUNERALS S.46,MISCELLANEOUS EXPENSES,5902213883
21.09.2016,ADULT SOCIAL CARE,F A ALBIN AND SONS,814,PUBLIC FUNERALS S.46,MISCELLANEOUS EXPENSES,5902213890
21.09.2016,ADULT SOCIAL CARE,F A ALBIN AND SONS,814,PUBLIC FUNERALS S.46,MISCELLANEOUS EXPENSES,5902213891
21.09.2016,ADULT SOCIAL CARE,F A ALBIN AND SONS,814,PUBLIC FUNERALS S.46,MISCELLANEOUS EXPENSES,5902213894
22.09.2016,ADULT SOCIAL CARE,F A ALBIN AND SONS,814,PUBLIC FUNERALS S.46,MISCELLANEOUS EXPENSES,5902213897
07.09.2016,ADULT SOCIAL CARE,EQUINOX CARE,"1,362.75",APPOINTEESHIPS,OTHER PAYMENTS FOR CLIENTS,2102561099
07.09.2016,ADULT SOCIAL CARE,EQUINOX CARE,"1,362.75",APPOINTEESHIPS,OTHER PAYMENTS FOR CLIENTS,2102561100
03.09.2016,ADULT SOCIAL CARE,LIAISE LONDON LTD,"12,415.68",PWLD RES PLACEMENTS,RESIDENTIAL CARE,2102560089
30.09.2016,ADULT SOCIAL CARE,LIAISE LONDON LTD,"12,415.68",PWLD RES PLACEMENTS,RESIDENTIAL CARE,2102570833
03.09.2016,ADULT SOCIAL CARE,LIAISE LONDON LTD,-321.8,PWLD RES PLACEMENTS,"MAND STATUTORY CHARGES, RESIDENTIAL",2102560090
30.09.2016,ADULT SOCIAL CARE,LIAISE LONDON LTD,-321.8,PWLD RES PLACEMENTS,"MAND STATUTORY CHARGES, RESIDENTIAL",2102570834
19.09.2016,ADULT SOCIAL CARE,SURREY DOCKS FARM PROVIDENT SOCIETY,"1,008.00",PWLD DAYCARE,DAYCARE,2102564536
19.09.2016,ADULT SOCIAL CARE,SURREY DOCKS FARM PROVIDENT SOCIETY,675,PWLD DAYCARE,DAYCARE,2102564534
19.09.2016,ADULT SOCIAL CARE,SURREY DOCKS FARM PROVIDENT SOCIETY,353.05,PWLD DAYCARE,DAYCARE,2102564535
19.09.2016,ADULT SOCIAL CARE,SURREY DOCKS FARM PROVIDENT SOCIETY,288,PWLD DAYCARE,DAYCARE,2102564533
19.09.2016,ADULT SOCIAL CARE,SURREY DOCKS FARM PROVIDENT SOCIETY,280,PWLD DAYCARE,DAYCARE,2102564537
02.09.2016,ADULT SOCIAL CARE,REDACTED PERSONAL DATA,"1,672.00",PWLD DIRECT PAYMENTS,PERSONALISATION PAYMENTS,2102558162
16.09.2016,ADULT SOCIAL CARE,LONDON CARE PLC,"2,697.45",OP - HOMECARE,HOMECARE - C&V,2102564309
16.09.2016,ADULT SOCIAL CARE,LONDON CARE PLC,"2,386.40", OP CARE PACKAGES,HOMECARE - C&V,2102564365
16.09.2016,ADULT SOCIAL CARE,LONDON CARE PLC,"2,305.50",OP - HOMECARE,HOMECARE - C&V,2102564285
16.09.2016,ADULT SOCIAL CARE,LONDON CARE PLC,"2,248.07",OP - HOMECARE,HOMECARE - C&V,2102564349
16.09.2016,ADULT SOCIAL CARE,LONDON CARE PLC,"2,190.95",OP - HOMECARE,HOMECARE - C&V,2102564203
16.09.2016,ADULT SOCIAL CARE,LONDON CARE PLC,"2,190.54", OP CARE PACKAGES,HOMECARE - C&V,2102564253
16.09.2016,ADULT SOCIAL CARE,LONDON CARE PLC,"2,144.44",OP - HOMECARE,HOMECARE - C&V,2102564293
08.09.2016,ADULT SOCIAL CARE,LONDON CARE PLC,"2,098.32",HOME CARE C&V,HOMECARE - C&V,2102561228
09.09.2016,ADULT SOCIAL CARE,LONDON CARE PLC,"2,098.32", OP CARE PACKAGES,HOMECARE - C&V,2102562100
09.09.2016,ADULT SOCIAL CARE,LONDON CARE PLC,"2,044.69",HOME CARE C&V,HOMECARE - C&V,2102562108
09.09.2016,ADULT SOCIAL CARE,LONDON CARE PLC,"1,986.50",OP - HOMECARE,HOMECARE - C&V,2102562049
16.09.2016,ADULT SOCIAL CARE,LONDON CARE PLC,"1,937.04",OP - HOMECARE,HOMECARE - C&V,2102564215
16.09.2016,ADULT SOCIAL CARE,LONDON CARE PLC,"1,883.00",OP - HOMECARE,HOMECARE - C&V,2102564192
16.09.2016,ADULT SOCIAL CARE,LONDON CARE PLC,"1,810.03",OP - HOMECARE,HOMECARE - C&V,2102564278
16.09.2016,ADULT SOCIAL CARE,LONDON CARE PLC,"1,775.34", OP CARE PACKAGES,HOMECARE - C&V,2102564232
16.09.2016,ADULT SOCIAL CARE,LONDON CARE PLC,"1,706.28",OP - HOMECARE,HOMECARE - C&V,2102564300
16.09.2016,ADULT SOCIAL CARE,LONDON CARE PLC,"1,667.87",OP - HOMECARE,HOMECARE - C&V,2102564186
16.09.2016,ADULT SOCIAL CARE,LONDON CARE PLC,"1,660.20", OP CARE PACKAGES,HOMECARE - C&V,2102564354
09.09.2016,ADULT SOCIAL CARE,LONDON CARE PLC,"1,618.04",OP - HOMECARE,HOMECARE - C&V,2102562137
16.09.2016,ADULT SOCIAL CARE,LONDON CARE PLC,"1,594.92",OP - HOMECARE,HOMECARE - C&V,2102564366
16.09.2016,ADULT SOCIAL CARE,LONDON CARE PLC,"1,545.21",OP - HOMECARE,HOMECARE - C&V,2102564221
16.09.2016,ADULT SOCIAL CARE,LONDON CARE PLC,"1,499.32",OP - HOMECARE,HOMECARE - C&V,2102564277
09.09.2016,ADULT SOCIAL CARE,LONDON CARE PLC,"1,457.04",OP - HOMECARE,HOMECARE - C&V,2102562109
16.09.2016,ADULT SOCIAL CARE,LONDON CARE PLC,"1,453.20", OP CARE PACKAGES,HOMECARE - C&V,2102564325
16.09.2016,ADULT SOCIAL CARE,LONDON CARE PLC,"1,452.78",OP - HOMECARE,HOMECARE - C&V,2102564264
09.09.2016,ADULT SOCIAL CARE,LONDON CARE PLC,"1,452.57", OP CARE PACKAGES,HOMECARE - C&V,2102562102
16.09.2016,ADULT SOCIAL CARE,LONDON CARE PLC,"1,445.09",OP - HOMECARE,HOMECARE - C&V,2102564370
13.09.2016,ADULT SOCIAL CARE,LONDON CARE PLC,"1,383.72",HOME CARE C&V,HOMECARE - C&V,2102562587
09.09.2016,ADULT SOCIAL CARE,LONDON CARE PLC,"1,360.68",OP - HOMECARE,HOMECARE - C&V,2102562086
16.09.2016,ADULT SOCIAL CARE,LONDON CARE PLC,"1,264.59",HOME CARE C&V,HOMECARE - C&V,2102564376
16.09.2016,ADULT SOCIAL CARE,LONDON CARE PLC,"1,184.09", OP CARE PACKAGES,HOMECARE - C&V,2102564248
16.09.2016,ADULT SOCIAL CARE,LONDON CARE PLC,"1,106.64", OP CARE PACKAGES,HOMECARE - C&V,2102564296
16.09.2016,ADULT SOCIAL CARE,LONDON CARE PLC,"1,095.18",HOME CARE C&V,HOMECARE - C&V,2102564281
13.09.2016,ADULT SOCIAL CARE,LONDON CARE PLC,"1,049.16",OP - HOMECARE,HOMECARE - C&V,2102562602
16.09.2016,ADULT SOCIAL CARE,LONDON CARE PLC,"1,003.17", OP CARE PACKAGES,HOMECARE - C&V,2102564359
09.09.2016,ADULT SOCIAL CARE,LONDON CARE PLC,980.1,OP - HOMECARE,HOMECARE - C&V,2102562076
16.09.2016,ADULT SOCIAL CARE,LONDON CARE PLC,972.41, OP CARE PACKAGES,HOMECARE - C&V,2102564362
09.09.2016,ADULT SOCIAL CARE,LONDON CARE PLC,968.52,OP - HOMECARE,HOMECARE - C&V,2102562093
16.09.2016,ADULT SOCIAL CARE,LONDON CARE PLC,968.52,OP - HOMECARE,HOMECARE - C&V,2102564337
16.09.2016,ADULT SOCIAL CARE,LONDON CARE PLC,968.31, OP CARE PACKAGES,HOMECARE - C&V,2102564311
16.09.2016,ADULT SOCIAL CARE,LONDON CARE PLC,945.57,OP - HOMECARE,HOMECARE - C&V,2102564234
16.09.2016,ADULT SOCIAL CARE,LONDON CARE PLC,933.99,OP - HOMECARE,HOMECARE - C&V,2102564303
09.09.2016,ADULT SOCIAL CARE,LONDON CARE PLC,922.53,OP - HOMECARE,HOMECARE - C&V,2102562080
09.09.2016,ADULT SOCIAL CARE,LONDON CARE PLC,922.47,OP - HOMECARE,HOMECARE - C&V,2102562043
09.09.2016,ADULT SOCIAL CARE,LONDON CARE PLC,922.2,OP - HOMECARE,HOMECARE - C&V,2102562147
09.09.2016,ADULT SOCIAL CARE,LONDON CARE PLC,899.46,PD HOME CARE,HOMECARE - C&V,2102562091
09.09.2016,ADULT SOCIAL CARE,LONDON CARE PLC,899.4,OP - HOMECARE,HOMECARE - C&V,2102562053
09.09.2016,ADULT SOCIAL CARE,LONDON CARE PLC,864.93,OP - HOMECARE,HOMECARE - C&V,2102562117
09.09.2016,ADULT SOCIAL CARE,LONDON CARE PLC,853.2, OP CARE PACKAGES,HOMECARE - C&V,2102562131
09.09.2016,ADULT SOCIAL CARE,LONDON CARE PLC,818.82,OP - HOMECARE,HOMECARE - C&V,2102562058
16.09.2016,ADULT SOCIAL CARE,LONDON CARE PLC,814.85,OP - HOMECARE,HOMECARE - C&V,2102564297
16.09.2016,ADULT SOCIAL CARE,LONDON CARE PLC,807.24, OP CARE PACKAGES,HOMECARE - C&V,2102564229
16.09.2016,ADULT SOCIAL CARE,LONDON CARE PLC,807.24,OP - HOMECARE,HOMECARE - C&V,2102564302
16.09.2016,ADULT SOCIAL CARE,LONDON CARE PLC,807.08,HOME CARE C&V,HOMECARE - C&V,2102564178
16.09.2016,ADULT SOCIAL CARE,LONDON CARE PLC,807.03,OP - HOMECARE,HOMECARE - C&V,2102564188
09.09.2016,ADULT SOCIAL CARE,LONDON CARE PLC,776.53,OP - HOMECARE,HOMECARE - C&V,2102562121
16.09.2016,ADULT SOCIAL CARE,LONDON CARE PLC,772.71,OP - HOMECARE,HOMECARE - C&V,2102564184
16.09.2016,ADULT SOCIAL CARE,LONDON CARE PLC,772.71,OP - HOMECARE,HOMECARE - C&V,2102564199
09.09.2016,ADULT SOCIAL CARE,LONDON CARE PLC,772.55, OP CARE PACKAGES,HOMECARE - C&V,2102562077
16.09.2016,ADULT SOCIAL CARE,LONDON CARE PLC,768.71,OP - HOMECARE,HOMECARE - C&V,2102564249
16.09.2016,ADULT SOCIAL CARE,LONDON CARE PLC,768.7,OP - HOMECARE,HOMECARE - C&V,2102564284
16.09.2016,ADULT SOCIAL CARE,LONDON CARE PLC,765.02,OP - HOMECARE,HOMECARE - C&V,2102564329
16.09.2016,ADULT SOCIAL CARE,LONDON CARE PLC,761.04,OP - HOMECARE,HOMECARE - C&V,2102564373
09.09.2016,ADULT SOCIAL CARE,LONDON CARE PLC,761.01,OP - HOMECARE,HOMECARE - C&V,2102562133
16.09.2016,ADULT SOCIAL CARE,LONDON CARE PLC,760.9,HOME CARE C&V,HOMECARE - C&V,2102564289
09.09.2016,ADULT SOCIAL CARE,LONDON CARE PLC,760.86,OP - HOMECARE,HOMECARE - C&V,2102562107
16.09.2016,ADULT SOCIAL CARE,LONDON CARE PLC,757.07, OP CARE PACKAGES,HOMECARE - C&V,2102564189
09.09.2016,ADULT SOCIAL CARE,LONDON CARE PLC,753.46,OP - HOMECARE,HOMECARE - C&V,2102562144
16.09.2016,ADULT SOCIAL CARE,LONDON CARE PLC,737.97,OP - HOMECARE,HOMECARE - C&V,2102564187
16.09.2016,ADULT SOCIAL CARE,LONDON CARE PLC,737.97,HOME CARE C&V,HOMECARE - C&V,2102564195
16.09.2016,ADULT SOCIAL CARE,LONDON CARE PLC,737.97,OP - HOMECARE,HOMECARE - C&V,2102564207
16.09.2016,ADULT SOCIAL CARE,LONDON CARE PLC,722.5,HOME CARE C&V,HOMECARE - C&V,2102564182
16.09.2016,ADULT SOCIAL CARE,LONDON CARE PLC,714.93,OP - HOMECARE,HOMECARE - C&V,2102564179
16.09.2016,ADULT SOCIAL CARE,LONDON CARE PLC,714.93,OP - HOMECARE,HOMECARE - C&V,2102564378
16.09.2016,ADULT SOCIAL CARE,LONDON CARE PLC,714.92,OP - HOMECARE,HOMECARE - C&V,2102564360
16.09.2016,ADULT SOCIAL CARE,LONDON CARE PLC,711.22,OP - HOMECARE,HOMECARE - C&V,2102564276
16.09.2016,ADULT SOCIAL CARE,LONDON CARE PLC,711.2,OP - HOMECARE,HOMECARE - C&V,2102564219
16.09.2016,ADULT SOCIAL CARE,LONDON CARE PLC,703.38,OP - HOMECARE,HOMECARE - C&V,2102564250
16.09.2016,ADULT SOCIAL CARE,LONDON CARE PLC,691.92,OP - HOMECARE,HOMECARE - C&V,2102564358
16.09.2016,ADULT SOCIAL CARE,LONDON CARE PLC,691.92,OP - HOMECARE,HOMECARE - C&V,2102564367
13.09.2016,ADULT SOCIAL CARE,LONDON CARE PLC,691.86,OP - HOMECARE,HOMECARE - C&V,2102562599
09.09.2016,ADULT SOCIAL CARE,LONDON CARE PLC,688,OP - HOMECARE,HOMECARE - C&V,2102562079
16.09.2016,ADULT SOCIAL CARE,LONDON CARE PLC,684.19,OP - HOMECARE,HOMECARE - C&V,2102564255
09.09.2016,ADULT SOCIAL CARE,LONDON CARE PLC,680.4,OP - HOMECARE,HOMECARE - C&V,2102562027
16.09.2016,ADULT SOCIAL CARE,LONDON CARE PLC,657.34, OP CARE PACKAGES,HOMECARE - C&V,2102564324
16.09.2016,ADULT SOCIAL CARE,LONDON CARE PLC,657.33,OP - HOMECARE,HOMECARE - C&V,2102564261
16.09.2016,ADULT SOCIAL CARE,LONDON CARE PLC,657.33,HOME CARE C&V,HOMECARE - C&V,2102564273
16.09.2016,ADULT SOCIAL CARE,LONDON CARE PLC,657.33,OP - HOMECARE,HOMECARE - C&V,2102564274
16.09.2016,ADULT SOCIAL CARE,LONDON CARE PLC,657.33,OP - HOMECARE,HOMECARE - C&V,2102564348
16.09.2016,ADULT SOCIAL CARE,LONDON CARE PLC,657.32, OP CARE PACKAGES,HOMECARE - C&V,2102564173
16.09.2016,ADULT SOCIAL CARE,LONDON CARE PLC,657.28,OP - HOMECARE,HOMECARE - C&V,2102564345
09.09.2016,ADULT SOCIAL CARE,LONDON CARE PLC,653.43,OP - HOMECARE,HOMECARE - C&V,2102562142
16.09.2016,ADULT SOCIAL CARE,LONDON CARE PLC,645.96, OP CARE PACKAGES,HOMECARE - C&V,2102564375
09.09.2016,ADULT SOCIAL CARE,LONDON CARE PLC,645.75,OP - HOMECARE,HOMECARE - C&V,2102562139
16.09.2016,ADULT SOCIAL CARE,LONDON CARE PLC,645.75,OP - HOMECARE,HOMECARE - C&V,2102564268
16.09.2016,ADULT SOCIAL CARE,LONDON CARE PLC,645.75,OP - HOMECARE,HOMECARE - C&V,2102564269
16.09.2016,ADULT SOCIAL CARE,LONDON CARE PLC,645.75, OP CARE PACKAGES,HOMECARE - C&V,2102564357
16.09.2016,ADULT SOCIAL CARE,LONDON CARE PLC,645.69,HOME CARE C&V,HOMECARE - C&V,2102564371
16.09.2016,ADULT SOCIAL CARE,LONDON CARE PLC,645.66,OP - HOMECARE,HOMECARE - C&V,2102564288
16.09.2016,ADULT SOCIAL CARE,LONDON CARE PLC,638.06,OP - HOMECARE,HOMECARE - C&V,2102564318
16.09.2016,ADULT SOCIAL CARE,LONDON CARE PLC,638.04,OP - HOMECARE,HOMECARE - C&V,2102564316
16.09.2016,ADULT SOCIAL CARE,LONDON CARE PLC,636.83,OP - HOMECARE,HOMECARE - C&V,2102564258
16.09.2016,ADULT SOCIAL CARE,LONDON CARE PLC,630.38, OP CARE PACKAGES,HOMECARE - C&V,2102564227
09.09.2016,ADULT SOCIAL CARE,LONDON CARE PLC,630.37,HOME CARE C&V,HOMECARE - C&V,2102562035
16.09.2016,ADULT SOCIAL CARE,LONDON CARE PLC,622.5,OP - HOMECARE,HOMECARE - C&V,2102564202
16.09.2016,ADULT SOCIAL CARE,LONDON CARE PLC,615.05,OP - HOMECARE,HOMECARE - C&V,2102564205
16.09.2016,ADULT SOCIAL CARE,LONDON CARE PLC,614.8,OP - HOMECARE,HOMECARE - C&V,2102564271
09.09.2016,ADULT SOCIAL CARE,LONDON CARE PLC,611.22,OP - HOMECARE,HOMECARE - C&V,2102562126
16.09.2016,ADULT SOCIAL CARE,LONDON CARE PLC,611.22, OP CARE PACKAGES,HOMECARE - C&V,2102564294
09.09.2016,ADULT SOCIAL CARE,LONDON CARE PLC,611.01,OP - HOMECARE,HOMECARE - C&V,2102562113
02.09.2016,ADULT SOCIAL CARE,LONDON CARE PLC,610.96,OP - HOMECARE,HOMECARE - C&V,2102558078
16.09.2016,ADULT SOCIAL CARE,LONDON CARE PLC,607.4, OP CARE PACKAGES,HOMECARE - C&V,2102564214
16.09.2016,ADULT SOCIAL CARE,LONDON CARE PLC,599.7,OP - HOMECARE,HOMECARE - C&V,2102564286
09.09.2016,ADULT SOCIAL CARE,LONDON CARE PLC,599.67,OP - HOMECARE,HOMECARE - C&V,2102562125
16.09.2016,ADULT SOCIAL CARE,LONDON CARE PLC,591.98,OP - HOMECARE,HOMECARE - C&V,2102564343
16.09.2016,ADULT SOCIAL CARE,LONDON CARE PLC,588.06, OP CARE PACKAGES,HOMECARE - C&V,2102564226
16.09.2016,ADULT SOCIAL CARE,LONDON CARE PLC,587.96, OP CARE PACKAGES,HOMECARE - C&V,2102564235
16.09.2016,ADULT SOCIAL CARE,LONDON CARE PLC,576.57,OP - HOMECARE,HOMECARE - C&V,2102564317
09.09.2016,ADULT SOCIAL CARE,LONDON CARE PLC,576.48,HOME CARE C&V,HOMECARE - C&V,2102562146
16.09.2016,ADULT SOCIAL CARE,LONDON CARE PLC,576.48,OP - HOMECARE,HOMECARE - C&V,2102564163
16.09.2016,ADULT SOCIAL CARE,LONDON CARE PLC,569,OP - HOMECARE,HOMECARE - C&V,2102564336
16.09.2016,ADULT SOCIAL CARE,LONDON CARE PLC,565.11, OP CARE PACKAGES,HOMECARE - C&V,2102564299
09.09.2016,ADULT SOCIAL CARE,LONDON CARE PLC,565.02, OP CARE PACKAGES,HOMECARE - C&V,2102562045
09.09.2016,ADULT SOCIAL CARE,LONDON CARE PLC,564.9, OP CARE PACKAGES,HOMECARE - C&V,2102562063
09.09.2016,ADULT SOCIAL CARE,LONDON CARE PLC,564.9,OP - HOMECARE,HOMECARE - C&V,2102562090
16.09.2016,ADULT SOCIAL CARE,LONDON CARE PLC,564.9,OP - HOMECARE,HOMECARE - C&V,2102564374
16.09.2016,ADULT SOCIAL CARE,LONDON CARE PLC,557.42,OP - HOMECARE,HOMECARE - C&V,2102564231
16.09.2016,ADULT SOCIAL CARE,LONDON CARE PLC,549.76,OP - HOMECARE,HOMECARE - C&V,2102564168
16.09.2016,ADULT SOCIAL CARE,LONDON CARE PLC,545.81,OP - HOMECARE,HOMECARE - C&V,2102564332
09.09.2016,ADULT SOCIAL CARE,LONDON CARE PLC,542.04,OP - HOMECARE,HOMECARE - C&V,2102562031
16.09.2016,ADULT SOCIAL CARE,LONDON CARE PLC,538.16,OP - HOMECARE,HOMECARE - C&V,2102564310
16.09.2016,ADULT SOCIAL CARE,LONDON CARE PLC,538.04,OP - HOMECARE,HOMECARE - C&V,2102564307
09.09.2016,ADULT SOCIAL CARE,LONDON CARE PLC,530.58,OP - HOMECARE,HOMECARE - C&V,2102562072
16.09.2016,ADULT SOCIAL CARE,LONDON CARE PLC,530.38,HOME CARE C&V,HOMECARE - C&V,2102564319
09.09.2016,ADULT SOCIAL CARE,LONDON CARE PLC,530.37,OP - HOMECARE,HOMECARE - C&V,2102562062
09.09.2016,ADULT SOCIAL CARE,LONDON CARE PLC,530.37,HOME CARE C&V,HOMECARE - C&V,2102562075
16.09.2016,ADULT SOCIAL CARE,LONDON CARE PLC,530.37,OP - HOMECARE,HOMECARE - C&V,2102564165
16.09.2016,ADULT SOCIAL CARE,LONDON CARE PLC,530.37, OP CARE PACKAGES,HOMECARE - C&V,2102564322
16.09.2016,ADULT SOCIAL CARE,LONDON CARE PLC,522.74,OP - HOMECARE,HOMECARE - C&V,2102564334
16.09.2016,ADULT SOCIAL CARE,LONDON CARE PLC,522.7,OP - HOMECARE,HOMECARE - C&V,2102564265
16.09.2016,ADULT SOCIAL CARE,LONDON CARE PLC,518.91, OP CARE PACKAGES,HOMECARE - C&V,2102564272
16.09.2016,ADULT SOCIAL CARE,LONDON CARE PLC,518.85,OP - HOMECARE,HOMECARE - C&V,2102564312
16.09.2016,ADULT SOCIAL CARE,LONDON CARE PLC,518.84,HOME CARE C&V,HOMECARE - C&V,2102564209
16.09.2016,ADULT SOCIAL CARE,LONDON CARE PLC,515.14,OP - HOMECARE,HOMECARE - C&V,2102564223
16.09.2016,ADULT SOCIAL CARE,LONDON CARE PLC,507.33,HOME CARE C&V,HOMECARE - C&V,2102564193
09.09.2016,ADULT SOCIAL CARE,LONDON CARE PLC,495.84,OP - HOMECARE,HOMECARE - C&V,2102562069
09.09.2016,ADULT SOCIAL CARE,LONDON CARE PLC,492.01,HOME CARE C&V,HOMECARE - C&V,2102562085
16.09.2016,ADULT SOCIAL CARE,LONDON CARE PLC,491.96,OP - HOMECARE,HOMECARE - C&V,2102564356
09.09.2016,ADULT SOCIAL CARE,LONDON CARE PLC,491.94,OP - HOMECARE,HOMECARE - C&V,2102562140
09.09.2016,ADULT SOCIAL CARE,LONDON CARE PLC,488.1,OP - HOMECARE,HOMECARE - C&V,2102562054
09.09.2016,ADULT SOCIAL CARE,LONDON CARE PLC,484.47,OP - HOMECARE,HOMECARE - C&V,2102562070
09.09.2016,ADULT SOCIAL CARE,LONDON CARE PLC,484.26,OP - HOMECARE,HOMECARE - C&V,2102562084
09.09.2016,ADULT SOCIAL CARE,LONDON CARE PLC,484.26, C&V HOME CARE (PWLD),HOMECARE - C&V,2102562145
16.09.2016,ADULT SOCIAL CARE,LONDON CARE PLC,480.46,OP - HOMECARE,HOMECARE - C&V,2102564239
09.09.2016,ADULT SOCIAL CARE,LONDON CARE PLC,476.78,OP - HOMECARE,HOMECARE - C&V,2102562112
09.09.2016,ADULT SOCIAL CARE,LONDON CARE PLC,472.8,OP - HOMECARE,HOMECARE - C&V,2102562066
13.09.2016,ADULT SOCIAL CARE,LONDON CARE PLC,472.8,HOME CARE C&V,HOMECARE - C&V,2102562591
16.09.2016,ADULT SOCIAL CARE,LONDON CARE PLC,468.87,OP - HOMECARE,HOMECARE - C&V,2102564344
09.09.2016,ADULT SOCIAL CARE,LONDON CARE PLC,465.16,OP - HOMECARE,HOMECARE - C&V,2102562073
16.09.2016,ADULT SOCIAL CARE,LONDON CARE PLC,449.73,HOME CARE C&V,HOMECARE - C&V,2102564172
09.09.2016,ADULT SOCIAL CARE,LONDON CARE PLC,445.87,OP - HOMECARE,HOMECARE - C&V,2102562046
09.09.2016,ADULT SOCIAL CARE,LONDON CARE PLC,438.24,OP - HOMECARE,HOMECARE - C&V,2102562068
16.09.2016,ADULT SOCIAL CARE,LONDON CARE PLC,438.2,OP - HOMECARE,HOMECARE - C&V,2102564290
16.09.2016,ADULT SOCIAL CARE,LONDON CARE PLC,438.2,HOME CARE C&V,HOMECARE - C&V,2102564347
16.09.2016,ADULT SOCIAL CARE,LONDON CARE PLC,438.09,OP - HOMECARE,HOMECARE - C&V,2102564353
09.09.2016,ADULT SOCIAL CARE,LONDON CARE PLC,438.06,OP - HOMECARE,HOMECARE - C&V,2102562129
16.09.2016,ADULT SOCIAL CARE,LONDON CARE PLC,438.06,OP - HOMECARE,HOMECARE - C&V,2102564167
16.09.2016,ADULT SOCIAL CARE,LONDON CARE PLC,438.06,OP - HOMECARE,HOMECARE - C&V,2102564191
16.09.2016,ADULT SOCIAL CARE,LONDON CARE PLC,430.5,OP - HOMECARE,HOMECARE - C&V,2102564200
16.09.2016,ADULT SOCIAL CARE,LONDON CARE PLC,426.57,OP - HOMECARE,HOMECARE - C&V,2102564295
16.09.2016,ADULT SOCIAL CARE,LONDON CARE PLC,422.86,OP - HOMECARE,HOMECARE - C&V,2102564377
16.09.2016,ADULT SOCIAL CARE,LONDON CARE PLC,415.2,OP - HOMECARE,HOMECARE - C&V,2102564224
16.09.2016,ADULT SOCIAL CARE,LONDON CARE PLC,415.2,HOME CARE C&V,HOMECARE - C&V,2102564251
16.09.2016,ADULT SOCIAL CARE,LONDON CARE PLC,415.2,OP - HOMECARE,HOMECARE - C&V,2102564342
16.09.2016,ADULT SOCIAL CARE,LONDON CARE PLC,415.14,OP - HOMECARE,HOMECARE - C&V,2102564171
09.09.2016,ADULT SOCIAL CARE,LONDON CARE PLC,414.99,HOME CARE C&V,HOMECARE - C&V,2102562047
09.09.2016,ADULT SOCIAL CARE,LONDON CARE PLC,414.99, OP CARE PACKAGES,HOMECARE - C&V,2102562078
13.09.2016,ADULT SOCIAL CARE,LONDON CARE PLC,414.99,HOME CARE C&V,HOMECARE - C&V,2102562598
16.09.2016,ADULT SOCIAL CARE,LONDON CARE PLC,414.99,OP - HOMECARE,HOMECARE - C&V,2102564201
16.09.2016,ADULT SOCIAL CARE,LONDON CARE PLC,414.99,OP - HOMECARE,HOMECARE - C&V,2102564243
09.09.2016,ADULT SOCIAL CARE,LONDON CARE PLC,403.62,OP - HOMECARE,HOMECARE - C&V,2102562089
16.09.2016,ADULT SOCIAL CARE,LONDON CARE PLC,403.62,OP - HOMECARE,HOMECARE - C&V,2102564174
16.09.2016,ADULT SOCIAL CARE,LONDON CARE PLC,403.62,OP - HOMECARE,HOMECARE - C&V,2102564180
16.09.2016,ADULT SOCIAL CARE,LONDON CARE PLC,403.62, OP CARE PACKAGES,HOMECARE - C&V,2102564211
16.09.2016,ADULT SOCIAL CARE,LONDON CARE PLC,403.62, OP CARE PACKAGES,HOMECARE - C&V,2102564254
16.09.2016,ADULT SOCIAL CARE,LONDON CARE PLC,403.62,OP - HOMECARE,HOMECARE - C&V,2102564355
16.09.2016,ADULT SOCIAL CARE,LONDON CARE PLC,403.62,OP - HOMECARE,HOMECARE - C&V,2102564368
09.09.2016,ADULT SOCIAL CARE,LONDON CARE PLC,403.53, OP CARE PACKAGES,HOMECARE - C&V,2102562067
09.09.2016,ADULT SOCIAL CARE,LONDON CARE PLC,395.93,OP - HOMECARE,HOMECARE - C&V,2102562111
09.09.2016,ADULT SOCIAL CARE,LONDON CARE PLC,392.09,OP - HOMECARE,HOMECARE - C&V,2102562128
16.09.2016,ADULT SOCIAL CARE,LONDON CARE PLC,392.09,OP - HOMECARE,HOMECARE - C&V,2102564252
16.09.2016,ADULT SOCIAL CARE,LONDON CARE PLC,380.52,HOME CARE C&V,HOMECARE - C&V,2102564321
13.09.2016,ADULT SOCIAL CARE,LONDON CARE PLC,380.46,OP - HOMECARE,HOMECARE - C&V,2102562590
09.09.2016,ADULT SOCIAL CARE,LONDON CARE PLC,376.71,OP - HOMECARE,HOMECARE - C&V,2102562124
16.09.2016,ADULT SOCIAL CARE,LONDON CARE PLC,376.63,OP - HOMECARE,HOMECARE - C&V,2102564338
16.09.2016,ADULT SOCIAL CARE,LONDON CARE PLC,372.9,REABLEMENT SERVICE,HOMECARE - C&V,2102564222
16.09.2016,ADULT SOCIAL CARE,LONDON CARE PLC,372.86,OP - HOMECARE,HOMECARE - C&V,2102564183
16.09.2016,ADULT SOCIAL CARE,LONDON CARE PLC,369.09,OP - HOMECARE,HOMECARE - C&V,2102564194
09.09.2016,ADULT SOCIAL CARE,LONDON CARE PLC,368.94,OP - HOMECARE,HOMECARE - C&V,2102562059
09.09.2016,ADULT SOCIAL CARE,LONDON CARE PLC,368.88,HOME CARE C&V,HOMECARE - C&V,2102562087
16.09.2016,ADULT SOCIAL CARE,LONDON CARE PLC,368.88, OP CARE PACKAGES,HOMECARE - C&V,2102564212
16.09.2016,ADULT SOCIAL CARE,LONDON CARE PLC,368.88,OP - HOMECARE,HOMECARE - C&V,2102564245
09.09.2016,ADULT SOCIAL CARE,LONDON CARE PLC,365.18,OP - HOMECARE,HOMECARE - C&V,2102562060
16.09.2016,ADULT SOCIAL CARE,LONDON CARE PLC,361.21,OP - HOMECARE,HOMECARE - C&V,2102564247
16.09.2016,ADULT SOCIAL CARE,LONDON CARE PLC,357.59,HOME CARE C&V,HOMECARE - C&V,2102564260
09.09.2016,ADULT SOCIAL CARE,LONDON CARE PLC,353.62,OP - HOMECARE,HOMECARE - C&V,2102562130
16.09.2016,ADULT SOCIAL CARE,LONDON CARE PLC,353.57,OP - HOMECARE,HOMECARE - C&V,2102564164
16.09.2016,ADULT SOCIAL CARE,LONDON CARE PLC,345.89,HOME CARE C&V,HOMECARE - C&V,2102564263
16.09.2016,ADULT SOCIAL CARE,LONDON CARE PLC,338.15,OP - HOMECARE,HOMECARE - C&V,2102564210
16.09.2016,ADULT SOCIAL CARE,LONDON CARE PLC,334.41,OP - HOMECARE,HOMECARE - C&V,2102564213
16.09.2016,ADULT SOCIAL CARE,LONDON CARE PLC,334.35,OP - HOMECARE,HOMECARE - C&V,2102564340
16.09.2016,ADULT SOCIAL CARE,LONDON CARE PLC,322.98,OP - HOMECARE,HOMECARE - C&V,2102564230
16.09.2016,ADULT SOCIAL CARE,LONDON CARE PLC,322.98,OP - HOMECARE,HOMECARE - C&V,2102564262
16.09.2016,ADULT SOCIAL CARE,LONDON CARE PLC,322.98,OP - HOMECARE,HOMECARE - C&V,2102564301
08.09.2016,ADULT SOCIAL CARE,LONDON CARE PLC,322.77,HOME CARE C&V,HOMECARE - C&V,2102561227
09.09.2016,ADULT SOCIAL CARE,LONDON CARE PLC,322.77,OP - HOMECARE,HOMECARE - C&V,2102562034
16.09.2016,ADULT SOCIAL CARE,LONDON CARE PLC,322.77,OP - HOMECARE,HOMECARE - C&V,2102564196
16.09.2016,ADULT SOCIAL CARE,LONDON CARE PLC,322.77,HOME CARE C&V,HOMECARE - C&V,2102564208
16.09.2016,ADULT SOCIAL CARE,LONDON CARE PLC,322.77,OP - HOMECARE,HOMECARE - C&V,2102564270
16.09.2016,ADULT SOCIAL CARE,LONDON CARE PLC,322.77,OP - HOMECARE,HOMECARE - C&V,2102564282
16.09.2016,ADULT SOCIAL CARE,LONDON CARE PLC,322.77,OP - HOMECARE,HOMECARE - C&V,2102564306
16.09.2016,ADULT SOCIAL CARE,LONDON CARE PLC,322.77, OP CARE PACKAGES,HOMECARE - C&V,2102564361
09.09.2016,ADULT SOCIAL CARE,LONDON CARE PLC,319.05,PWLD DAY CARE (TRANSPORT),HOMECARE - C&V,2102562038
13.09.2016,ADULT SOCIAL CARE,LONDON CARE PLC,315.28,OP - HOMECARE,HOMECARE - C&V,2102562589
16.09.2016,ADULT SOCIAL CARE,LONDON CARE PLC,315.11,OP - HOMECARE,HOMECARE - C&V,2102564308
09.09.2016,ADULT SOCIAL CARE,LONDON CARE PLC,311.28,HOME CARE C&V,HOMECARE - C&V,2102562032
16.09.2016,ADULT SOCIAL CARE,LONDON CARE PLC,307.4,HOME CARE C&V,HOMECARE - C&V,2102564328
09.09.2016,ADULT SOCIAL CARE,LONDON CARE PLC,303.67,OP - HOMECARE,HOMECARE - C&V,2102562103
09.09.2016,ADULT SOCIAL CARE,LONDON CARE PLC,303.61,OP - HOMECARE,HOMECARE - C&V,2102562105
16.09.2016,ADULT SOCIAL CARE,LONDON CARE PLC,299.82,OP - HOMECARE,HOMECARE - C&V,2102564350
09.09.2016,ADULT SOCIAL CARE,LONDON CARE PLC,299.79, OP CARE PACKAGES,HOMECARE - C&V,2102562052
16.09.2016,ADULT SOCIAL CARE,LONDON CARE PLC,299.74,OP - HOMECARE,HOMECARE - C&V,2102564267
09.09.2016,ADULT SOCIAL CARE,LONDON CARE PLC,292.06,HOME CARE C&V,HOMECARE - C&V,2102562119
16.09.2016,ADULT SOCIAL CARE,LONDON CARE PLC,288.25, OP CARE PACKAGES,HOMECARE - C&V,2102564363
09.09.2016,ADULT SOCIAL CARE,LONDON CARE PLC,284.4,HOME CARE C&V,HOMECARE - C&V,2102562148
16.09.2016,ADULT SOCIAL CARE,LONDON CARE PLC,280.61,OP - HOMECARE,HOMECARE - C&V,2102564204
16.09.2016,ADULT SOCIAL CARE,LONDON CARE PLC,280.51,OP - HOMECARE,HOMECARE - C&V,2102564242
16.09.2016,ADULT SOCIAL CARE,LONDON CARE PLC,276.81,OP - HOMECARE,HOMECARE - C&V,2102564351
09.09.2016,ADULT SOCIAL CARE,LONDON CARE PLC,276.66,OP - HOMECARE,HOMECARE - C&V,2102562082
09.09.2016,ADULT SOCIAL CARE,LONDON CARE PLC,269.12,OP - HOMECARE,HOMECARE - C&V,2102562044
09.09.2016,ADULT SOCIAL CARE,LONDON CARE PLC,265.23,OP - HOMECARE,HOMECARE - C&V,2102562040
09.09.2016,ADULT SOCIAL CARE,LONDON CARE PLC,265.18,OP - HOMECARE,HOMECARE - C&V,2102562026
09.09.2016,ADULT SOCIAL CARE,LONDON CARE PLC,261.29,HOME CARE C&V,HOMECARE - C&V,2102562116
09.09.2016,ADULT SOCIAL CARE,LONDON CARE PLC,257.57,OP - HOMECARE,HOMECARE - C&V,2102562056
09.09.2016,ADULT SOCIAL CARE,LONDON CARE PLC,257.55,OP - HOMECARE,HOMECARE - C&V,2102562057
13.09.2016,ADULT SOCIAL CARE,LONDON CARE PLC,253.71,HOME CARE C&V,HOMECARE - C&V,2102562603
09.09.2016,ADULT SOCIAL CARE,LONDON CARE PLC,253.68,HOME CARE C&V,HOMECARE - C&V,2102562138
09.09.2016,ADULT SOCIAL CARE,LONDON CARE PLC,253.65,HOME CARE C&V,HOMECARE - C&V,2102562092
16.09.2016,ADULT SOCIAL CARE,LONDON CARE PLC,253.65,OP - HOMECARE,HOMECARE - C&V,2102564236
16.09.2016,ADULT SOCIAL CARE,LONDON CARE PLC,253.65,OP - HOMECARE,HOMECARE - C&V,2102564352
16.09.2016,ADULT SOCIAL CARE,LONDON CARE PLC,253.63,HOME CARE C&V,HOMECARE - C&V,2102564369
09.09.2016,ADULT SOCIAL CARE,LONDON CARE PLC,253.62,OP - HOMECARE,HOMECARE - C&V,2102562110
09.09.2016,ADULT SOCIAL CARE,LONDON CARE PLC,-469.2,REABLEMENT SERVICE,HOMECARE - C&V,2102562048
03.09.2016,ADULT SOCIAL CARE,LINKAGE COMMUNITY TRUST - LONG STAY,"2,070.88",PWLD RES PLACEMENTS,RESIDENTIAL CARE,2102558714
30.09.2016,ADULT SOCIAL CARE,LINKAGE COMMUNITY TRUST - LONG STAY,"2,070.88",PWLD RES PLACEMENTS,RESIDENTIAL CARE,2102569617
03.09.2016,ADULT SOCIAL CARE,LINKAGE COMMUNITY TRUST - LONG STAY,-400.6,PWLD RES PLACEMENTS,"MAND STATUTORY CHARGES, RESIDENTIAL",2102558715
30.09.2016,ADULT SOCIAL CARE,LINKAGE COMMUNITY TRUST - LONG STAY,-400.6,PWLD RES PLACEMENTS,"MAND STATUTORY CHARGES, RESIDENTIAL",2102569618
01.09.2016,ADULT SOCIAL CARE,THE DRIVE CARE HOMES LTD,"190,560.00",PWLD DAY CARE (TRANSPORT),CLIENT TRANSPORT,2102491181
01.09.2016,ADULT SOCIAL CARE,THE DRIVE CARE HOMES LTD,"178,800.00",PWLD DAY CARE (TRANSPORT),CLIENT TRANSPORT,2102558643
06.09.2016,ADULT SOCIAL CARE,THE DRIVE CARE HOMES LTD,"31,780.00",PWLD DAY CARE (TRANSPORT),CLIENT TRANSPORT,2102547753
01.09.2016,ADULT SOCIAL CARE,THE DRIVE CARE HOMES LTD,"21,390.00",PWLD DAY CARE (TRANSPORT),CLIENT TRANSPORT,2102491180
01.09.2016,ADULT SOCIAL CARE,THE DRIVE CARE HOMES LTD,"11,901.80",PWLD RES PLACEMENTS,RESIDENTIAL CARE,2102491184
06.09.2016,ADULT SOCIAL CARE,THE DRIVE CARE HOMES LTD,"11,901.80",PWLD RES PLACEMENTS,RESIDENTIAL CARE,2102560668
30.09.2016,ADULT SOCIAL CARE,THE DRIVE CARE HOMES LTD,"11,901.80",PWLD RES PLACEMENTS,RESIDENTIAL CARE,2102569621
01.09.2016,ADULT SOCIAL CARE,THE DRIVE CARE HOMES LTD,"8,760.00",PWLD RES PLACEMENTS,RESIDENTIAL CARE,2102491182
06.09.2016,ADULT SOCIAL CARE,THE DRIVE CARE HOMES LTD,"8,760.00",PWLD RES PLACEMENTS,RESIDENTIAL CARE,2102547755
06.09.2016,ADULT SOCIAL CARE,THE DRIVE CARE HOMES LTD,"8,760.00",PWLD RES PLACEMENTS,RESIDENTIAL CARE,2102560665
30.09.2016,ADULT SOCIAL CARE,THE DRIVE CARE HOMES LTD,"8,760.00",PWLD RES PLACEMENTS,RESIDENTIAL CARE,2102569619
06.09.2016,ADULT SOCIAL CARE,THE DRIVE CARE HOMES LTD,"4,480.00",PWLD DAY CARE (TRANSPORT),CLIENT TRANSPORT,2102547757
01.09.2016,ADULT SOCIAL CARE,THE DRIVE CARE HOMES LTD,-261,PWLD RES PLACEMENTS,"MAND STATUTORY CHARGES, RESIDENTIAL",2102491183
06.09.2016,ADULT SOCIAL CARE,THE DRIVE CARE HOMES LTD,-261,PWLD RES PLACEMENTS,"MAND STATUTORY CHARGES, RESIDENTIAL",2102547756
06.09.2016,ADULT SOCIAL CARE,THE DRIVE CARE HOMES LTD,-261,PWLD RES PLACEMENTS,"MAND STATUTORY CHARGES, RESIDENTIAL",2102560666
30.09.2016,ADULT SOCIAL CARE,THE DRIVE CARE HOMES LTD,-261,PWLD RES PLACEMENTS,"MAND STATUTORY CHARGES, RESIDENTIAL",2102569620
01.09.2016,ADULT SOCIAL CARE,THE DRIVE CARE HOMES LTD,-269.32,PWLD RES PLACEMENTS,"MAND STATUTORY CHARGES, RESIDENTIAL",2102491185
06.09.2016,ADULT SOCIAL CARE,THE DRIVE CARE HOMES LTD,-269.32,PWLD RES PLACEMENTS,"MAND STATUTORY CHARGES, RESIDENTIAL",2102547759
06.09.2016,ADULT SOCIAL CARE,THE DRIVE CARE HOMES LTD,-269.32,PWLD RES PLACEMENTS,"MAND STATUTORY CHARGES, RESIDENTIAL",2102560669
30.09.2016,ADULT SOCIAL CARE,THE DRIVE CARE HOMES LTD,-269.32,PWLD RES PLACEMENTS,"MAND STATUTORY CHARGES, RESIDENTIAL",2102569622
06.09.2016,ADULT SOCIAL CARE,THE DRIVE CARE HOMES LTD,"-52,640.00",PWLD DAY CARE (TRANSPORT),CLIENT TRANSPORT,2102560667
01.09.2016,ADULT SOCIAL CARE,THE DRIVE CARE HOMES LTD,"-178,800.00",PWLD DAY CARE (TRANSPORT),CLIENT TRANSPORT,2102547754
01.09.2016,ADULT SOCIAL CARE,THE DRIVE CARE HOMES LTD,"-190,560.00",PWLD DAY CARE (TRANSPORT),CLIENT TRANSPORT,2102558642
03.09.2016,ADULT SOCIAL CARE,HOTHFIELD MANOR CENTRE,"4,848.00",PD RESIDENTIAL,RESIDENTIAL CARE,2102558716
30.09.2016,ADULT SOCIAL CARE,HOTHFIELD MANOR CENTRE,"4,848.00",PD RESIDENTIAL,RESIDENTIAL CARE,2102569623
02.09.2016,ADULT SOCIAL CARE,REDACTED PERSONAL DATA,542.52, OP CARE PACKAGES,PAYMENTS TO CLIENTS (DIRECT PAYMENTS),2102558001
09.09.2016,ADULT SOCIAL CARE,INDO-CHINESE ELDERLY SERVICES PROJECT,399.6, OP CARE PACKAGES,DAYCARE,2102562150
03.09.2016,ADULT SOCIAL CARE,THE FRANCES TAYLOR FOUNDATION,"2,444.76",PWLD RES PLACEMENTS,RESIDENTIAL CARE,2102558717
30.09.2016,ADULT SOCIAL CARE,THE FRANCES TAYLOR FOUNDATION,"2,444.76",PWLD RES PLACEMENTS,RESIDENTIAL CARE,2102569624
08.09.2016,ADULT SOCIAL CARE,THE FRANCES TAYLOR FOUNDATION,848.22,PWLD HOME CARE IND,EXTERNAL AGENCIES AND BODIES,2102561133
03.09.2016,ADULT SOCIAL CARE,THE FRANCES TAYLOR FOUNDATION,-321.8,PWLD RES PLACEMENTS,"MAND STATUTORY CHARGES, RESIDENTIAL",2102558718
30.09.2016,ADULT SOCIAL CARE,THE FRANCES TAYLOR FOUNDATION,-321.8,PWLD RES PLACEMENTS,"MAND STATUTORY CHARGES, RESIDENTIAL",2102569625
03.09.2016,ADULT SOCIAL CARE,LAURELS NURSING CARE CENTRE,"7,464.09",OP - NURSING,"MAND STATUTORY CHARGES, NURSING",2102558719
03.09.2016,ADULT SOCIAL CARE,LAURELS NURSING CARE CENTRE,"2,504.96",OP - NURSING,NURSING PLACEMENTS FEES,2102558720
03.09.2016,ADULT SOCIAL CARE,LAURELS NURSING CARE CENTRE,"2,504.96",OP - NURSING,NURSING PLACEMENTS FEES,2102558722
03.09.2016,ADULT SOCIAL CARE,LAURELS NURSING CARE CENTRE,"2,504.96",OP - RESIDENTIAL - DEMENTIA,NURSING PLACEMENTS FEES,2102558725
03.09.2016,ADULT SOCIAL CARE,LAURELS NURSING CARE CENTRE,"2,504.96",OP - NURSING,NURSING PLACEMENTS FEES,2102558732
30.09.2016,ADULT SOCIAL CARE,LAURELS NURSING CARE CENTRE,"2,504.96",OP - NURSING,NURSING PLACEMENTS FEES,2102569626
30.09.2016,ADULT SOCIAL CARE,LAURELS NURSING CARE CENTRE,"2,504.96",OP - NURSING,NURSING PLACEMENTS FEES,2102569628
30.09.2016,ADULT SOCIAL CARE,LAURELS NURSING CARE CENTRE,"2,504.96",OP - RESIDENTIAL - DEMENTIA,NURSING PLACEMENTS FEES,2102569631
30.09.2016,ADULT SOCIAL CARE,LAURELS NURSING CARE CENTRE,"2,504.96",OP - NURSING,NURSING PLACEMENTS FEES,2102569638
03.09.2016,ADULT SOCIAL CARE,LAURELS NURSING CARE CENTRE,"2,422.56",OP - NURSING,NURSING PLACEMENTS FEES,2102558724
03.09.2016,ADULT SOCIAL CARE,LAURELS NURSING CARE CENTRE,"2,422.56",OP - NURSING,NURSING PLACEMENTS FEES,2102558730
03.09.2016,ADULT SOCIAL CARE,LAURELS NURSING CARE CENTRE,"2,422.56",OP - NURSING,NURSING PLACEMENTS FEES,2102558733
03.09.2016,ADULT SOCIAL CARE,LAURELS NURSING CARE CENTRE,"2,422.56",OP - NURSING,NURSING PLACEMENTS FEES,2102558735
30.09.2016,ADULT SOCIAL CARE,LAURELS NURSING CARE CENTRE,"2,422.56",OP - NURSING,NURSING PLACEMENTS FEES,2102569630
30.09.2016,ADULT SOCIAL CARE,LAURELS NURSING CARE CENTRE,"2,422.56",OP - NURSING,NURSING PLACEMENTS FEES,2102569636
30.09.2016,ADULT SOCIAL CARE,LAURELS NURSING CARE CENTRE,"2,422.56",OP - NURSING,NURSING PLACEMENTS FEES,2102569639
30.09.2016,ADULT SOCIAL CARE,LAURELS NURSING CARE CENTRE,"2,422.56",OP - NURSING,NURSING PLACEMENTS FEES,2102569641
03.09.2016,ADULT SOCIAL CARE,LAURELS NURSING CARE CENTRE,"2,257.92", OP CARE PACKAGES,NURSING PLACEMENTS FEES,2102558734
30.09.2016,ADULT SOCIAL CARE,LAURELS NURSING CARE CENTRE,"2,257.92", OP CARE PACKAGES,NURSING PLACEMENTS FEES,2102569640
03.09.2016,ADULT SOCIAL CARE,LAURELS NURSING CARE CENTRE,"2,247.92", OP CARE PACKAGES,NURSING PLACEMENTS FEES,2102558727
30.09.2016,ADULT SOCIAL CARE,LAURELS NURSING CARE CENTRE,"2,247.92", OP CARE PACKAGES,NURSING PLACEMENTS FEES,2102569633
03.09.2016,ADULT SOCIAL CARE,LAURELS NURSING CARE CENTRE,"2,221.12",OP - NURSING,NURSING PLACEMENTS FEES,2102558728
30.09.2016,ADULT SOCIAL CARE,LAURELS NURSING CARE CENTRE,"2,221.12",OP - NURSING,NURSING PLACEMENTS FEES,2102569634
03.09.2016,ADULT SOCIAL CARE,LAURELS NURSING CARE CENTRE,-505.64,OP - NURSING,"MAND STATUTORY CHARGES, NURSING",2102558723
30.09.2016,ADULT SOCIAL CARE,LAURELS NURSING CARE CENTRE,-505.64,OP - NURSING,"MAND STATUTORY CHARGES, NURSING",2102569629
03.09.2016,ADULT SOCIAL CARE,LAURELS NURSING CARE CENTRE,-522.8,OP - RESIDENTIAL - DEMENTIA,"MAND STATUTORY CHARGES, NURSING",2102558726
30.09.2016,ADULT SOCIAL CARE,LAURELS NURSING CARE CENTRE,-522.8,OP - RESIDENTIAL - DEMENTIA,"MAND STATUTORY CHARGES, NURSING",2102569632
03.09.2016,ADULT SOCIAL CARE,LAURELS NURSING CARE CENTRE,-536.4,OP - NURSING,"MAND STATUTORY CHARGES, NURSING",2102558731
30.09.2016,ADULT SOCIAL CARE,LAURELS NURSING CARE CENTRE,-536.4,OP - NURSING,"MAND STATUTORY CHARGES, NURSING",2102569637
03.09.2016,ADULT SOCIAL CARE,LAURELS NURSING CARE CENTRE,-616.52,OP - NURSING,"MAND STATUTORY CHARGES, NURSING",2102558721
30.09.2016,ADULT SOCIAL CARE,LAURELS NURSING CARE CENTRE,-616.52,OP - NURSING,"MAND STATUTORY CHARGES, NURSING",2102569627
03.09.2016,ADULT SOCIAL CARE,LAURELS NURSING CARE CENTRE,-982.28,OP - NURSING,"MAND STATUTORY CHARGES, NURSING",2102558729
30.09.2016,ADULT SOCIAL CARE,LAURELS NURSING CARE CENTRE,-982.28,OP - NURSING,"MAND STATUTORY CHARGES, NURSING",2102569635
03.09.2016,ADULT SOCIAL CARE,ASHBROOK HOUSE,"4,325.16",PWLD RES PLACEMENTS,RESIDENTIAL CARE,2102558736
30.09.2016,ADULT SOCIAL CARE,ASHBROOK HOUSE,"4,325.16",PWLD RES PLACEMENTS,RESIDENTIAL CARE,2102569642
03.09.2016,ADULT SOCIAL CARE,ASHBROOK HOUSE,-321.8,PWLD RES PLACEMENTS,"MAND STATUTORY CHARGES, RESIDENTIAL",2102558737
30.09.2016,ADULT SOCIAL CARE,ASHBROOK HOUSE,-321.8,PWLD RES PLACEMENTS,"MAND STATUTORY CHARGES, RESIDENTIAL",2102569643
02.09.2016,ADULT SOCIAL CARE,REDACTED PERSONAL DATA,258.08,PD DIRECT PAYMENTS,PERSONALISATION PAYMENTS,2102558163
02.09.2016,ADULT SOCIAL CARE,REDACTED PERSONAL DATA,"3,923.12",PWLD DIRECT PAYMENTS,PERSONALISATION PAYMENTS,2102558164
02.09.2016,ADULT SOCIAL CARE,SWK DISABLEMENT ASSN,"3,977.12",PD DIRECT PAYMENTS,PERSONALISATION PAYMENTS,2102558465
02.09.2016,ADULT SOCIAL CARE,SWK DISABLEMENT ASSN,"3,770.88", OP CARE PACKAGES,PERSONALISATION PAYMENTS,2102558458
02.09.2016,ADULT SOCIAL CARE,SWK DISABLEMENT ASSN,"2,975.44",PD DIRECT PAYMENTS,PERSONALISATION PAYMENTS,2102558451
27.09.2016,ADULT SOCIAL CARE,SWK DISABLEMENT ASSN,"2,660.00", OP CARE PACKAGES,HOMECARE - SPOT,2102566817
02.09.2016,ADULT SOCIAL CARE,SWK DISABLEMENT ASSN,"2,489.36",PD DIRECT PAYMENTS,PERSONALISATION PAYMENTS,2102558454
02.09.2016,ADULT SOCIAL CARE,SWK DISABLEMENT ASSN,"2,238.96",PD DIRECT PAYMENTS,PERSONALISATION PAYMENTS,2102558449
06.09.2016,ADULT SOCIAL CARE,SWK DISABLEMENT ASSN,"2,122.56",PWLD HOME CARE IND,HOMECARE - SPOT,2102560396
02.09.2016,ADULT SOCIAL CARE,SWK DISABLEMENT ASSN,"2,084.28",PD DIRECT PAYMENTS,DISCRETIONARY FLEXIBLE FEES & INCOME,2102558003
02.09.2016,ADULT SOCIAL CARE,SWK DISABLEMENT ASSN,"2,062.20",PD DIRECT PAYMENTS,PERSONALISATION PAYMENTS,2102558459
06.09.2016,ADULT SOCIAL CARE,SWK DISABLEMENT ASSN,"1,774.08",HOME CARE C&V,HOMECARE - SPOT,2102560397
23.09.2016,ADULT SOCIAL CARE,SWK DISABLEMENT ASSN,"1,774.08",HOME CARE C&V,HOMECARE - SPOT,2102566099
27.09.2016,ADULT SOCIAL CARE,SWK DISABLEMENT ASSN,"1,702.40", OP CARE PACKAGES,HOMECARE - SPOT,2102566815
02.09.2016,ADULT SOCIAL CARE,SWK DISABLEMENT ASSN,"1,561.40", OP CARE PACKAGES,PERSONALISATION PAYMENTS,2102558462
27.09.2016,ADULT SOCIAL CARE,SWK DISABLEMENT ASSN,"1,465.20",OP - HOMECARE,HOMECARE - SPOT,2102566819
02.09.2016,ADULT SOCIAL CARE,SWK DISABLEMENT ASSN,"1,414.08", OP CARE PACKAGES,PERSONALISATION PAYMENTS,2102558452
23.09.2016,ADULT SOCIAL CARE,SWK DISABLEMENT ASSN,"1,398.40",PD HOME CARE,HOMECARE - SPOT,2102566102
02.09.2016,ADULT SOCIAL CARE,SWK DISABLEMENT ASSN,"1,355.16", OP CARE PACKAGES,PERSONALISATION PAYMENTS,2102558463
02.09.2016,ADULT SOCIAL CARE,SWK DISABLEMENT ASSN,"1,325.72", OP CARE PACKAGES,PERSONALISATION PAYMENTS,2102558455
02.09.2016,ADULT SOCIAL CARE,SWK DISABLEMENT ASSN,"1,252.04",PD DIRECT PAYMENTS,PERSONALISATION PAYMENTS,2102558445
02.09.2016,ADULT SOCIAL CARE,SWK DISABLEMENT ASSN,"1,207.88",PD DIRECT PAYMENTS,PERSONALISATION PAYMENTS,2102558448
06.09.2016,ADULT SOCIAL CARE,SWK DISABLEMENT ASSN,"1,203.84",PD HOME CARE,HOMECARE - SPOT,2102560398
23.09.2016,ADULT SOCIAL CARE,SWK DISABLEMENT ASSN,"1,203.84",PD HOME CARE,HOMECARE - SPOT,2102566100
02.09.2016,ADULT SOCIAL CARE,SWK DISABLEMENT ASSN,"1,178.40", OP CARE PACKAGES,PERSONALISATION PAYMENTS,2102558467
02.09.2016,ADULT SOCIAL CARE,SWK DISABLEMENT ASSN,"1,148.96",PD DIRECT PAYMENTS,PERSONALISATION PAYMENTS,2102558460
12.09.2016,ADULT SOCIAL CARE,SWK DISABLEMENT ASSN,"1,106.00",PD DIRECT PAYMENTS,PERSONALISATION PAYMENTS,2102562436
27.09.2016,ADULT SOCIAL CARE,SWK DISABLEMENT ASSN,"1,087.72",OP - HOMECARE,HOMECARE - SPOT,2102566821
27.09.2016,ADULT SOCIAL CARE,SWK DISABLEMENT ASSN,"1,013.76",OP - HOMECARE,HOMECARE - SPOT,2102566820
02.09.2016,ADULT SOCIAL CARE,SWK DISABLEMENT ASSN,972.2, OP CARE PACKAGES,PERSONALISATION PAYMENTS,2102558470
02.09.2016,ADULT SOCIAL CARE,SWK DISABLEMENT ASSN,912,PD DIRECT PAYMENTS,PERSONALISATION PAYMENTS,2102558446
27.09.2016,ADULT SOCIAL CARE,SWK DISABLEMENT ASSN,887.04,OP - HOMECARE,HOMECARE - SPOT,2102566816
23.09.2016,ADULT SOCIAL CARE,SWK DISABLEMENT ASSN,858.8,PD HOME CARE,HOMECARE - SPOT,2102566098
02.09.2016,ADULT SOCIAL CARE,SWK DISABLEMENT ASSN,854.36, OP CARE PACKAGES,PERSONALISATION PAYMENTS,2102558456
06.09.2016,ADULT SOCIAL CARE,SWK DISABLEMENT ASSN,836,PD HOME CARE,HOMECARE - SPOT,2102560395
02.09.2016,ADULT SOCIAL CARE,SWK DISABLEMENT ASSN,810.16, OP CARE PACKAGES,PERSONALISATION PAYMENTS,2102558447
02.09.2016,ADULT SOCIAL CARE,SWK DISABLEMENT ASSN,777.6,PD DIRECT PAYMENTS,PERSONALISATION PAYMENTS,2102558469
27.09.2016,ADULT SOCIAL CARE,SWK DISABLEMENT ASSN,695.4,OP - HOMECARE,HOMECARE - SPOT,2102566818
02.09.2016,ADULT SOCIAL CARE,SWK DISABLEMENT ASSN,648.12,PD DIRECT PAYMENTS,PERSONALISATION PAYMENTS,2102558461
02.09.2016,ADULT SOCIAL CARE,SWK DISABLEMENT ASSN,515.56,PD DIRECT PAYMENTS,PERSONALISATION PAYMENTS,2102558466
27.09.2016,ADULT SOCIAL CARE,SWK DISABLEMENT ASSN,486.4,OP - HOMECARE,HOMECARE - SPOT,2102566822
02.09.2016,ADULT SOCIAL CARE,SWK DISABLEMENT ASSN,412.44, OP CARE PACKAGES,PERSONALISATION PAYMENTS,2102558450
02.09.2016,ADULT SOCIAL CARE,SWK DISABLEMENT ASSN,309.32, OP CARE PACKAGES,PERSONALISATION PAYMENTS,2102558457
02.09.2016,ADULT SOCIAL CARE,SWK DISABLEMENT ASSN,294.6, OP CARE PACKAGES,PERSONALISATION PAYMENTS,2102558453
02.09.2016,ADULT SOCIAL CARE,SWK DISABLEMENT ASSN,293.14,PD DIRECT PAYMENTS,PERSONALISATION PAYMENTS,2102558002
03.09.2016,ADULT SOCIAL CARE,CLACTON FAMILY TRUST LTD,"7,106.92",PWLD RES PLACEMENTS,RESIDENTIAL CARE,2102558738
30.09.2016,ADULT SOCIAL CARE,CLACTON FAMILY TRUST LTD,"7,106.92",PWLD RES PLACEMENTS,RESIDENTIAL CARE,2102569644
03.09.2016,ADULT SOCIAL CARE,CLACTON FAMILY TRUST LTD,-341.84,PWLD RES PLACEMENTS,"MAND STATUTORY CHARGES, RESIDENTIAL",2102558739
30.09.2016,ADULT SOCIAL CARE,CLACTON FAMILY TRUST LTD,-341.84,PWLD RES PLACEMENTS,"MAND STATUTORY CHARGES, RESIDENTIAL",2102569645
16.09.2016,ADULT SOCIAL CARE,HEADWAY S E,488.96,PD DAYCARE,DAYCARE,2102564387
03.09.2016,ADULT SOCIAL CARE,BELMONT SANDBANKS LTD (MADEIRA LODGE),"2,290.16",OP - RESIDENTIAL - DEMENTIA,RESIDENTIAL CARE,2102558740
30.09.2016,ADULT SOCIAL CARE,BELMONT SANDBANKS LTD (MADEIRA LODGE),"2,290.16",OP - RESIDENTIAL - DEMENTIA,RESIDENTIAL CARE,2102569646
03.09.2016,ADULT SOCIAL CARE,BELMONT SANDBANKS LTD (MADEIRA LODGE),-796.44,OP - RESIDENTIAL - DEMENTIA,"MAND STATUTORY CHARGES, RESIDENTIAL",2102558741
30.09.2016,ADULT SOCIAL CARE,BELMONT SANDBANKS LTD (MADEIRA LODGE),-796.44,OP - RESIDENTIAL - DEMENTIA,"MAND STATUTORY CHARGES, RESIDENTIAL",2102569647
02.09.2016,ADULT SOCIAL CARE,REDACTED PERSONAL DATA,"1,483.00",PWLD DIRECT PAYMENTS,PAYMENTS TO CLIENTS (DIRECT PAYMENTS),2102558472
03.09.2016,ADULT SOCIAL CARE,FAIRLIE HEALTHCARE LTD,"3,753.52",PD NURSING,NURSING PLACEMENTS FEES,2102558742
30.09.2016,ADULT SOCIAL CARE,FAIRLIE HEALTHCARE LTD,"3,753.52",PD NURSING,NURSING PLACEMENTS FEES,2102569648
03.09.2016,ADULT SOCIAL CARE,FAIRLIE HEALTHCARE LTD,-366.4,PD NURSING,"MAND STATUTORY CHARGES, NURSING",2102558743
30.09.2016,ADULT SOCIAL CARE,FAIRLIE HEALTHCARE LTD,-366.4,PD NURSING,"MAND STATUTORY CHARGES, NURSING",2102569649
30.09.2016,ADULT SOCIAL CARE,KENT COUNTY COUNCIL - LASER,"1,581.34",MH NORTH,ELECTRICITY,5902215484
23.09.2016,ADULT SOCIAL CARE,KENT COUNTY COUNCIL - LASER,"1,165.50",SOUTHWARK RESOURCE CENTRE,ELECTRICITY,5902213319
02.09.2016,ADULT SOCIAL CARE,HEXAGON HOUSING ASSOCIATION LTD,"2,340.00",PERSONAL BUDGET - SOCIAL CARE,PERSONALISATION PAYMENTS,2102558539
02.09.2016,ADULT SOCIAL CARE,HEXAGON HOUSING ASSOCIATION LTD,"2,295.00",PERSONAL BUDGET - SOCIAL CARE,PERSONALISATION PAYMENTS,2102558547
02.09.2016,ADULT SOCIAL CARE,HEXAGON HOUSING ASSOCIATION LTD,"2,040.00",PERSONAL BUDGET - SOCIAL CARE,PERSONALISATION PAYMENTS,2102558484
02.09.2016,ADULT SOCIAL CARE,HEXAGON HOUSING ASSOCIATION LTD,"1,380.00",PERSONAL BUDGET - SOCIAL CARE,PERSONALISATION PAYMENTS,2102558481
02.09.2016,ADULT SOCIAL CARE,HEXAGON HOUSING ASSOCIATION LTD,420,PERSONAL BUDGET - SOCIAL CARE,PERSONALISATION PAYMENTS,2102558535
02.09.2016,ADULT SOCIAL CARE,REDACTED PERSONAL DATA,644.88, OP CARE PACKAGES,PERSONALISATION PAYMENTS,2102558549
03.09.2016,ADULT SOCIAL CARE,PRIORY,"5,720.56",PD NURSING,NURSING PLACEMENTS FEES,2102558746
30.09.2016,ADULT SOCIAL CARE,PRIORY,"5,720.56",PD NURSING,NURSING PLACEMENTS FEES,2102569650
03.09.2016,ADULT SOCIAL CARE,PRIORY,-514.52,PD NURSING,"MAND STATUTORY CHARGES, NURSING",2102558747
30.09.2016,ADULT SOCIAL CARE,PRIORY,-514.52,PD NURSING,"MAND STATUTORY CHARGES, NURSING",2102569651
03.09.2016,ADULT SOCIAL CARE,ASHINGHAM HOUSE LIMITED,"8,533.48",PWLD RES PLACEMENTS,RESIDENTIAL CARE,2102558749
30.09.2016,ADULT SOCIAL CARE,ASHINGHAM HOUSE LIMITED,"8,533.48",PWLD RES PLACEMENTS,RESIDENTIAL CARE,2102569652
03.09.2016,ADULT SOCIAL CARE,ASHINGHAM HOUSE LIMITED,-321.8,PWLD RES PLACEMENTS,"MAND STATUTORY CHARGES, RESIDENTIAL",2102558750
30.09.2016,ADULT SOCIAL CARE,ASHINGHAM HOUSE LIMITED,-321.8,PWLD RES PLACEMENTS,"MAND STATUTORY CHARGES, RESIDENTIAL",2102569653
03.09.2016,ADULT SOCIAL CARE,HAZELDENE LTD,"7,066.08",PWLD RES PLACEMENTS,RESIDENTIAL CARE,2102558764
30.09.2016,ADULT SOCIAL CARE,HAZELDENE LTD,"7,066.08",PWLD RES PLACEMENTS,RESIDENTIAL CARE,2102569658
03.09.2016,ADULT SOCIAL CARE,HAZELDENE LTD,"5,704.52",PWLD RES PLACEMENTS,RESIDENTIAL CARE,2102558762
30.09.2016,ADULT SOCIAL CARE,HAZELDENE LTD,"5,704.52",PWLD RES PLACEMENTS,RESIDENTIAL CARE,2102569656
03.09.2016,ADULT SOCIAL CARE,HAZELDENE LTD,"5,656.00",LD HOME CARE,RESIDENTIAL CARE,2102558760
30.09.2016,ADULT SOCIAL CARE,HAZELDENE LTD,"5,656.00",LD HOME CARE,RESIDENTIAL CARE,2102569654
03.09.2016,ADULT SOCIAL CARE,HAZELDENE LTD,-321.8,PWLD RES PLACEMENTS,"MAND STATUTORY CHARGES, RESIDENTIAL",2102558763
30.09.2016,ADULT SOCIAL CARE,HAZELDENE LTD,-321.8,PWLD RES PLACEMENTS,"MAND STATUTORY CHARGES, RESIDENTIAL",2102569657
03.09.2016,ADULT SOCIAL CARE,HAZELDENE LTD,-371.12,PWLD RES PLACEMENTS,"MAND STATUTORY CHARGES, RESIDENTIAL",2102558765
30.09.2016,ADULT SOCIAL CARE,HAZELDENE LTD,-371.12,PWLD RES PLACEMENTS,"MAND STATUTORY CHARGES, RESIDENTIAL",2102569659
03.09.2016,ADULT SOCIAL CARE,THE DISABILITIES TRUST,"9,552.00",PWLD RES PLACEMENTS,RESIDENTIAL CARE,2102558767
30.09.2016,ADULT SOCIAL CARE,THE DISABILITIES TRUST,"9,552.00",PWLD RES PLACEMENTS,RESIDENTIAL CARE,2102569661
03.09.2016,ADULT SOCIAL CARE,THE DISABILITIES TRUST,"9,437.44",PWLD RES PLACEMENTS,RESIDENTIAL CARE,2102558766
30.09.2016,ADULT SOCIAL CARE,THE DISABILITIES TRUST,"9,437.44",PWLD RES PLACEMENTS,RESIDENTIAL CARE,2102569660
03.09.2016,ADULT SOCIAL CARE,THE NATIONAL AUTISTIC SOCIETY,"9,708.92",PWLD RES PLACEMENTS,RESIDENTIAL CARE,2102558768
30.09.2016,ADULT SOCIAL CARE,THE NATIONAL AUTISTIC SOCIETY,"9,708.92",PWLD RES PLACEMENTS,RESIDENTIAL CARE,2102569662
03.09.2016,ADULT SOCIAL CARE,THE NATIONAL AUTISTIC SOCIETY,"5,096.20",PWLD RES PLACEMENTS,RESIDENTIAL CARE,2102558771
30.09.2016,ADULT SOCIAL CARE,THE NATIONAL AUTISTIC SOCIETY,"5,096.20",PWLD RES PLACEMENTS,RESIDENTIAL CARE,2102569665
03.09.2016,ADULT SOCIAL CARE,THE NATIONAL AUTISTIC SOCIETY,"2,568.96",ADDITIONAL ONE TO ONE,DAYCARE,2102558770
30.09.2016,ADULT SOCIAL CARE,THE NATIONAL AUTISTIC SOCIETY,"2,568.96",ADDITIONAL ONE TO ONE,DAYCARE,2102569664
03.09.2016,ADULT SOCIAL CARE,THE NATIONAL AUTISTIC SOCIETY,-321.8,PWLD RES PLACEMENTS,"MAND STATUTORY CHARGES, RESIDENTIAL",2102558772
30.09.2016,ADULT SOCIAL CARE,THE NATIONAL AUTISTIC SOCIETY,-321.8,PWLD RES PLACEMENTS,"MAND STATUTORY CHARGES, RESIDENTIAL",2102569666
03.09.2016,ADULT SOCIAL CARE,THE NATIONAL AUTISTIC SOCIETY,-400.6,PWLD RES PLACEMENTS,"MAND STATUTORY CHARGES, RESIDENTIAL",2102558769
30.09.2016,ADULT SOCIAL CARE,THE NATIONAL AUTISTIC SOCIETY,-400.6,PWLD RES PLACEMENTS,"MAND STATUTORY CHARGES, RESIDENTIAL",2102569663
07.09.2016,ADULT SOCIAL CARE,CORONA ENERGY RETAIL 2 LTD,398.52,BRANDON TRUST,ELECTRICITY,5902210926
29.09.2016,ADULT SOCIAL CARE,CORONA ENERGY RETAIL 2 LTD,282.62,BRANDON TRUST,ELECTRICITY,5902215142
03.09.2016,ADULT SOCIAL CARE,ASHDENE HOUSE LIMITED,"3,272.76",PWLD RES PLACEMENTS,RESIDENTIAL CARE,2102558773
30.09.2016,ADULT SOCIAL CARE,ASHDENE HOUSE LIMITED,"3,272.76",PWLD RES PLACEMENTS,RESIDENTIAL CARE,2102569667
03.09.2016,ADULT SOCIAL CARE,ASHDENE HOUSE LIMITED,-401.56,PWLD RES PLACEMENTS,"MAND STATUTORY CHARGES, RESIDENTIAL",2102558774
30.09.2016,ADULT SOCIAL CARE,ASHDENE HOUSE LIMITED,-401.56,PWLD RES PLACEMENTS,"MAND STATUTORY CHARGES, RESIDENTIAL",2102569668
02.09.2016,ADULT SOCIAL CARE,REDACTED PERSONAL DATA,614.4,PWLD DIRECT PAYMENTS,PAYMENTS TO CLIENTS (DIRECT PAYMENTS),2102558551
03.09.2016,ADULT SOCIAL CARE,PLUS SERVICES,"8,292.00",LD HOME CARE,SUPPORTED LIVING,2102558790
30.09.2016,ADULT SOCIAL CARE,PLUS SERVICES,"8,292.00",LD HOME CARE,SUPPORTED LIVING,2102569682
03.09.2016,ADULT SOCIAL CARE,PLUS SERVICES,"7,042.08",LD HOME CARE,SUPPORTED LIVING,2102558784
30.09.2016,ADULT SOCIAL CARE,PLUS SERVICES,"7,042.08",LD HOME CARE,SUPPORTED LIVING,2102569677
03.09.2016,ADULT SOCIAL CARE,PLUS SERVICES,"6,780.50",LD HOME CARE,"MAND STATUTORY CHARGES, RESIDENTIAL",2102558794
03.09.2016,ADULT SOCIAL CARE,PLUS SERVICES,"6,300.00",PWLD RES PLACEMENTS,RESIDENTIAL CARE,2102558780
30.09.2016,ADULT SOCIAL CARE,PLUS SERVICES,"6,300.00",PWLD RES PLACEMENTS,RESIDENTIAL CARE,2102569674
03.09.2016,ADULT SOCIAL CARE,PLUS SERVICES,"6,147.92",LD HOME CARE,SUPPORTED LIVING,2102558782
30.09.2016,ADULT SOCIAL CARE,PLUS SERVICES,"6,147.92",LD HOME CARE,SUPPORTED LIVING,2102569675
03.09.2016,ADULT SOCIAL CARE,PLUS SERVICES,"5,856.60",PWLD RES PLACEMENTS,RESIDENTIAL CARE,2102558788
30.09.2016,ADULT SOCIAL CARE,PLUS SERVICES,"5,856.60",PWLD RES PLACEMENTS,RESIDENTIAL CARE,2102569680
03.09.2016,ADULT SOCIAL CARE,PLUS SERVICES,"5,784.00",PWLD RES PLACEMENTS,RESIDENTIAL CARE,2102558778
30.09.2016,ADULT SOCIAL CARE,PLUS SERVICES,"5,784.00",PWLD RES PLACEMENTS,RESIDENTIAL CARE,2102569672
03.09.2016,ADULT SOCIAL CARE,PLUS SERVICES,"5,279.32",PWLD RES PLACEMENTS,RESIDENTIAL CARE,2102558793
30.09.2016,ADULT SOCIAL CARE,PLUS SERVICES,"5,279.32",PWLD RES PLACEMENTS,RESIDENTIAL CARE,2102569685
03.09.2016,ADULT SOCIAL CARE,PLUS SERVICES,"5,174.04",PWLD RES PLACEMENTS,RESIDENTIAL CARE,2102558791
30.09.2016,ADULT SOCIAL CARE,PLUS SERVICES,"5,174.04",PWLD RES PLACEMENTS,RESIDENTIAL CARE,2102569683
03.09.2016,ADULT SOCIAL CARE,PLUS SERVICES,"4,970.16",LD HOME CARE,RESIDENTIAL CARE,2102558797
30.09.2016,ADULT SOCIAL CARE,PLUS SERVICES,"4,970.16",LD HOME CARE,RESIDENTIAL CARE,2102569688
03.09.2016,ADULT SOCIAL CARE,PLUS SERVICES,"4,857.20",LD HOME CARE,SUPPORTED LIVING,2102558775
03.09.2016,ADULT SOCIAL CARE,PLUS SERVICES,"4,857.20",LD HOME CARE,SUPPORTED LIVING,2102558776
03.09.2016,ADULT SOCIAL CARE,PLUS SERVICES,"4,857.20",LD HOME CARE,SUPPORTED LIVING,2102558777
30.09.2016,ADULT SOCIAL CARE,PLUS SERVICES,"4,857.20",LD HOME CARE,SUPPORTED LIVING,2102569669
30.09.2016,ADULT SOCIAL CARE,PLUS SERVICES,"4,857.20",LD HOME CARE,SUPPORTED LIVING,2102569670
30.09.2016,ADULT SOCIAL CARE,PLUS SERVICES,"4,857.20",LD HOME CARE,SUPPORTED LIVING,2102569671
03.09.2016,ADULT SOCIAL CARE,PLUS SERVICES,"4,405.76",PWLD RES PLACEMENTS,RESIDENTIAL CARE,2102558795
30.09.2016,ADULT SOCIAL CARE,PLUS SERVICES,"4,405.76",PWLD RES PLACEMENTS,RESIDENTIAL CARE,2102569686
03.09.2016,ADULT SOCIAL CARE,PLUS SERVICES,"3,200.00",LD HOME CARE,SUPPORTED LIVING,2102558786
30.09.2016,ADULT SOCIAL CARE,PLUS SERVICES,"3,200.00",LD HOME CARE,SUPPORTED LIVING,2102569679
23.09.2016,ADULT SOCIAL CARE,PLUS SERVICES,"1,300.26",PWLD HOME CARE IND,EXTERNAL AGENCIES AND BODIES,2102566103
03.09.2016,ADULT SOCIAL CARE,PLUS SERVICES,-275.24,LD HOME CARE,DISCRETIONARY FLEXIBLE FEES & INCOME,2102558783
30.09.2016,ADULT SOCIAL CARE,PLUS SERVICES,-275.24,LD HOME CARE,DISCRETIONARY FLEXIBLE FEES & INCOME,2102569676
03.09.2016,ADULT SOCIAL CARE,PLUS SERVICES,-321.56,PWLD RES PLACEMENTS,"MAND STATUTORY CHARGES, RESIDENTIAL",2102558796
30.09.2016,ADULT SOCIAL CARE,PLUS SERVICES,-321.56,PWLD RES PLACEMENTS,"MAND STATUTORY CHARGES, RESIDENTIAL",2102569687
03.09.2016,ADULT SOCIAL CARE,PLUS SERVICES,-346.6,PWLD RES PLACEMENTS,"MAND STATUTORY CHARGES, RESIDENTIAL",2102558789
30.09.2016,ADULT SOCIAL CARE,PLUS SERVICES,-346.6,PWLD RES PLACEMENTS,"MAND STATUTORY CHARGES, RESIDENTIAL",2102569681
03.09.2016,ADULT SOCIAL CARE,PLUS SERVICES,-558.32,PWLD RES PLACEMENTS,"MAND STATUTORY CHARGES, RESIDENTIAL",2102558779
30.09.2016,ADULT SOCIAL CARE,PLUS SERVICES,-558.32,PWLD RES PLACEMENTS,"MAND STATUTORY CHARGES, RESIDENTIAL",2102569673
03.09.2016,ADULT SOCIAL CARE,PLUS SERVICES,"-6,086.97",PWLD RES PLACEMENTS,"MAND STATUTORY CHARGES, RESIDENTIAL",2102558787
03.09.2016,ADULT SOCIAL CARE,PLUS SERVICES,"-14,668.52",LD HOME CARE,DISCRETIONARY FLEXIBLE FEES & INCOME,2102558781
03.09.2016,ADULT SOCIAL CARE,SAFFRONLAND HOMES (HESTIA),"8,228.44",PWLD RES PLACEMENTS,RESIDENTIAL CARE,2102558805
30.09.2016,ADULT SOCIAL CARE,SAFFRONLAND HOMES (HESTIA),"8,228.44",PWLD RES PLACEMENTS,RESIDENTIAL CARE,2102569696
03.09.2016,ADULT SOCIAL CARE,SAFFRONLAND HOMES (HESTIA),"8,049.72",PWLD RES PLACEMENTS,RESIDENTIAL CARE,2102558798
30.09.2016,ADULT SOCIAL CARE,SAFFRONLAND HOMES (HESTIA),"8,049.72",PWLD RES PLACEMENTS,RESIDENTIAL CARE,2102569689
03.09.2016,ADULT SOCIAL CARE,SAFFRONLAND HOMES (HESTIA),"7,806.44",PWLD RES PLACEMENTS,RESIDENTIAL CARE,2102558802
03.09.2016,ADULT SOCIAL CARE,SAFFRONLAND HOMES (HESTIA),"7,806.44",PWLD RES PLACEMENTS,RESIDENTIAL CARE,2102558808
03.09.2016,ADULT SOCIAL CARE,SAFFRONLAND HOMES (HESTIA),"7,806.44",PWLD RES PLACEMENTS,RESIDENTIAL CARE,2102558811
30.09.2016,ADULT SOCIAL CARE,SAFFRONLAND HOMES (HESTIA),"7,806.44",PWLD RES PLACEMENTS,RESIDENTIAL CARE,2102569693
30.09.2016,ADULT SOCIAL CARE,SAFFRONLAND HOMES (HESTIA),"7,806.44",PWLD RES PLACEMENTS,RESIDENTIAL CARE,2102569699
30.09.2016,ADULT SOCIAL CARE,SAFFRONLAND HOMES (HESTIA),"7,806.44",PWLD RES PLACEMENTS,RESIDENTIAL CARE,2102569702
03.09.2016,ADULT SOCIAL CARE,SAFFRONLAND HOMES (HESTIA),"7,482.08",PWLD RES PLACEMENTS,RESIDENTIAL CARE,2102558799
30.09.2016,ADULT SOCIAL CARE,SAFFRONLAND HOMES (HESTIA),"7,482.08",PWLD RES PLACEMENTS,RESIDENTIAL CARE,2102569690
03.09.2016,ADULT SOCIAL CARE,SAFFRONLAND HOMES (HESTIA),918.76,ADDITIONAL ONE TO ONE,DAYCARE,2102558810
30.09.2016,ADULT SOCIAL CARE,SAFFRONLAND HOMES (HESTIA),918.76,ADDITIONAL ONE TO ONE,DAYCARE,2102569701
03.09.2016,ADULT SOCIAL CARE,SAFFRONLAND HOMES (HESTIA),750.76,ADDITIONAL ONE TO ONE,DAYCARE,2102558807
30.09.2016,ADULT SOCIAL CARE,SAFFRONLAND HOMES (HESTIA),750.76,ADDITIONAL ONE TO ONE,DAYCARE,2102569698
03.09.2016,ADULT SOCIAL CARE,SAFFRONLAND HOMES (HESTIA),462.36,ADDITIONAL ONE TO ONE,DAYCARE,2102558801
30.09.2016,ADULT SOCIAL CARE,SAFFRONLAND HOMES (HESTIA),462.36,ADDITIONAL ONE TO ONE,DAYCARE,2102569692
03.09.2016,ADULT SOCIAL CARE,SAFFRONLAND HOMES (HESTIA),-315.2,PWLD RES PLACEMENTS,"MAND STATUTORY CHARGES, RESIDENTIAL",2102558803
30.09.2016,ADULT SOCIAL CARE,SAFFRONLAND HOMES (HESTIA),-315.2,PWLD RES PLACEMENTS,"MAND STATUTORY CHARGES, RESIDENTIAL",2102569694
03.09.2016,ADULT SOCIAL CARE,SAFFRONLAND HOMES (HESTIA),-321.8,PWLD RES PLACEMENTS,"MAND STATUTORY CHARGES, RESIDENTIAL",2102558800
03.09.2016,ADULT SOCIAL CARE,SAFFRONLAND HOMES (HESTIA),-321.8,PWLD RES PLACEMENTS,"MAND STATUTORY CHARGES, RESIDENTIAL",2102558806
03.09.2016,ADULT SOCIAL CARE,SAFFRONLAND HOMES (HESTIA),-321.8,PWLD RES PLACEMENTS,"MAND STATUTORY CHARGES, RESIDENTIAL",2102558809
03.09.2016,ADULT SOCIAL CARE,SAFFRONLAND HOMES (HESTIA),-321.8,PWLD RES PLACEMENTS,"MAND STATUTORY CHARGES, RESIDENTIAL",2102558812
30.09.2016,ADULT SOCIAL CARE,SAFFRONLAND HOMES (HESTIA),-321.8,PWLD RES PLACEMENTS,"MAND STATUTORY CHARGES, RESIDENTIAL",2102569691
30.09.2016,ADULT SOCIAL CARE,SAFFRONLAND HOMES (HESTIA),-321.8,PWLD RES PLACEMENTS,"MAND STATUTORY CHARGES, RESIDENTIAL",2102569697
30.09.2016,ADULT SOCIAL CARE,SAFFRONLAND HOMES (HESTIA),-321.8,PWLD RES PLACEMENTS,"MAND STATUTORY CHARGES, RESIDENTIAL",2102569700
30.09.2016,ADULT SOCIAL CARE,SAFFRONLAND HOMES (HESTIA),-321.8,PWLD RES PLACEMENTS,"MAND STATUTORY CHARGES, RESIDENTIAL",2102569703
03.09.2016,ADULT SOCIAL CARE,GROVE VILLA RESIDENTIAL CARE HOME,"1,697.40",JOINT COMMISSIONING TEAM PLWD,RESIDENTIAL CARE,2102558813
30.09.2016,ADULT SOCIAL CARE,GROVE VILLA RESIDENTIAL CARE HOME,"1,697.40",JOINT COMMISSIONING TEAM PLWD,RESIDENTIAL CARE,2102569704
03.09.2016,ADULT SOCIAL CARE,GROVE VILLA RESIDENTIAL CARE HOME,-505.2,JOINT COMMISSIONING TEAM PLWD,"MAND STATUTORY CHARGES, RESIDENTIAL",2102558814
30.09.2016,ADULT SOCIAL CARE,GROVE VILLA RESIDENTIAL CARE HOME,-505.2,JOINT COMMISSIONING TEAM PLWD,"MAND STATUTORY CHARGES, RESIDENTIAL",2102569705
03.09.2016,ADULT SOCIAL CARE,ELMWOOD R C H (MISSION CARE),"2,504.96",OP - NURSING,NURSING PLACEMENTS FEES,2102558815
30.09.2016,ADULT SOCIAL CARE,ELMWOOD R C H (MISSION CARE),"2,504.96",OP - NURSING,NURSING PLACEMENTS FEES,2102569706
03.09.2016,ADULT SOCIAL CARE,ELMWOOD R C H (MISSION CARE),-643.52,OP - NURSING,"MAND STATUTORY CHARGES, NURSING",2102558816
30.09.2016,ADULT SOCIAL CARE,ELMWOOD R C H (MISSION CARE),-643.52,OP - NURSING,"MAND STATUTORY CHARGES, NURSING",2102569707
03.09.2016,ADULT SOCIAL CARE,PRIORY GROUP NORTHERN OFFICE,"3,059.36", OP CARE PACKAGES,NURSING PLACEMENTS FEES,2102558819
30.09.2016,ADULT SOCIAL CARE,PRIORY GROUP NORTHERN OFFICE,"3,059.36", OP CARE PACKAGES,NURSING PLACEMENTS FEES,2102569710
03.09.2016,ADULT SOCIAL CARE,PRIORY GROUP NORTHERN OFFICE,"2,095.68", OP CARE PACKAGES,NURSING PLACEMENTS FEES,2102558817
30.09.2016,ADULT SOCIAL CARE,PRIORY GROUP NORTHERN OFFICE,"2,095.68", OP CARE PACKAGES,NURSING PLACEMENTS FEES,2102569708
03.09.2016,ADULT SOCIAL CARE,PRIORY GROUP NORTHERN OFFICE,-519.12, OP CARE PACKAGES,"MAND STATUTORY CHARGES, NURSING",2102558818
30.09.2016,ADULT SOCIAL CARE,PRIORY GROUP NORTHERN OFFICE,-519.12, OP CARE PACKAGES,"MAND STATUTORY CHARGES, NURSING",2102569709
03.09.2016,ADULT SOCIAL CARE,REDACTED PERSONAL DATA,"1,032.16",LD HOME CARE,SUPPORTED LIVING,2102558820
30.09.2016,ADULT SOCIAL CARE,REDACTED PERSONAL DATA,"1,032.16",LD HOME CARE,SUPPORTED LIVING,2102569711
03.09.2016,ADULT SOCIAL CARE,DUNDEE CITY COUNCIL,"2,029.48",PD NURSING,NURSING PLACEMENTS FEES,2102558821
30.09.2016,ADULT SOCIAL CARE,DUNDEE CITY COUNCIL,"2,029.48",PD NURSING,NURSING PLACEMENTS FEES,2102569712
03.09.2016,ADULT SOCIAL CARE,DUNDEE CITY COUNCIL,-321.8,PD NURSING,"MAND STATUTORY CHARGES, NURSING",2102558822
30.09.2016,ADULT SOCIAL CARE,DUNDEE CITY COUNCIL,-321.8,PD NURSING,"MAND STATUTORY CHARGES, NURSING",2102569713
03.09.2016,ADULT SOCIAL CARE,NEXUS PROGRAMME LTD,"7,100.08",PWLD RES PLACEMENTS,RESIDENTIAL CARE,2102558823
30.09.2016,ADULT SOCIAL CARE,NEXUS PROGRAMME LTD,"7,100.08",PWLD RES PLACEMENTS,RESIDENTIAL CARE,2102569714
03.09.2016,ADULT SOCIAL CARE,NEXUS PROGRAMME LTD,-366.4,PWLD RES PLACEMENTS,"MAND STATUTORY CHARGES, RESIDENTIAL",2102558824
30.09.2016,ADULT SOCIAL CARE,NEXUS PROGRAMME LTD,-366.4,PWLD RES PLACEMENTS,"MAND STATUTORY CHARGES, RESIDENTIAL",2102569715
19.09.2016,ADULT SOCIAL CARE,KAIROS COMMUNITY TRUST,"2,340.00",DRUGS & ALCOHOL REHABITATION PLACES,DAYCARE,2102564538
03.09.2016,ADULT SOCIAL CARE,ELMS NURSING HOME,"2,318.60",PD NURSING,NURSING PLACEMENTS FEES,2102558825
30.09.2016,ADULT SOCIAL CARE,ELMS NURSING HOME,"2,318.60",PD NURSING,NURSING PLACEMENTS FEES,2102569716
02.09.2016,ADULT SOCIAL CARE,REDACTED PERSONAL DATA,688.8,PD DIRECT PAYMENTS,PERSONALISATION PAYMENTS,2102558209
03.09.2016,ADULT SOCIAL CARE,HAVELOCK COURT (BUPA CARE),"4,149.69",PD RESIDENTIAL,NURSING PLACEMENTS FEES,2102558826
03.09.2016,ADULT SOCIAL CARE,HAVELOCK COURT (BUPA CARE),"3,658.56",OP - NURSING,NURSING PLACEMENTS FEES,2102558827
30.09.2016,ADULT SOCIAL CARE,HAVELOCK COURT (BUPA CARE),"3,658.56",OP - NURSING,NURSING PLACEMENTS FEES,2102569717
03.09.2016,ADULT SOCIAL CARE,HAVELOCK COURT (BUPA CARE),"3,356.44",PD NURSING,NURSING PLACEMENTS FEES,2102558830
30.09.2016,ADULT SOCIAL CARE,HAVELOCK COURT (BUPA CARE),"3,356.44",PD NURSING,NURSING PLACEMENTS FEES,2102569720
03.09.2016,ADULT SOCIAL CARE,HAVELOCK COURT (BUPA CARE),"3,288.20", OP CARE PACKAGES,NURSING PLACEMENTS FEES,2102558835
30.09.2016,ADULT SOCIAL CARE,HAVELOCK COURT (BUPA CARE),"3,288.20", OP CARE PACKAGES,NURSING PLACEMENTS FEES,2102569725
03.09.2016,ADULT SOCIAL CARE,HAVELOCK COURT (BUPA CARE),"3,111.24",PD NURSING,NURSING PLACEMENTS FEES,2102558828
30.09.2016,ADULT SOCIAL CARE,HAVELOCK COURT (BUPA CARE),"3,111.24",PD NURSING,NURSING PLACEMENTS FEES,2102569718
03.09.2016,ADULT SOCIAL CARE,HAVELOCK COURT (BUPA CARE),"2,992.28",PD NURSING,NURSING PLACEMENTS FEES,2102558829
30.09.2016,ADULT SOCIAL CARE,HAVELOCK COURT (BUPA CARE),"2,992.28",PD NURSING,NURSING PLACEMENTS FEES,2102569719
03.09.2016,ADULT SOCIAL CARE,HAVELOCK COURT (BUPA CARE),"1,776.00",PD NURSING,NURSING PLACEMENTS FEES,2102558832
30.09.2016,ADULT SOCIAL CARE,HAVELOCK COURT (BUPA CARE),"1,776.00",PD NURSING,NURSING PLACEMENTS FEES,2102569722
03.09.2016,ADULT SOCIAL CARE,HAVELOCK COURT (BUPA CARE),"1,676.00",PD RESIDENTIAL,NURSING PLACEMENTS FEES,2102558834
30.09.2016,ADULT SOCIAL CARE,HAVELOCK COURT (BUPA CARE),"1,676.00",PD RESIDENTIAL,NURSING PLACEMENTS FEES,2102569724
03.09.2016,ADULT SOCIAL CARE,HAVELOCK COURT (BUPA CARE),-366.4,PD NURSING,"MAND STATUTORY CHARGES, NURSING",2102558831
30.09.2016,ADULT SOCIAL CARE,HAVELOCK COURT (BUPA CARE),-366.4,PD NURSING,"MAND STATUTORY CHARGES, NURSING",2102569721
03.09.2016,ADULT SOCIAL CARE,HAVELOCK COURT (BUPA CARE),-781.04, OP CARE PACKAGES,"MAND STATUTORY CHARGES, NURSING",2102558836
30.09.2016,ADULT SOCIAL CARE,HAVELOCK COURT (BUPA CARE),-781.04, OP CARE PACKAGES,"MAND STATUTORY CHARGES, NURSING",2102569726
02.09.2016,ADULT SOCIAL CARE,REDACTED PERSONAL DATA,"1,149.52", OP CARE PACKAGES,PERSONALISATION PAYMENTS,2102558552
02.09.2016,ADULT SOCIAL CARE,REDACTED PERSONAL DATA,814.2,PD DIRECT PAYMENTS,PAYMENTS TO CLIENTS (DIRECT PAYMENTS),2102558565
03.09.2016,ADULT SOCIAL CARE,LONDON RESIDENTIAL HEALTHCARE LTD,"2,095.68", OP CARE PACKAGES,NURSING PLACEMENTS FEES,2102558838
30.09.2016,ADULT SOCIAL CARE,LONDON RESIDENTIAL HEALTHCARE LTD,"2,095.68", OP CARE PACKAGES,NURSING PLACEMENTS FEES,2102569727
03.09.2016,ADULT SOCIAL CARE,LONDON RESIDENTIAL HEALTHCARE LTD,-511.56, OP CARE PACKAGES,"MAND STATUTORY CHARGES, NURSING",2102558839
30.09.2016,ADULT SOCIAL CARE,LONDON RESIDENTIAL HEALTHCARE LTD,-511.56, OP CARE PACKAGES,"MAND STATUTORY CHARGES, NURSING",2102569728
03.09.2016,ADULT SOCIAL CARE,MCCH,"5,073.60",PWLD RES PLACEMENTS,RESIDENTIAL CARE,2102558840
30.09.2016,ADULT SOCIAL CARE,MCCH,"5,073.60",PWLD RES PLACEMENTS,RESIDENTIAL CARE,2102569729
03.09.2016,ADULT SOCIAL CARE,MCCH,-384.8,PWLD RES PLACEMENTS,"MAND STATUTORY CHARGES, RESIDENTIAL",2102558841
30.09.2016,ADULT SOCIAL CARE,MCCH,-384.8,PWLD RES PLACEMENTS,"MAND STATUTORY CHARGES, RESIDENTIAL",2102569730
03.09.2016,ADULT SOCIAL CARE,RIVERLEE CARE HOME,"2,678.00",OP - NURSING,NURSING PLACEMENTS FEES,2102558842
30.09.2016,ADULT SOCIAL CARE,RIVERLEE CARE HOME,"2,678.00",OP - NURSING,NURSING PLACEMENTS FEES,2102569731
03.09.2016,ADULT SOCIAL CARE,RIVERLEE CARE HOME,"2,200.92", OP CARE PACKAGES,NURSING PLACEMENTS FEES,2102558845
30.09.2016,ADULT SOCIAL CARE,RIVERLEE CARE HOME,"2,200.92", OP CARE PACKAGES,NURSING PLACEMENTS FEES,2102569734
03.09.2016,ADULT SOCIAL CARE,RIVERLEE CARE HOME,"2,200.88", OP CARE PACKAGES,RESIDENTIAL CARE,2102558844
30.09.2016,ADULT SOCIAL CARE,RIVERLEE CARE HOME,"2,200.88", OP CARE PACKAGES,RESIDENTIAL CARE,2102569733
03.09.2016,ADULT SOCIAL CARE,RIVERLEE CARE HOME,"2,095.68", OP CARE PACKAGES,NURSING PLACEMENTS FEES,2102558843
30.09.2016,ADULT SOCIAL CARE,RIVERLEE CARE HOME,"2,095.68", OP CARE PACKAGES,NURSING PLACEMENTS FEES,2102569732
03.09.2016,ADULT SOCIAL CARE,PARKGATE MANOR,"2,710.68",JOINT COMMISSIONING TEAM PLWD,RESIDENTIAL CARE,2102558848
30.09.2016,ADULT SOCIAL CARE,PARKGATE MANOR,"2,710.68",JOINT COMMISSIONING TEAM PLWD,RESIDENTIAL CARE,2102569737
03.09.2016,ADULT SOCIAL CARE,PARKGATE MANOR,"1,741.00",PWLD RES PLACEMENTS,RESIDENTIAL CARE,2102558846
30.09.2016,ADULT SOCIAL CARE,PARKGATE MANOR,"1,741.00",PWLD RES PLACEMENTS,RESIDENTIAL CARE,2102569735
03.09.2016,ADULT SOCIAL CARE,PARKGATE MANOR,-505.2,PWLD RES PLACEMENTS,"MAND STATUTORY CHARGES, RESIDENTIAL",2102558847
03.09.2016,ADULT SOCIAL CARE,PARKGATE MANOR,-505.2,JOINT COMMISSIONING TEAM PLWD,"MAND STATUTORY CHARGES, RESIDENTIAL",2102558849
30.09.2016,ADULT SOCIAL CARE,PARKGATE MANOR,-505.2,PWLD RES PLACEMENTS,"MAND STATUTORY CHARGES, RESIDENTIAL",2102569736
30.09.2016,ADULT SOCIAL CARE,PARKGATE MANOR,-505.2,JOINT COMMISSIONING TEAM PLWD,"MAND STATUTORY CHARGES, RESIDENTIAL",2102569738
03.09.2016,ADULT SOCIAL CARE,STEPPING STONES RESETTLEMENT UNIT,"6,605.40",PWLD RES PLACEMENTS,RESIDENTIAL CARE,2102558850
30.09.2016,ADULT SOCIAL CARE,STEPPING STONES RESETTLEMENT UNIT,"6,605.40",PWLD RES PLACEMENTS,RESIDENTIAL CARE,2102569739
03.09.2016,ADULT SOCIAL CARE,STEPPING STONES RESETTLEMENT UNIT,"5,086.04",PD RESIDENTIAL,RESIDENTIAL CARE,2102558852
30.09.2016,ADULT SOCIAL CARE,STEPPING STONES RESETTLEMENT UNIT,"5,086.04",PD RESIDENTIAL,RESIDENTIAL CARE,2102569741
03.09.2016,ADULT SOCIAL CARE,STEPPING STONES RESETTLEMENT UNIT,-321.8,PWLD RES PLACEMENTS,"MAND STATUTORY CHARGES, RESIDENTIAL",2102558851
30.09.2016,ADULT SOCIAL CARE,STEPPING STONES RESETTLEMENT UNIT,-321.8,PWLD RES PLACEMENTS,"MAND STATUTORY CHARGES, RESIDENTIAL",2102569740
03.09.2016,ADULT SOCIAL CARE,STEPPING STONES RESETTLEMENT UNIT,-366.4,PD RESIDENTIAL,"MAND STATUTORY CHARGES, RESIDENTIAL",2102558853
30.09.2016,ADULT SOCIAL CARE,STEPPING STONES RESETTLEMENT UNIT,-366.4,PD RESIDENTIAL,"MAND STATUTORY CHARGES, RESIDENTIAL",2102569742
02.09.2016,ADULT SOCIAL CARE,THREE C'S SUPPORT,526,PWLD DIRECT PAYMENTS,PERSONALISATION PAYMENTS,2102558572
02.09.2016,ADULT SOCIAL CARE,THREE C'S SUPPORT,492,PERSONAL BUDGET - SOCIAL CARE,PERSONALISATION PAYMENTS,2102558562
02.09.2016,ADULT SOCIAL CARE,THREE C'S SUPPORT,328.16,PERSONAL BUDGET - SOCIAL CARE,PERSONALISATION PAYMENTS,2102558567
02.09.2016,ADULT SOCIAL CARE,THREE C'S SUPPORT,328.16,PERSONAL BUDGET - SOCIAL CARE,PERSONALISATION PAYMENTS,2102558568
02.09.2016,ADULT SOCIAL CARE,THREE C'S SUPPORT,320,PWLD DIRECT PAYMENTS,PERSONALISATION PAYMENTS,2102558569
02.09.2016,ADULT SOCIAL CARE,THREE C'S SUPPORT,256,PERSONAL BUDGET - SOCIAL CARE,PERSONALISATION PAYMENTS,2102558571
02.09.2016,ADULT SOCIAL CARE,THREE C'S SUPPORT,-256,PERSONAL BUDGET - SOCIAL CARE,DISCRETIONARY FLEXIBLE FEES & INCOME,2102558570
02.09.2016,ADULT SOCIAL CARE,THREE C'S SUPPORT,-492,PERSONAL BUDGET - SOCIAL CARE,DISCRETIONARY FLEXIBLE FEES & INCOME,2102558402
03.09.2016,ADULT SOCIAL CARE,WYCAR LEYS,"10,390.40",PWLD RES PLACEMENTS,RESIDENTIAL CARE,2102558856
30.09.2016,ADULT SOCIAL CARE,WYCAR LEYS,"10,390.40",PWLD RES PLACEMENTS,RESIDENTIAL CARE,2102569743
14.09.2016,ADULT SOCIAL CARE,THE CAMDEN SOCIETY (SOCIAL CARE),"3,722.36",PWLD DAYCARE,DAYCARE,2102563810
02.09.2016,ADULT SOCIAL CARE,THE CAMDEN SOCIETY (SOCIAL CARE),"3,538.08",PWLD DIRECT PAYMENTS,PERSONALISATION PAYMENTS,2102558501
14.09.2016,ADULT SOCIAL CARE,THE CAMDEN SOCIETY (SOCIAL CARE),"3,520.00",PWLD DAYCARE,DAYCARE,2102563809
14.09.2016,ADULT SOCIAL CARE,THE CAMDEN SOCIETY (SOCIAL CARE),"2,995.20",PWLD DAYCARE,DAYCARE,2102563812
02.09.2016,ADULT SOCIAL CARE,THE CAMDEN SOCIETY (SOCIAL CARE),"2,760.48",PWLD DIRECT PAYMENTS,PERSONALISATION PAYMENTS,2102558500
14.09.2016,ADULT SOCIAL CARE,THE CAMDEN SOCIETY (SOCIAL CARE),"2,628.00",PWLD DAYCARE,DAYCARE,2102563807
02.09.2016,ADULT SOCIAL CARE,THE CAMDEN SOCIETY (SOCIAL CARE),"2,489.68",PWLD DIRECT PAYMENTS,PERSONALISATION PAYMENTS,2102558418
02.09.2016,ADULT SOCIAL CARE,THE CAMDEN SOCIETY (SOCIAL CARE),"2,412.00",PWLD DIRECT PAYMENTS,PERSONALISATION PAYMENTS,2102558407
02.09.2016,ADULT SOCIAL CARE,THE CAMDEN SOCIETY (SOCIAL CARE),"2,412.00",PWLD DIRECT PAYMENTS,PERSONALISATION PAYMENTS,2102558436
02.09.2016,ADULT SOCIAL CARE,THE CAMDEN SOCIETY (SOCIAL CARE),"2,412.00",PWLD DIRECT PAYMENTS,PERSONALISATION PAYMENTS,2102558439
02.09.2016,ADULT SOCIAL CARE,THE CAMDEN SOCIETY (SOCIAL CARE),"2,412.00",PWLD DIRECT PAYMENTS,PERSONALISATION PAYMENTS,2102558490
14.09.2016,ADULT SOCIAL CARE,THE CAMDEN SOCIETY (SOCIAL CARE),"2,372.52",PWLD DAYCARE,DAYCARE,2102563811
02.09.2016,ADULT SOCIAL CARE,THE CAMDEN SOCIETY (SOCIAL CARE),"2,328.48",PWLD DIRECT PAYMENTS,PERSONALISATION PAYMENTS,2102558411
14.09.2016,ADULT SOCIAL CARE,THE CAMDEN SOCIETY (SOCIAL CARE),"2,262.84",PWLD DAYCARE,DAYCARE,2102563803
14.09.2016,ADULT SOCIAL CARE,THE CAMDEN SOCIETY (SOCIAL CARE),"2,160.00",PWLD DAYCARE,DAYCARE,2102563806
14.09.2016,ADULT SOCIAL CARE,THE CAMDEN SOCIETY (SOCIAL CARE),"2,044.00",ADDITIONAL ONE TO ONE,DAYCARE,2102563801
02.09.2016,ADULT SOCIAL CARE,THE CAMDEN SOCIETY (SOCIAL CARE),"1,926.16",PWLD DIRECT PAYMENTS,PERSONALISATION PAYMENTS,2102558560
02.09.2016,ADULT SOCIAL CARE,THE CAMDEN SOCIETY (SOCIAL CARE),"1,924.00",PWLD DIRECT PAYMENTS,PERSONALISATION PAYMENTS,2102558521
02.09.2016,ADULT SOCIAL CARE,THE CAMDEN SOCIETY (SOCIAL CARE),"1,852.00",PWLD DIRECT PAYMENTS,PERSONALISATION PAYMENTS,2102558405
02.09.2016,ADULT SOCIAL CARE,THE CAMDEN SOCIETY (SOCIAL CARE),"1,848.00",PWLD DIRECT PAYMENTS,PERSONALISATION PAYMENTS,2102558413
02.09.2016,ADULT SOCIAL CARE,THE CAMDEN SOCIETY (SOCIAL CARE),"1,848.00",PWLD DIRECT PAYMENTS,PERSONALISATION PAYMENTS,2102558420
02.09.2016,ADULT SOCIAL CARE,THE CAMDEN SOCIETY (SOCIAL CARE),"1,848.00",PWLD DIRECT PAYMENTS,PERSONALISATION PAYMENTS,2102558428
02.09.2016,ADULT SOCIAL CARE,THE CAMDEN SOCIETY (SOCIAL CARE),"1,848.00",PWLD DIRECT PAYMENTS,PERSONALISATION PAYMENTS,2102558430
02.09.2016,ADULT SOCIAL CARE,THE CAMDEN SOCIETY (SOCIAL CARE),"1,848.00",PWLD DIRECT PAYMENTS,PERSONALISATION PAYMENTS,2102558431
02.09.2016,ADULT SOCIAL CARE,THE CAMDEN SOCIETY (SOCIAL CARE),"1,848.00",PWLD DIRECT PAYMENTS,PERSONALISATION PAYMENTS,2102558432
02.09.2016,ADULT SOCIAL CARE,THE CAMDEN SOCIETY (SOCIAL CARE),"1,848.00",PWLD DIRECT PAYMENTS,PERSONALISATION PAYMENTS,2102558442
02.09.2016,ADULT SOCIAL CARE,THE CAMDEN SOCIETY (SOCIAL CARE),"1,848.00",PWLD DIRECT PAYMENTS,PERSONALISATION PAYMENTS,2102558519
02.09.2016,ADULT SOCIAL CARE,THE CAMDEN SOCIETY (SOCIAL CARE),"1,848.00",PWLD DIRECT PAYMENTS,PERSONALISATION PAYMENTS,2102558523
02.09.2016,ADULT SOCIAL CARE,THE CAMDEN SOCIETY (SOCIAL CARE),"1,848.00",PWLD DIRECT PAYMENTS,PERSONALISATION PAYMENTS,2102558555
02.09.2016,ADULT SOCIAL CARE,THE CAMDEN SOCIETY (SOCIAL CARE),"1,848.00",PWLD DIRECT PAYMENTS,PERSONALISATION PAYMENTS,2102558559
02.09.2016,ADULT SOCIAL CARE,THE CAMDEN SOCIETY (SOCIAL CARE),"1,848.00",PWLD DIRECT PAYMENTS,PERSONALISATION PAYMENTS,2102558561
02.09.2016,ADULT SOCIAL CARE,THE CAMDEN SOCIETY (SOCIAL CARE),"1,824.48",PWLD DIRECT PAYMENTS,PERSONALISATION PAYMENTS,2102558433
02.09.2016,ADULT SOCIAL CARE,THE CAMDEN SOCIETY (SOCIAL CARE),"1,824.48",PWLD DIRECT PAYMENTS,PERSONALISATION PAYMENTS,2102558492
02.09.2016,ADULT SOCIAL CARE,THE CAMDEN SOCIETY (SOCIAL CARE),"1,824.48",PWLD DIRECT PAYMENTS,PERSONALISATION PAYMENTS,2102558499
14.09.2016,ADULT SOCIAL CARE,THE CAMDEN SOCIETY (SOCIAL CARE),"1,719.44",PWLD DAYCARE,DAYCARE,2102563802
02.09.2016,ADULT SOCIAL CARE,THE CAMDEN SOCIETY (SOCIAL CARE),"1,680.48",PWLD DIRECT PAYMENTS,PERSONALISATION PAYMENTS,2102558515
02.09.2016,ADULT SOCIAL CARE,THE CAMDEN SOCIETY (SOCIAL CARE),"1,536.48",PWLD DIRECT PAYMENTS,PERSONALISATION PAYMENTS,2102558517
02.09.2016,ADULT SOCIAL CARE,THE CAMDEN SOCIETY (SOCIAL CARE),"1,492.00",PWLD DIRECT PAYMENTS,PERSONALISATION PAYMENTS,2102558423
02.09.2016,ADULT SOCIAL CARE,THE CAMDEN SOCIETY (SOCIAL CARE),"1,492.00",PWLD DIRECT PAYMENTS,PERSONALISATION PAYMENTS,2102558498
02.09.2016,ADULT SOCIAL CARE,THE CAMDEN SOCIETY (SOCIAL CARE),"1,473.60",PWLD DIRECT PAYMENTS,PERSONALISATION PAYMENTS,2102558426
02.09.2016,ADULT SOCIAL CARE,THE CAMDEN SOCIETY (SOCIAL CARE),"1,473.60",PWLD DIRECT PAYMENTS,PERSONALISATION PAYMENTS,2102558530
02.09.2016,ADULT SOCIAL CARE,THE CAMDEN SOCIETY (SOCIAL CARE),"1,451.52",PWLD DIRECT PAYMENTS,PERSONALISATION PAYMENTS,2102558485
14.09.2016,ADULT SOCIAL CARE,THE CAMDEN SOCIETY (SOCIAL CARE),"1,296.28",PWLD DAYCARE,DAYCARE,2102563804
02.09.2016,ADULT SOCIAL CARE,THE CAMDEN SOCIETY (SOCIAL CARE),"1,165.84",PWLD DIRECT PAYMENTS,PERSONALISATION PAYMENTS,2102558557
02.09.2016,ADULT SOCIAL CARE,THE CAMDEN SOCIETY (SOCIAL CARE),"1,137.60",PWLD DIRECT PAYMENTS,PERSONALISATION PAYMENTS,2102558399
02.09.2016,ADULT SOCIAL CARE,THE CAMDEN SOCIETY (SOCIAL CARE),"1,137.60",PWLD DIRECT PAYMENTS,PERSONALISATION PAYMENTS,2102558406
02.09.2016,ADULT SOCIAL CARE,THE CAMDEN SOCIETY (SOCIAL CARE),"1,137.60",PWLD DIRECT PAYMENTS,PERSONALISATION PAYMENTS,2102558410
02.09.2016,ADULT SOCIAL CARE,THE CAMDEN SOCIETY (SOCIAL CARE),"1,137.60",PWLD DIRECT PAYMENTS,PERSONALISATION PAYMENTS,2102558414
02.09.2016,ADULT SOCIAL CARE,THE CAMDEN SOCIETY (SOCIAL CARE),"1,137.60",PWLD DIRECT PAYMENTS,PERSONALISATION PAYMENTS,2102558422
02.09.2016,ADULT SOCIAL CARE,THE CAMDEN SOCIETY (SOCIAL CARE),"1,137.60",PWLD DIRECT PAYMENTS,PERSONALISATION PAYMENTS,2102558488
02.09.2016,ADULT SOCIAL CARE,THE CAMDEN SOCIETY (SOCIAL CARE),"1,137.60",PWLD DIRECT PAYMENTS,PERSONALISATION PAYMENTS,2102558502
02.09.2016,ADULT SOCIAL CARE,THE CAMDEN SOCIETY (SOCIAL CARE),"1,137.60",PWLD DIRECT PAYMENTS,PERSONALISATION PAYMENTS,2102558556
02.09.2016,ADULT SOCIAL CARE,THE CAMDEN SOCIETY (SOCIAL CARE),"1,128.00",PWLD DIRECT PAYMENTS,PERSONALISATION PAYMENTS,2102558415
02.09.2016,ADULT SOCIAL CARE,THE CAMDEN SOCIETY (SOCIAL CARE),"1,128.00",PWLD DIRECT PAYMENTS,PERSONALISATION PAYMENTS,2102558416
02.09.2016,ADULT SOCIAL CARE,THE CAMDEN SOCIETY (SOCIAL CARE),"1,128.00",PWLD DIRECT PAYMENTS,PERSONALISATION PAYMENTS,2102558417
02.09.2016,ADULT SOCIAL CARE,THE CAMDEN SOCIETY (SOCIAL CARE),"1,128.00",PWLD DIRECT PAYMENTS,PERSONALISATION PAYMENTS,2102558419
02.09.2016,ADULT SOCIAL CARE,THE CAMDEN SOCIETY (SOCIAL CARE),"1,105.60",PWLD DIRECT PAYMENTS,PERSONALISATION PAYMENTS,2102558409
02.09.2016,ADULT SOCIAL CARE,THE CAMDEN SOCIETY (SOCIAL CARE),"1,060.00",PWLD DIRECT PAYMENTS,PERSONALISATION PAYMENTS,2102558425
02.09.2016,ADULT SOCIAL CARE,THE CAMDEN SOCIETY (SOCIAL CARE),"1,060.00",PWLD DIRECT PAYMENTS,PERSONALISATION PAYMENTS,2102558489
02.09.2016,ADULT SOCIAL CARE,THE CAMDEN SOCIETY (SOCIAL CARE),"1,060.00",PWLD DIRECT PAYMENTS,PERSONALISATION PAYMENTS,2102558493
02.09.2016,ADULT SOCIAL CARE,THE CAMDEN SOCIETY (SOCIAL CARE),"1,060.00",PWLD DIRECT PAYMENTS,PERSONALISATION PAYMENTS,2102558494
02.09.2016,ADULT SOCIAL CARE,THE CAMDEN SOCIETY (SOCIAL CARE),"1,060.00",PWLD DIRECT PAYMENTS,PERSONALISATION PAYMENTS,2102558495
02.09.2016,ADULT SOCIAL CARE,THE CAMDEN SOCIETY (SOCIAL CARE),"1,060.00",PWLD DIRECT PAYMENTS,PERSONALISATION PAYMENTS,2102558496
02.09.2016,ADULT SOCIAL CARE,THE CAMDEN SOCIETY (SOCIAL CARE),"1,060.00",PWLD DIRECT PAYMENTS,PERSONALISATION PAYMENTS,2102558497
02.09.2016,ADULT SOCIAL CARE,THE CAMDEN SOCIETY (SOCIAL CARE),"1,060.00",PWLD DIRECT PAYMENTS,PERSONALISATION PAYMENTS,2102558518
02.09.2016,ADULT SOCIAL CARE,THE CAMDEN SOCIETY (SOCIAL CARE),"1,060.00",PWLD DIRECT PAYMENTS,PERSONALISATION PAYMENTS,2102558522
14.09.2016,ADULT SOCIAL CARE,THE CAMDEN SOCIETY (SOCIAL CARE),"1,008.00",PWLD DAYCARE,DAYCARE,2102563813
02.09.2016,ADULT SOCIAL CARE,THE CAMDEN SOCIETY (SOCIAL CARE),988,PWLD DIRECT PAYMENTS,PERSONALISATION PAYMENTS,2102558412
02.09.2016,ADULT SOCIAL CARE,THE CAMDEN SOCIETY (SOCIAL CARE),988,PWLD DIRECT PAYMENTS,PERSONALISATION PAYMENTS,2102558424
02.09.2016,ADULT SOCIAL CARE,THE CAMDEN SOCIETY (SOCIAL CARE),988,PWLD DIRECT PAYMENTS,PERSONALISATION PAYMENTS,2102558434
02.09.2016,ADULT SOCIAL CARE,THE CAMDEN SOCIETY (SOCIAL CARE),988,PWLD DIRECT PAYMENTS,PERSONALISATION PAYMENTS,2102558491
02.09.2016,ADULT SOCIAL CARE,THE CAMDEN SOCIETY (SOCIAL CARE),988,PWLD DIRECT PAYMENTS,PERSONALISATION PAYMENTS,2102558527
02.09.2016,ADULT SOCIAL CARE,THE CAMDEN SOCIETY (SOCIAL CARE),988,PWLD DIRECT PAYMENTS,PERSONALISATION PAYMENTS,2102558528
14.09.2016,ADULT SOCIAL CARE,THE CAMDEN SOCIETY (SOCIAL CARE),936,PWLD DAYCARE,DAYCARE,2102563814
14.09.2016,ADULT SOCIAL CARE,THE CAMDEN SOCIETY (SOCIAL CARE),900,PWLD DAYCARE,DAYCARE,2102563808
02.09.2016,ADULT SOCIAL CARE,THE CAMDEN SOCIETY (SOCIAL CARE),897.6,PWLD DIRECT PAYMENTS,PERSONALISATION PAYMENTS,2102558516
14.09.2016,ADULT SOCIAL CARE,THE CAMDEN SOCIETY (SOCIAL CARE),897.6,PWLD DAYCARE,DAYCARE,2102563805
02.09.2016,ADULT SOCIAL CARE,THE CAMDEN SOCIETY (SOCIAL CARE),753.6,PWLD DIRECT PAYMENTS,PERSONALISATION PAYMENTS,2102558401
02.09.2016,ADULT SOCIAL CARE,THE CAMDEN SOCIETY (SOCIAL CARE),753.6,PWLD DIRECT PAYMENTS,PERSONALISATION PAYMENTS,2102558427
02.09.2016,ADULT SOCIAL CARE,THE CAMDEN SOCIETY (SOCIAL CARE),753.6,PWLD DIRECT PAYMENTS,PERSONALISATION PAYMENTS,2102558429
02.09.2016,ADULT SOCIAL CARE,THE CAMDEN SOCIETY (SOCIAL CARE),753.6,PWLD DIRECT PAYMENTS,PERSONALISATION PAYMENTS,2102558435
02.09.2016,ADULT SOCIAL CARE,THE CAMDEN SOCIETY (SOCIAL CARE),753.6,PWLD DIRECT PAYMENTS,PERSONALISATION PAYMENTS,2102558438
02.09.2016,ADULT SOCIAL CARE,THE CAMDEN SOCIETY (SOCIAL CARE),753.6,PWLD DIRECT PAYMENTS,PERSONALISATION PAYMENTS,2102558503
02.09.2016,ADULT SOCIAL CARE,THE CAMDEN SOCIETY (SOCIAL CARE),753.6,PWLD DIRECT PAYMENTS,PERSONALISATION PAYMENTS,2102558513
02.09.2016,ADULT SOCIAL CARE,THE CAMDEN SOCIETY (SOCIAL CARE),753.6,PWLD DIRECT PAYMENTS,PERSONALISATION PAYMENTS,2102558558
02.09.2016,ADULT SOCIAL CARE,THE CAMDEN SOCIETY (SOCIAL CARE),726,PWLD DIRECT PAYMENTS,PERSONALISATION PAYMENTS,2102558554
